Organisation Name,Organisation Code,Unique Ref No,Effective Date,Directorate where expenditure incurred,Supplier Name,Payment Date,Net Amount,Procurement Classification (Higher Level),Purpose of spend,Procurement Classification (Lower Level),Capital_Revenue
Walsall Council,http://opendatacommunities.org/id/metropolitan-district-council/walsall,WC118-1,31/07/2020,CHILDRENS,247 CARS (WILLENHALL) LIMITED,20/07/2020,"1,973.30",52000-Hire of Vehicle with Driver,Home To School Transport,TRANSPORT,Revenue
Walsall Council,http://opendatacommunities.org/id/metropolitan-district-council/walsall,WC118-2,31/07/2020,CHILDRENS,247 CARS (WILLENHALL) LIMITED,20/07/2020,"1,615.00",52000-Hire of Vehicle with Driver,Home To School Transport,TRANSPORT,Revenue
Walsall Council,http://opendatacommunities.org/id/metropolitan-district-council/walsall,WC118-3,31/07/2020,ADULT SOCIAL CARE,5 CARE SERVICES LTD,17/07/2020,393.21,73507-Domiciliary Care,Physical Support,THIRD PARTY PAYMENTS,Revenue
Walsall Council,http://opendatacommunities.org/id/metropolitan-district-council/walsall,WC118-4,31/07/2020,ADULT SOCIAL CARE,5 CARE SERVICES LTD,17/07/2020,431.76,73507-Domiciliary Care,Physical Support,THIRD PARTY PAYMENTS,Revenue
Walsall Council,http://opendatacommunities.org/id/metropolitan-district-council/walsall,WC118-5,31/07/2020,ADULT SOCIAL CARE,5 CARE SERVICES LTD,17/07/2020,755.58,73507-Domiciliary Care,Physical Support,THIRD PARTY PAYMENTS,Revenue
Walsall Council,http://opendatacommunities.org/id/metropolitan-district-council/walsall,WC118-6,31/07/2020,ADULT SOCIAL CARE,5 CARE SERVICES LTD,17/07/2020,280.13,73507-Domiciliary Care,Mental Health Support,THIRD PARTY PAYMENTS,Revenue
Walsall Council,http://opendatacommunities.org/id/metropolitan-district-council/walsall,WC118-7,31/07/2020,ADULT SOCIAL CARE,5 CARE SERVICES LTD,17/07/2020,"1,410.93",73507-Domiciliary Care,Social Support,THIRD PARTY PAYMENTS,Revenue
Walsall Council,http://opendatacommunities.org/id/metropolitan-district-council/walsall,WC118-8,31/07/2020,ADULT SOCIAL CARE,5 CARE SERVICES LTD,17/07/2020,377.79,73507-Domiciliary Care,Physical Support,THIRD PARTY PAYMENTS,Revenue
Walsall Council,http://opendatacommunities.org/id/metropolitan-district-council/walsall,WC118-9,31/07/2020,ADULT SOCIAL CARE,5 CARE SERVICES LTD,17/07/2020,308.4,73507-Domiciliary Care,Learning Disability Support,THIRD PARTY PAYMENTS,Revenue
Walsall Council,http://opendatacommunities.org/id/metropolitan-district-council/walsall,WC118-10,31/07/2020,ADULT SOCIAL CARE,5 CARE SERVICES LTD,17/07/2020,-397.03,73507-Domiciliary Care,Physical Support,THIRD PARTY PAYMENTS,Revenue
Walsall Council,http://opendatacommunities.org/id/metropolitan-district-council/walsall,WC118-11,31/07/2020,ADULT SOCIAL CARE,5 CARE SERVICES LTD,17/07/2020,902.07,73507-Domiciliary Care,Physical Support,THIRD PARTY PAYMENTS,Revenue
Walsall Council,http://opendatacommunities.org/id/metropolitan-district-council/walsall,WC118-12,31/07/2020,ADULT SOCIAL CARE,5 CARE SERVICES LTD,17/07/2020,341.81,73507-Domiciliary Care,Physical Support,THIRD PARTY PAYMENTS,Revenue
Walsall Council,http://opendatacommunities.org/id/metropolitan-district-council/walsall,WC118-13,31/07/2020,ADULT SOCIAL CARE,5 CARE SERVICES LTD,17/07/2020,-451.1,73507-Domiciliary Care,Physical Support,THIRD PARTY PAYMENTS,Revenue
Walsall Council,http://opendatacommunities.org/id/metropolitan-district-council/walsall,WC118-14,31/07/2020,ADULT SOCIAL CARE,5 CARE SERVICES LTD,17/07/2020,-433.09,73507-Domiciliary Care,Physical Support,THIRD PARTY PAYMENTS,Revenue
Walsall Council,http://opendatacommunities.org/id/metropolitan-district-council/walsall,WC118-15,31/07/2020,ADULT SOCIAL CARE,5 CARE SERVICES LTD,17/07/2020,485.8,73507-Domiciliary Care,Physical Support,THIRD PARTY PAYMENTS,Revenue
Walsall Council,http://opendatacommunities.org/id/metropolitan-district-council/walsall,WC118-16,31/07/2020,ADULT SOCIAL CARE,5 CARE SERVICES LTD,17/07/2020,296.87,73507-Domiciliary Care,Physical Support,THIRD PARTY PAYMENTS,Revenue
Walsall Council,http://opendatacommunities.org/id/metropolitan-district-council/walsall,WC118-17,31/07/2020,ADULT SOCIAL CARE,5 CARE SERVICES LTD,17/07/2020,824.97,73507-Domiciliary Care,Physical Support,THIRD PARTY PAYMENTS,Revenue
Walsall Council,http://opendatacommunities.org/id/metropolitan-district-council/walsall,WC118-18,31/07/2020,ADULT SOCIAL CARE,5 CARE SERVICES LTD,17/07/2020,740.16,73507-Domiciliary Care,Physical Support,THIRD PARTY PAYMENTS,Revenue
Walsall Council,http://opendatacommunities.org/id/metropolitan-district-council/walsall,WC118-19,31/07/2020,ADULT SOCIAL CARE,5 CARE SERVICES LTD,17/07/2020,"1,457.19",73507-Domiciliary Care,Physical Support,THIRD PARTY PAYMENTS,Revenue
Walsall Council,http://opendatacommunities.org/id/metropolitan-district-council/walsall,WC118-20,31/07/2020,ADULT SOCIAL CARE,5 CARE SERVICES LTD,17/07/2020,-693.9,73507-Domiciliary Care,Physical Support,THIRD PARTY PAYMENTS,Revenue
Walsall Council,http://opendatacommunities.org/id/metropolitan-district-council/walsall,WC118-21,31/07/2020,ADULT SOCIAL CARE,5 CARE SERVICES LTD,17/07/2020,940.62,73507-Domiciliary Care,Physical Support,THIRD PARTY PAYMENTS,Revenue
Walsall Council,http://opendatacommunities.org/id/metropolitan-district-council/walsall,WC118-22,31/07/2020,ADULT SOCIAL CARE,5 CARE SERVICES LTD,17/07/2020,308.4,73507-Domiciliary Care,Learning Disability Support,THIRD PARTY PAYMENTS,Revenue
Walsall Council,http://opendatacommunities.org/id/metropolitan-district-council/walsall,WC118-23,31/07/2020,ADULT SOCIAL CARE,5 CARE SERVICES LTD,17/07/2020,431.76,73507-Domiciliary Care,Physical Support,THIRD PARTY PAYMENTS,Revenue
Walsall Council,http://opendatacommunities.org/id/metropolitan-district-council/walsall,WC118-24,31/07/2020,ADULT SOCIAL CARE,5 CARE SERVICES LTD,17/07/2020,344.98,73507-Domiciliary Care,Learning Disability Support,THIRD PARTY PAYMENTS,Revenue
Walsall Council,http://opendatacommunities.org/id/metropolitan-district-council/walsall,WC118-25,31/07/2020,ADULT SOCIAL CARE,5 CARE SERVICES LTD,17/07/2020,925.2,73507-Domiciliary Care,Physical Support,THIRD PARTY PAYMENTS,Revenue
Walsall Council,http://opendatacommunities.org/id/metropolitan-district-council/walsall,WC118-26,31/07/2020,ADULT SOCIAL CARE,5 CARE SERVICES LTD,17/07/2020,647.64,73507-Domiciliary Care,Mental Health Support,THIRD PARTY PAYMENTS,Revenue
Walsall Council,http://opendatacommunities.org/id/metropolitan-district-council/walsall,WC118-27,31/07/2020,ADULT SOCIAL CARE,5 CARE SERVICES LTD,17/07/2020,323.82,73507-Domiciliary Care,Physical Support,THIRD PARTY PAYMENTS,Revenue
Walsall Council,http://opendatacommunities.org/id/metropolitan-district-council/walsall,WC118-28,31/07/2020,ADULT SOCIAL CARE,5 CARE SERVICES LTD,17/07/2020,-624.51,73507-Domiciliary Care,Physical Support,THIRD PARTY PAYMENTS,Revenue
Walsall Council,http://opendatacommunities.org/id/metropolitan-district-council/walsall,WC118-29,31/07/2020,ADULT SOCIAL CARE,5 CARE SERVICES LTD,17/07/2020,296.87,73507-Domiciliary Care,Physical Support,THIRD PARTY PAYMENTS,Revenue
Walsall Council,http://opendatacommunities.org/id/metropolitan-district-council/walsall,WC118-30,31/07/2020,ADULT SOCIAL CARE,5 CARE SERVICES LTD,17/07/2020,485.73,73507-Domiciliary Care,Social Support,THIRD PARTY PAYMENTS,Revenue
Walsall Council,http://opendatacommunities.org/id/metropolitan-district-council/walsall,WC118-31,31/07/2020,ADULT SOCIAL CARE,5 CARE SERVICES LTD,17/07/2020,377.79,73507-Domiciliary Care,Physical Support,THIRD PARTY PAYMENTS,Revenue
Walsall Council,http://opendatacommunities.org/id/metropolitan-district-council/walsall,WC118-32,31/07/2020,ADULT SOCIAL CARE,5 CARE SERVICES LTD,17/07/2020,308.4,73507-Domiciliary Care,Learning Disability Support,THIRD PARTY PAYMENTS,Revenue
Walsall Council,http://opendatacommunities.org/id/metropolitan-district-council/walsall,WC118-33,31/07/2020,ADULT SOCIAL CARE,5 CARE SERVICES LTD,17/07/2020,485.73,73507-Domiciliary Care,Physical Support,THIRD PARTY PAYMENTS,Revenue
Walsall Council,http://opendatacommunities.org/id/metropolitan-district-council/walsall,WC118-34,31/07/2020,ADULT SOCIAL CARE,5 CARE SERVICES LTD,17/07/2020,516.57,73507-Domiciliary Care,Physical Support,THIRD PARTY PAYMENTS,Revenue
Walsall Council,http://opendatacommunities.org/id/metropolitan-district-council/walsall,WC118-35,31/07/2020,ADULT SOCIAL CARE,5 CARE SERVICES LTD,17/07/2020,555.12,73507-Domiciliary Care,Physical Support,THIRD PARTY PAYMENTS,Revenue
Walsall Council,http://opendatacommunities.org/id/metropolitan-district-council/walsall,WC118-36,31/07/2020,ADULT SOCIAL CARE,5 CARE SERVICES LTD,17/07/2020,341.81,73507-Domiciliary Care,Physical Support,THIRD PARTY PAYMENTS,Revenue
Walsall Council,http://opendatacommunities.org/id/metropolitan-district-council/walsall,WC118-37,31/07/2020,ADULT SOCIAL CARE,5 CARE SERVICES LTD,17/07/2020,485.8,73507-Domiciliary Care,Physical Support,THIRD PARTY PAYMENTS,Revenue
Walsall Council,http://opendatacommunities.org/id/metropolitan-district-council/walsall,WC118-38,31/07/2020,ADULT SOCIAL CARE,5 CARE SERVICES LTD,17/07/2020,539.7,73507-Domiciliary Care,Physical Support,THIRD PARTY PAYMENTS,Revenue
Walsall Council,http://opendatacommunities.org/id/metropolitan-district-council/walsall,WC118-39,31/07/2020,ADULT SOCIAL CARE,5 CARE SERVICES LTD,17/07/2020,485.73,73507-Domiciliary Care,Physical Support,THIRD PARTY PAYMENTS,Revenue
Walsall Council,http://opendatacommunities.org/id/metropolitan-district-council/walsall,WC118-40,31/07/2020,ADULT SOCIAL CARE,5 CARE SERVICES LTD,17/07/2020,308.4,73507-Domiciliary Care,Learning Disability Support,THIRD PARTY PAYMENTS,Revenue
Walsall Council,http://opendatacommunities.org/id/metropolitan-district-council/walsall,WC118-41,31/07/2020,ADULT SOCIAL CARE,5 CARE SERVICES LTD,17/07/2020,431.76,73507-Domiciliary Care,Physical Support,THIRD PARTY PAYMENTS,Revenue
Walsall Council,http://opendatacommunities.org/id/metropolitan-district-council/walsall,WC118-42,31/07/2020,ADULT SOCIAL CARE,5 CARE SERVICES LTD,17/07/2020,925.2,73507-Domiciliary Care,Physical Support,THIRD PARTY PAYMENTS,Revenue
Walsall Council,http://opendatacommunities.org/id/metropolitan-district-council/walsall,WC118-43,31/07/2020,ADULT SOCIAL CARE,5 CARE SERVICES LTD,17/07/2020,647.64,73507-Domiciliary Care,Mental Health Support,THIRD PARTY PAYMENTS,Revenue
Walsall Council,http://opendatacommunities.org/id/metropolitan-district-council/walsall,WC118-44,31/07/2020,ADULT SOCIAL CARE,5 CARE SERVICES LTD,17/07/2020,323.82,73507-Domiciliary Care,Physical Support,THIRD PARTY PAYMENTS,Revenue
Walsall Council,http://opendatacommunities.org/id/metropolitan-district-council/walsall,WC118-45,31/07/2020,ADULT SOCIAL CARE,5 CARE SERVICES LTD,17/07/2020,393.21,73507-Domiciliary Care,Physical Support,THIRD PARTY PAYMENTS,Revenue
Walsall Council,http://opendatacommunities.org/id/metropolitan-district-council/walsall,WC118-46,31/07/2020,ADULT SOCIAL CARE,5 CARE SERVICES LTD,17/07/2020,562.83,73507-Domiciliary Care,Physical Support,THIRD PARTY PAYMENTS,Revenue
Walsall Council,http://opendatacommunities.org/id/metropolitan-district-council/walsall,WC118-47,31/07/2020,ADULT SOCIAL CARE,5 CARE SERVICES LTD,17/07/2020,431.76,73507-Domiciliary Care,Physical Support,THIRD PARTY PAYMENTS,Revenue
Walsall Council,http://opendatacommunities.org/id/metropolitan-district-council/walsall,WC118-48,31/07/2020,ADULT SOCIAL CARE,5 CARE SERVICES LTD,17/07/2020,755.58,73507-Domiciliary Care,Physical Support,THIRD PARTY PAYMENTS,Revenue
Walsall Council,http://opendatacommunities.org/id/metropolitan-district-council/walsall,WC118-49,31/07/2020,ADULT SOCIAL CARE,5 CARE SERVICES LTD,20/07/2020,452.26,73025-Professional Services-Priv Contractor & Other Agencies,Intermediate Care Service,THIRD PARTY PAYMENTS,Revenue
Walsall Council,http://opendatacommunities.org/id/metropolitan-district-council/walsall,WC118-50,31/07/2020,ADULT SOCIAL CARE,5 CARE SERVICES LTD,20/07/2020,258.33,73025-Professional Services-Priv Contractor & Other Agencies,Intermediate Care Service,THIRD PARTY PAYMENTS,Revenue
Walsall Council,http://opendatacommunities.org/id/metropolitan-district-council/walsall,WC118-51,31/07/2020,ADULT SOCIAL CARE,5 CARE SERVICES LTD,20/07/2020,"2,552.01",73025-Professional Services-Priv Contractor & Other Agencies,Intermediate Care Service,THIRD PARTY PAYMENTS,Revenue
Walsall Council,http://opendatacommunities.org/id/metropolitan-district-council/walsall,WC118-52,31/07/2020,ADULT SOCIAL CARE,5 CARE SERVICES LTD,20/07/2020,"1,110.24",73025-Professional Services-Priv Contractor & Other Agencies,Intermediate Care Service,THIRD PARTY PAYMENTS,Revenue
Walsall Council,http://opendatacommunities.org/id/metropolitan-district-council/walsall,WC118-53,31/07/2020,ADULT SOCIAL CARE,5 CARE SERVICES LTD,20/07/2020,"2,555.91",73025-Professional Services-Priv Contractor & Other Agencies,Intermediate Care Service,THIRD PARTY PAYMENTS,Revenue
Walsall Council,http://opendatacommunities.org/id/metropolitan-district-council/walsall,WC118-54,31/07/2020,ADULT SOCIAL CARE,5 CARE SERVICES LTD,22/07/2020,"2,285.89",63000-Professional Fees & Services,"Strategy, Commissioning & Delivery Support",SUPPLIES & SERVICES,Revenue
Walsall Council,http://opendatacommunities.org/id/metropolitan-district-council/walsall,WC118-55,31/07/2020,ADULT SOCIAL CARE,5 CARE SERVICES LTD,22/07/2020,"2,596.89",63000-Professional Fees & Services,"Strategy, Commissioning & Delivery Support",SUPPLIES & SERVICES,Revenue
Walsall Council,http://opendatacommunities.org/id/metropolitan-district-council/walsall,WC118-56,31/07/2020,ADULT SOCIAL CARE,5 CARE SERVICES LTD,22/07/2020,"2,062.14",63000-Professional Fees & Services,"Strategy, Commissioning & Delivery Support",SUPPLIES & SERVICES,Revenue
Walsall Council,http://opendatacommunities.org/id/metropolitan-district-council/walsall,WC118-57,31/07/2020,CHILDRENS,5 CARE SERVICES LTD,24/07/2020,957,73500-Residential,Directly Commissioned Nursing Services,THIRD PARTY PAYMENTS,Revenue
Walsall Council,http://opendatacommunities.org/id/metropolitan-district-council/walsall,WC118-58,31/07/2020,ADULT SOCIAL CARE,5 CARE SERVICES LTD,29/07/2020,416.34,73507-Domiciliary Care,Physical Support,THIRD PARTY PAYMENTS,Revenue
Walsall Council,http://opendatacommunities.org/id/metropolitan-district-council/walsall,WC118-59,31/07/2020,ADULT SOCIAL CARE,5 CARE SERVICES LTD,31/07/2020,296.87,73507-Domiciliary Care,Physical Support,THIRD PARTY PAYMENTS,Revenue
Walsall Council,http://opendatacommunities.org/id/metropolitan-district-council/walsall,WC118-60,31/07/2020,ADULT SOCIAL CARE,5 CARE SERVICES LTD,31/07/2020,516.57,73507-Domiciliary Care,Physical Support,THIRD PARTY PAYMENTS,Revenue
Walsall Council,http://opendatacommunities.org/id/metropolitan-district-council/walsall,WC118-61,31/07/2020,ADULT SOCIAL CARE,5 CARE SERVICES LTD,31/07/2020,740.16,73507-Domiciliary Care,Physical Support,THIRD PARTY PAYMENTS,Revenue
Walsall Council,http://opendatacommunities.org/id/metropolitan-district-council/walsall,WC118-62,31/07/2020,ADULT SOCIAL CARE,5 CARE SERVICES LTD,31/07/2020,341.81,73507-Domiciliary Care,Physical Support,THIRD PARTY PAYMENTS,Revenue
Walsall Council,http://opendatacommunities.org/id/metropolitan-district-council/walsall,WC118-63,31/07/2020,ADULT SOCIAL CARE,5 CARE SERVICES LTD,31/07/2020,485.73,73507-Domiciliary Care,Social Support,THIRD PARTY PAYMENTS,Revenue
Walsall Council,http://opendatacommunities.org/id/metropolitan-district-council/walsall,WC118-64,31/07/2020,ADULT SOCIAL CARE,5 CARE SERVICES LTD,31/07/2020,732.45,73507-Domiciliary Care,Physical Support,THIRD PARTY PAYMENTS,Revenue
Walsall Council,http://opendatacommunities.org/id/metropolitan-district-council/walsall,WC118-65,31/07/2020,ADULT SOCIAL CARE,5 CARE SERVICES LTD,31/07/2020,485.8,73507-Domiciliary Care,Physical Support,THIRD PARTY PAYMENTS,Revenue
Walsall Council,http://opendatacommunities.org/id/metropolitan-district-council/walsall,WC118-66,31/07/2020,ADULT SOCIAL CARE,5 CARE SERVICES LTD,31/07/2020,393.21,73507-Domiciliary Care,Physical Support,THIRD PARTY PAYMENTS,Revenue
Walsall Council,http://opendatacommunities.org/id/metropolitan-district-council/walsall,WC118-67,31/07/2020,ADULT SOCIAL CARE,5 CARE SERVICES LTD,31/07/2020,-562.83,73507-Domiciliary Care,Physical Support,THIRD PARTY PAYMENTS,Revenue
Walsall Council,http://opendatacommunities.org/id/metropolitan-district-council/walsall,WC118-68,31/07/2020,ADULT SOCIAL CARE,5 CARE SERVICES LTD,31/07/2020,539.7,73507-Domiciliary Care,Physical Support,THIRD PARTY PAYMENTS,Revenue
Walsall Council,http://opendatacommunities.org/id/metropolitan-district-council/walsall,WC118-69,31/07/2020,ADULT SOCIAL CARE,5 CARE SERVICES LTD,31/07/2020,377.79,73507-Domiciliary Care,Physical Support,THIRD PARTY PAYMENTS,Revenue
Walsall Council,http://opendatacommunities.org/id/metropolitan-district-council/walsall,WC118-70,31/07/2020,ADULT SOCIAL CARE,5 CARE SERVICES LTD,31/07/2020,308.4,73507-Domiciliary Care,Learning Disability Support,THIRD PARTY PAYMENTS,Revenue
Walsall Council,http://opendatacommunities.org/id/metropolitan-district-council/walsall,WC118-71,31/07/2020,ADULT SOCIAL CARE,5 CARE SERVICES LTD,31/07/2020,431.76,73507-Domiciliary Care,Physical Support,THIRD PARTY PAYMENTS,Revenue
Walsall Council,http://opendatacommunities.org/id/metropolitan-district-council/walsall,WC118-72,31/07/2020,ADULT SOCIAL CARE,5 CARE SERVICES LTD,31/07/2020,755.58,73507-Domiciliary Care,Physical Support,THIRD PARTY PAYMENTS,Revenue
Walsall Council,http://opendatacommunities.org/id/metropolitan-district-council/walsall,WC118-73,31/07/2020,ADULT SOCIAL CARE,5 CARE SERVICES LTD,31/07/2020,308.4,73507-Domiciliary Care,Learning Disability Support,THIRD PARTY PAYMENTS,Revenue
Walsall Council,http://opendatacommunities.org/id/metropolitan-district-council/walsall,WC118-74,31/07/2020,ADULT SOCIAL CARE,5 CARE SERVICES LTD,31/07/2020,431.76,73507-Domiciliary Care,Physical Support,THIRD PARTY PAYMENTS,Revenue
Walsall Council,http://opendatacommunities.org/id/metropolitan-district-council/walsall,WC118-75,31/07/2020,ADULT SOCIAL CARE,5 CARE SERVICES LTD,31/07/2020,925.2,73507-Domiciliary Care,Physical Support,THIRD PARTY PAYMENTS,Revenue
Walsall Council,http://opendatacommunities.org/id/metropolitan-district-council/walsall,WC118-76,31/07/2020,ADULT SOCIAL CARE,5 CARE SERVICES LTD,31/07/2020,647.64,73507-Domiciliary Care,Mental Health Support,THIRD PARTY PAYMENTS,Revenue
Walsall Council,http://opendatacommunities.org/id/metropolitan-district-council/walsall,WC118-77,31/07/2020,ADULT SOCIAL CARE,5 CARE SERVICES LTD,31/07/2020,323.82,73507-Domiciliary Care,Physical Support,THIRD PARTY PAYMENTS,Revenue
Walsall Council,http://opendatacommunities.org/id/metropolitan-district-council/walsall,WC118-78,31/07/2020,ADULT SOCIAL CARE,5 CARE SERVICES LTD,31/07/2020,296.87,73507-Domiciliary Care,Physical Support,THIRD PARTY PAYMENTS,Revenue
Walsall Council,http://opendatacommunities.org/id/metropolitan-district-council/walsall,WC118-79,31/07/2020,ADULT SOCIAL CARE,5 CARE SERVICES LTD,31/07/2020,516.57,73507-Domiciliary Care,Physical Support,THIRD PARTY PAYMENTS,Revenue
Walsall Council,http://opendatacommunities.org/id/metropolitan-district-council/walsall,WC118-80,31/07/2020,ADULT SOCIAL CARE,5 CARE SERVICES LTD,31/07/2020,341.81,73507-Domiciliary Care,Physical Support,THIRD PARTY PAYMENTS,Revenue
Walsall Council,http://opendatacommunities.org/id/metropolitan-district-council/walsall,WC118-81,31/07/2020,ADULT SOCIAL CARE,5 CARE SERVICES LTD,31/07/2020,740.16,73507-Domiciliary Care,Physical Support,THIRD PARTY PAYMENTS,Revenue
Walsall Council,http://opendatacommunities.org/id/metropolitan-district-council/walsall,WC118-82,31/07/2020,ADULT SOCIAL CARE,5 CARE SERVICES LTD,31/07/2020,485.8,73507-Domiciliary Care,Physical Support,THIRD PARTY PAYMENTS,Revenue
Walsall Council,http://opendatacommunities.org/id/metropolitan-district-council/walsall,WC118-83,31/07/2020,ADULT SOCIAL CARE,5 CARE SERVICES LTD,31/07/2020,562.83,73507-Domiciliary Care,Physical Support,THIRD PARTY PAYMENTS,Revenue
Walsall Council,http://opendatacommunities.org/id/metropolitan-district-council/walsall,WC118-84,31/07/2020,ADULT SOCIAL CARE,5 CARE SERVICES LTD,31/07/2020,447.18,73507-Domiciliary Care,Physical Support,THIRD PARTY PAYMENTS,Revenue
Walsall Council,http://opendatacommunities.org/id/metropolitan-district-council/walsall,WC118-85,31/07/2020,ADULT SOCIAL CARE,5 CARE SERVICES LTD,31/07/2020,393.21,73507-Domiciliary Care,Physical Support,THIRD PARTY PAYMENTS,Revenue
Walsall Council,http://opendatacommunities.org/id/metropolitan-district-council/walsall,WC118-86,31/07/2020,ADULT SOCIAL CARE,5 CARE SERVICES LTD,31/07/2020,755.58,73507-Domiciliary Care,Physical Support,THIRD PARTY PAYMENTS,Revenue
Walsall Council,http://opendatacommunities.org/id/metropolitan-district-council/walsall,WC118-87,31/07/2020,ADULT SOCIAL CARE,5 CARE SERVICES LTD,31/07/2020,377.79,73507-Domiciliary Care,Physical Support,THIRD PARTY PAYMENTS,Revenue
Walsall Council,http://opendatacommunities.org/id/metropolitan-district-council/walsall,WC118-88,31/07/2020,ADULT SOCIAL CARE,5 CARE SERVICES LTD,31/07/2020,308.4,73507-Domiciliary Care,Learning Disability Support,THIRD PARTY PAYMENTS,Revenue
Walsall Council,http://opendatacommunities.org/id/metropolitan-district-council/walsall,WC118-89,31/07/2020,ADULT SOCIAL CARE,5 CARE SERVICES LTD,31/07/2020,593.67,73507-Domiciliary Care,Social Support,THIRD PARTY PAYMENTS,Revenue
Walsall Council,http://opendatacommunities.org/id/metropolitan-district-council/walsall,WC118-90,31/07/2020,ADULT SOCIAL CARE,5 CARE SERVICES LTD,31/07/2020,308.4,73507-Domiciliary Care,Physical Support,THIRD PARTY PAYMENTS,Revenue
Walsall Council,http://opendatacommunities.org/id/metropolitan-district-council/walsall,WC118-91,31/07/2020,ADULT SOCIAL CARE,5 CARE SERVICES LTD,31/07/2020,308.4,73507-Domiciliary Care,Learning Disability Support,THIRD PARTY PAYMENTS,Revenue
Walsall Council,http://opendatacommunities.org/id/metropolitan-district-council/walsall,WC118-92,31/07/2020,ADULT SOCIAL CARE,5 CARE SERVICES LTD,31/07/2020,431.76,73507-Domiciliary Care,Physical Support,THIRD PARTY PAYMENTS,Revenue
Walsall Council,http://opendatacommunities.org/id/metropolitan-district-council/walsall,WC118-93,31/07/2020,ADULT SOCIAL CARE,5 CARE SERVICES LTD,31/07/2020,925.2,73507-Domiciliary Care,Physical Support,THIRD PARTY PAYMENTS,Revenue
Walsall Council,http://opendatacommunities.org/id/metropolitan-district-council/walsall,WC118-94,31/07/2020,ADULT SOCIAL CARE,5 CARE SERVICES LTD,31/07/2020,647.64,73507-Domiciliary Care,Mental Health Support,THIRD PARTY PAYMENTS,Revenue
Walsall Council,http://opendatacommunities.org/id/metropolitan-district-council/walsall,WC118-95,31/07/2020,ADULT SOCIAL CARE,5 CARE SERVICES LTD,31/07/2020,323.82,73507-Domiciliary Care,Physical Support,THIRD PARTY PAYMENTS,Revenue
Walsall Council,http://opendatacommunities.org/id/metropolitan-district-council/walsall,WC118-96,31/07/2020,ADULT SOCIAL CARE,ABBEY COURT NURSING & RESIDEN,31/07/2020,"2,308.00",73501-Residential EMI,Physical Support,THIRD PARTY PAYMENTS,Revenue
Walsall Council,http://opendatacommunities.org/id/metropolitan-district-council/walsall,WC118-97,31/07/2020,ADULT SOCIAL CARE,ABBEY COURT NURSING & RESIDEN,31/07/2020,"2,308.00",73501-Residential EMI,Physical Support,THIRD PARTY PAYMENTS,Revenue
Walsall Council,http://opendatacommunities.org/id/metropolitan-district-council/walsall,WC118-98,31/07/2020,ADULT SOCIAL CARE,ABBEY COURT NURSING & RESIDEN,31/07/2020,"2,548.00",73501-Residential EMI,Physical Support,THIRD PARTY PAYMENTS,Revenue
Walsall Council,http://opendatacommunities.org/id/metropolitan-district-council/walsall,WC118-99,31/07/2020,ADULT SOCIAL CARE,ABBEY COURT NURSING & RESIDEN,31/07/2020,"2,308.00",73501-Residential EMI,Support with Memory & Cognition,THIRD PARTY PAYMENTS,Revenue
Walsall Council,http://opendatacommunities.org/id/metropolitan-district-council/walsall,WC118-100,31/07/2020,ADULT SOCIAL CARE,ABBEY COURT NURSING & RESIDEN,31/07/2020,"2,696.00",73503-Nursing EMI,Mental Health Support,THIRD PARTY PAYMENTS,Revenue
Walsall Council,http://opendatacommunities.org/id/metropolitan-district-council/walsall,WC118-101,31/07/2020,ADULT SOCIAL CARE,ABBEY COURT NURSING & RESIDEN,31/07/2020,"2,084.00",73500-Residential,Physical Support,THIRD PARTY PAYMENTS,Revenue
Walsall Council,http://opendatacommunities.org/id/metropolitan-district-council/walsall,WC118-102,31/07/2020,ADULT SOCIAL CARE,ABBEY HEALTHCARE HOMES LTD,31/07/2020,"3,516.40",73500-Residential,Learning Disability Support,THIRD PARTY PAYMENTS,Revenue
Walsall Council,http://opendatacommunities.org/id/metropolitan-district-council/walsall,WC118-103,31/07/2020,ADULT SOCIAL CARE,ABBEY HEALTHCARE HOMES LTD,31/07/2020,"2,372.64",73500-Residential,Physical Support,THIRD PARTY PAYMENTS,Revenue
Walsall Council,http://opendatacommunities.org/id/metropolitan-district-council/walsall,WC118-104,31/07/2020,ADULT SOCIAL CARE,ABBEY HEALTHCARE HOMES LTD,31/07/2020,"3,102.72",73500-Residential,Physical Support,THIRD PARTY PAYMENTS,Revenue
Walsall Council,http://opendatacommunities.org/id/metropolitan-district-council/walsall,WC118-105,31/07/2020,ADULT SOCIAL CARE,ABBEY HEALTHCARE HOMES LTD,31/07/2020,"3,102.72",73500-Residential,Learning Disability Support,THIRD PARTY PAYMENTS,Revenue
Walsall Council,http://opendatacommunities.org/id/metropolitan-district-council/walsall,WC118-106,31/07/2020,ECONOMY & ENVIRONMENT,ABLE INVESTIGATIONS & ENFORCEMENTS LTD,16/07/2020,"5,025.00",73025-Professional Services-Priv Contractor & Other Agencies,Removal of Unauthorised Encampments,THIRD PARTY PAYMENTS,Revenue
Walsall Council,http://opendatacommunities.org/id/metropolitan-district-council/walsall,WC118-107,31/07/2020,ECONOMY & ENVIRONMENT,ABLE INVESTIGATIONS & ENFORCEMENTS LTD,21/07/2020,"1,050.00",73025-Professional Services-Priv Contractor & Other Agencies,Removal of Unauthorised Encampments,THIRD PARTY PAYMENTS,Revenue
Walsall Council,http://opendatacommunities.org/id/metropolitan-district-council/walsall,WC118-108,31/07/2020,ECONOMY & ENVIRONMENT,ABLE INVESTIGATIONS & ENFORCEMENTS LTD,21/07/2020,"1,070.00",73025-Professional Services-Priv Contractor & Other Agencies,Removal of Unauthorised Encampments,THIRD PARTY PAYMENTS,Revenue
Walsall Council,http://opendatacommunities.org/id/metropolitan-district-council/walsall,WC118-109,31/07/2020,CHILDRENS,ABLEWELL CARS,20/07/2020,787.2,52000-Hire of Vehicle with Driver,Home To School Transport,TRANSPORT,Revenue
Walsall Council,http://opendatacommunities.org/id/metropolitan-district-council/walsall,WC118-110,31/07/2020,CHILDRENS,ABLEWELL CARS,20/07/2020,792,52000-Hire of Vehicle with Driver,Home To School Transport,TRANSPORT,Revenue
Walsall Council,http://opendatacommunities.org/id/metropolitan-district-council/walsall,WC118-111,31/07/2020,CHILDRENS,ABLEWELL CARS,20/07/2020,"1,013.00",52000-Hire of Vehicle with Driver,Home To School Transport,TRANSPORT,Revenue
Walsall Council,http://opendatacommunities.org/id/metropolitan-district-council/walsall,WC118-112,31/07/2020,CHILDRENS,ABS TAXIS (ALDRIDGE),20/07/2020,"1,209.60",52000-Hire of Vehicle with Driver,Home To School Transport,TRANSPORT,Revenue
Walsall Council,http://opendatacommunities.org/id/metropolitan-district-council/walsall,WC118-113,31/07/2020,CHILDRENS,ABS TAXIS (ALDRIDGE),20/07/2020,968,52000-Hire of Vehicle with Driver,Home To School Transport,TRANSPORT,Revenue
Walsall Council,http://opendatacommunities.org/id/metropolitan-district-council/walsall,WC118-114,31/07/2020,CHILDRENS,ABU BAKR NURSERY,20/07/2020,640,77200-Transfer Payments-Other Schoolchildren/Student Related Items,Early Years - Social Inclusion Fund - 3/4 Yr Old,TRANSFER PAYMENTS,Revenue
Walsall Council,http://opendatacommunities.org/id/metropolitan-district-council/walsall,WC118-115,30/06/2020,CHILDRENS,ACCALIA CARE SERVICES LTD,10/07/2020,"19,980.00",74036,Independent Residential Homes,THIRD PARTY PAYMENTS,External Residential Care-Oth Agency Provision
Walsall Council,http://opendatacommunities.org/id/metropolitan-district-council/walsall,WC118-116,30/06/2020,CHILDRENS,ACCALIA CARE SERVICES LTD,10/07/2020,"26,402.15",74036,Independent Residential Homes,THIRD PARTY PAYMENTS,External Residential Care-Oth Agency Provision
Walsall Council,http://opendatacommunities.org/id/metropolitan-district-council/walsall,WC118-117,31/07/2020,ADULT SOCIAL CARE,ACCORD - AGE MATTERS,31/07/2020,-254.86,76423-Direct Payments Support,Direct Payment Support Organisations,TRANSFER PAYMENTS,Revenue
Walsall Council,http://opendatacommunities.org/id/metropolitan-district-council/walsall,WC118-118,31/07/2020,ADULT SOCIAL CARE,ACCORD HOUSING ASSOCIATION LIMITED - HOBS MEADOW,31/07/2020,"4,659.64",73500-Residential,Learning Disability Support,THIRD PARTY PAYMENTS,Revenue
Walsall Council,http://opendatacommunities.org/id/metropolitan-district-council/walsall,WC118-119,31/07/2020,ADULT SOCIAL CARE,ACCORD HOUSING ASSOCIATION LIMITED - HOBS MEADOW,31/07/2020,"4,659.64",73500-Residential,Learning Disability Support,THIRD PARTY PAYMENTS,Revenue
Walsall Council,http://opendatacommunities.org/id/metropolitan-district-council/walsall,WC118-120,31/07/2020,ADULT SOCIAL CARE,ACCORD HOUSING ASSOCIATION LIMITED - HOBS MEADOW,31/07/2020,"4,659.64",73500-Residential,Learning Disability Support,THIRD PARTY PAYMENTS,Revenue
Walsall Council,http://opendatacommunities.org/id/metropolitan-district-council/walsall,WC118-121,31/07/2020,ADULT SOCIAL CARE,ACCORD HOUSING ASSOCIATION LIMITED - HOBS MEADOW,31/07/2020,"4,659.64",73500-Residential,Learning Disability Support,THIRD PARTY PAYMENTS,Revenue
Walsall Council,http://opendatacommunities.org/id/metropolitan-district-council/walsall,WC118-122,30/06/2020,CHILDRENS,ACCORD HOUSING ASSOCIATION LTD#135,09/07/2020,396.59,43000,Homelessness Prevention Strategy,PREMISES,Rents
Walsall Council,http://opendatacommunities.org/id/metropolitan-district-council/walsall,WC118-123,31/07/2020,CHILDRENS,ACCORD HOUSING ASSOCIATION LTD#135,14/07/2020,"1,081.64",43000-Rents,Safeguarding & Family Support,PREMISES,Revenue
Walsall Council,http://opendatacommunities.org/id/metropolitan-district-council/walsall,WC118-124,31/07/2020,ADULT SOCIAL CARE,ACCORD HOUSING ASSOCIATION LTD#135,15/07/2020,"1,077.34",73507-Domiciliary Care,Physical Support,THIRD PARTY PAYMENTS,Revenue
Walsall Council,http://opendatacommunities.org/id/metropolitan-district-council/walsall,WC118-125,31/07/2020,ADULT SOCIAL CARE,ACCORD HOUSING ASSOCIATION LTD#135,15/07/2020,"4,374.86",73507-Domiciliary Care,Physical Support,THIRD PARTY PAYMENTS,Revenue
Walsall Council,http://opendatacommunities.org/id/metropolitan-district-council/walsall,WC118-126,31/07/2020,ADULT SOCIAL CARE,ACCORD HOUSING ASSOCIATION LTD#135,15/07/2020,294.98,73507-Domiciliary Care,Physical Support,THIRD PARTY PAYMENTS,Revenue
Walsall Council,http://opendatacommunities.org/id/metropolitan-district-council/walsall,WC118-127,31/07/2020,ADULT SOCIAL CARE,ACCORD HOUSING ASSOCIATION LTD#135,15/07/2020,"1,771.84",73507-Domiciliary Care,Physical Support,THIRD PARTY PAYMENTS,Revenue
Walsall Council,http://opendatacommunities.org/id/metropolitan-district-council/walsall,WC118-128,31/07/2020,ADULT SOCIAL CARE,ACCORD HOUSING ASSOCIATION LTD#135,15/07/2020,982.28,73508-Community Supported Living/Supported Accommodation,Mental Health Support,THIRD PARTY PAYMENTS,Revenue
Walsall Council,http://opendatacommunities.org/id/metropolitan-district-council/walsall,WC118-129,31/07/2020,ADULT SOCIAL CARE,ACCORD HOUSING ASSOCIATION LTD#135,15/07/2020,850.04,73508-Community Supported Living/Supported Accommodation,Mental Health Support,THIRD PARTY PAYMENTS,Revenue
Walsall Council,http://opendatacommunities.org/id/metropolitan-district-council/walsall,WC118-130,31/07/2020,ADULT SOCIAL CARE,ACCORD HOUSING ASSOCIATION LTD#135,15/07/2020,535.08,73507-Domiciliary Care,Physical Support,THIRD PARTY PAYMENTS,Revenue
Walsall Council,http://opendatacommunities.org/id/metropolitan-district-council/walsall,WC118-131,31/07/2020,CHILDRENS,ACCORD HOUSING ASSOCIATION LTD#135,15/07/2020,"1,352.05",43000-Rents,Safeguarding & Family Support,PREMISES,Revenue
Walsall Council,http://opendatacommunities.org/id/metropolitan-district-council/walsall,WC118-132,31/07/2020,CHILDRENS,ACCORD HOUSING ASSOCIATION LTD#135,24/07/2020,374.83,43000-Rents,Homelessness Prevention Strategy,PREMISES,Revenue
Walsall Council,http://opendatacommunities.org/id/metropolitan-district-council/walsall,WC118-133,31/07/2020,RESOURCES AND TRANSFORMATION,ACCORD HOUSING ASSOCIATION LTD#135,24/07/2020,"4,624.64",1045-Private Grants,CFR 1359 Disabled Facilities Grant,CAPITAL,Capital
Walsall Council,http://opendatacommunities.org/id/metropolitan-district-council/walsall,WC118-134,31/07/2020,RESOURCES AND TRANSFORMATION,ACCORD HOUSING ASSOCIATION LTD#135,24/07/2020,"4,444.64",1045-Private Grants,CFR 1359 Disabled Facilities Grant,CAPITAL,Capital
Walsall Council,http://opendatacommunities.org/id/metropolitan-district-council/walsall,WC118-135,31/07/2020,RESOURCES AND TRANSFORMATION,ACCORD HOUSING ASSOCIATION LTD#135,24/07/2020,"4,624.64",1045-Private Grants,CFR 1359 Disabled Facilities Grant,CAPITAL,Capital
Walsall Council,http://opendatacommunities.org/id/metropolitan-district-council/walsall,WC118-136,31/07/2020,RESOURCES AND TRANSFORMATION,ACCORD HOUSING ASSOCIATION LTD#135,24/07/2020,"4,624.64",1045-Private Grants,CFR 1359 Disabled Facilities Grant,CAPITAL,Capital
Walsall Council,http://opendatacommunities.org/id/metropolitan-district-council/walsall,WC118-137,31/07/2020,RESOURCES AND TRANSFORMATION,ACCORD HOUSING ASSOCIATION LTD#135,24/07/2020,"4,504.64",1045-Private Grants,CFR 1359 Disabled Facilities Grant,CAPITAL,Capital
Walsall Council,http://opendatacommunities.org/id/metropolitan-district-council/walsall,WC118-138,31/07/2020,ADULT SOCIAL CARE,ACCORD HOUSING ASSOCIATION LTD#135,29/07/2020,"2,135.17",73508-Community Supported Living/Supported Accommodation,Learning Disability Support,THIRD PARTY PAYMENTS,Revenue
Walsall Council,http://opendatacommunities.org/id/metropolitan-district-council/walsall,WC118-139,31/07/2020,ADULT SOCIAL CARE,ACCORD HOUSING ASSOCIATION LTD#135,29/07/2020,"1,754.13",73507-Domiciliary Care,Physical Support,THIRD PARTY PAYMENTS,Revenue
Walsall Council,http://opendatacommunities.org/id/metropolitan-district-council/walsall,WC118-140,31/07/2020,ADULT SOCIAL CARE,ACCORD HOUSING ASSOCIATION LTD#135,29/07/2020,741.88,73507-Domiciliary Care,Physical Support,THIRD PARTY PAYMENTS,Revenue
Walsall Council,http://opendatacommunities.org/id/metropolitan-district-council/walsall,WC118-141,31/07/2020,ADULT SOCIAL CARE,ACCORD HOUSING ASSOCIATION LTD#135,29/07/2020,470.34,73508-Community Supported Living/Supported Accommodation,Mental Health Support,THIRD PARTY PAYMENTS,Revenue
Walsall Council,http://opendatacommunities.org/id/metropolitan-district-council/walsall,WC118-142,31/07/2020,ADULT SOCIAL CARE,ACCORD HOUSING ASSOCIATION LTD#135,29/07/2020,"2,135.17",73508-Community Supported Living/Supported Accommodation,Learning Disability Support,THIRD PARTY PAYMENTS,Revenue
Walsall Council,http://opendatacommunities.org/id/metropolitan-district-council/walsall,WC118-143,31/07/2020,ADULT SOCIAL CARE,ACCORD HOUSING ASSOCIATION LTD#135,29/07/2020,"1,389.84",73507-Domiciliary Care,Physical Support,THIRD PARTY PAYMENTS,Revenue
Walsall Council,http://opendatacommunities.org/id/metropolitan-district-council/walsall,WC118-144,31/07/2020,ADULT SOCIAL CARE,ACCORD HOUSING ASSOCIATION LTD#135,29/07/2020,"2,135.17",73508-Community Supported Living/Supported Accommodation,Learning Disability Support,THIRD PARTY PAYMENTS,Revenue
Walsall Council,http://opendatacommunities.org/id/metropolitan-district-council/walsall,WC118-145,31/07/2020,ADULT SOCIAL CARE,ACCORD HOUSING ASSOCIATION LTD#135,29/07/2020,"1,385.07",73507-Domiciliary Care,Physical Support,THIRD PARTY PAYMENTS,Revenue
Walsall Council,http://opendatacommunities.org/id/metropolitan-district-council/walsall,WC118-146,31/07/2020,ADULT SOCIAL CARE,ACCORD HOUSING ASSOCIATION LTD#135,29/07/2020,"2,154.09",73508-Community Supported Living/Supported Accommodation,Learning Disability Support,THIRD PARTY PAYMENTS,Revenue
Walsall Council,http://opendatacommunities.org/id/metropolitan-district-council/walsall,WC118-147,31/07/2020,ADULT SOCIAL CARE,ACCORD HOUSING ASSOCIATION LTD#135,29/07/2020,473,73507-Domiciliary Care,Physical Support,THIRD PARTY PAYMENTS,Revenue
Walsall Council,http://opendatacommunities.org/id/metropolitan-district-council/walsall,WC118-148,31/07/2020,ADULT SOCIAL CARE,ACCORD HOUSING ASSOCIATION LTD#135,29/07/2020,"1,567.84",73508-Community Supported Living/Supported Accommodation,Mental Health Support,THIRD PARTY PAYMENTS,Revenue
Walsall Council,http://opendatacommunities.org/id/metropolitan-district-council/walsall,WC118-149,31/07/2020,ADULT SOCIAL CARE,ACCORD HOUSING ASSOCIATION LTD#135,29/07/2020,755.6,73508-Community Supported Living/Supported Accommodation,Mental Health Support,THIRD PARTY PAYMENTS,Revenue
Walsall Council,http://opendatacommunities.org/id/metropolitan-district-council/walsall,WC118-150,31/07/2020,ADULT SOCIAL CARE,ACCORD HOUSING ASSOCIATION LTD#135,29/07/2020,717.8,73508-Community Supported Living/Supported Accommodation,Mental Health Support,THIRD PARTY PAYMENTS,Revenue
Walsall Council,http://opendatacommunities.org/id/metropolitan-district-council/walsall,WC118-151,31/07/2020,ADULT SOCIAL CARE,ACCORD HOUSING ASSOCIATION LTD#135,31/07/2020,"6,503.40",73500-Residential,Learning Disability Support,THIRD PARTY PAYMENTS,Revenue
Walsall Council,http://opendatacommunities.org/id/metropolitan-district-council/walsall,WC118-152,31/07/2020,ADULT SOCIAL CARE,ACCORD HOUSING ASSOCIATION LTD#135,31/07/2020,"6,503.40",73500-Residential,Learning Disability Support,THIRD PARTY PAYMENTS,Revenue
Walsall Council,http://opendatacommunities.org/id/metropolitan-district-council/walsall,WC118-153,31/07/2020,ADULT SOCIAL CARE,ACCORD HOUSING ASSOCIATION LTD#135,31/07/2020,"5,807.56",73500-Residential,Learning Disability Support,THIRD PARTY PAYMENTS,Revenue
Walsall Council,http://opendatacommunities.org/id/metropolitan-district-council/walsall,WC118-154,31/07/2020,CHILDRENS,ACE CARS & MINIBUSES LTD,20/07/2020,"2,490.90",52000-Hire of Vehicle with Driver,Home To School Transport,TRANSPORT,Revenue
Walsall Council,http://opendatacommunities.org/id/metropolitan-district-council/walsall,WC118-155,31/07/2020,CHILDRENS,ACE CARS & MINIBUSES LTD,20/07/2020,"1,813.55",52000-Hire of Vehicle with Driver,Home To School Transport,TRANSPORT,Revenue
Walsall Council,http://opendatacommunities.org/id/metropolitan-district-council/walsall,WC118-156,31/07/2020,CHILDRENS,ACE CARS & MINIBUSES LTD,20/07/2020,928,52000-Hire of Vehicle with Driver,Home To School Transport,TRANSPORT,Revenue
Walsall Council,http://opendatacommunities.org/id/metropolitan-district-council/walsall,WC118-157,31/07/2020,CHILDRENS,ACE CARS & MINIBUSES LTD,20/07/2020,"1,760.00",52000-Hire of Vehicle with Driver,Home To School Transport,TRANSPORT,Revenue
Walsall Council,http://opendatacommunities.org/id/metropolitan-district-council/walsall,WC118-158,31/07/2020,CHILDRENS,ACE CARS & MINIBUSES LTD,20/07/2020,"1,932.00",52000-Hire of Vehicle with Driver,Home To School Transport,TRANSPORT,Revenue
Walsall Council,http://opendatacommunities.org/id/metropolitan-district-council/walsall,WC118-159,31/07/2020,CHILDRENS,ACE CARS & MINIBUSES LTD,20/07/2020,"2,024.00",52000-Hire of Vehicle with Driver,Home To School Transport,TRANSPORT,Revenue
Walsall Council,http://opendatacommunities.org/id/metropolitan-district-council/walsall,WC118-160,31/07/2020,CHILDRENS,ACE CARS & MINIBUSES LTD,20/07/2020,"1,079.00",52000-Hire of Vehicle with Driver,Home To School Transport,TRANSPORT,Revenue
Walsall Council,http://opendatacommunities.org/id/metropolitan-district-council/walsall,WC118-161,31/07/2020,CHILDRENS,ACE CARS & MINIBUSES LTD,20/07/2020,"3,075.00",52000-Hire of Vehicle with Driver,Home To School Transport,TRANSPORT,Revenue
Walsall Council,http://opendatacommunities.org/id/metropolitan-district-council/walsall,WC118-162,31/07/2020,CHILDRENS,ACE CARS & MINIBUSES LTD,20/07/2020,"2,077.65",52000-Hire of Vehicle with Driver,Home To School Transport,TRANSPORT,Revenue
Walsall Council,http://opendatacommunities.org/id/metropolitan-district-council/walsall,WC118-163,31/07/2020,CHILDRENS,ACE CARS & MINIBUSES LTD,20/07/2020,"2,502.90",52000-Hire of Vehicle with Driver,Home To School Transport,TRANSPORT,Revenue
Walsall Council,http://opendatacommunities.org/id/metropolitan-district-council/walsall,WC118-164,31/07/2020,CHILDRENS,ACE CARS & MINIBUSES LTD,20/07/2020,"1,232.00",52000-Hire of Vehicle with Driver,Home To School Transport,TRANSPORT,Revenue
Walsall Council,http://opendatacommunities.org/id/metropolitan-district-council/walsall,WC118-165,31/07/2020,CHILDRENS,ACE CARS & MINIBUSES LTD,20/07/2020,448,52000-Hire of Vehicle with Driver,Home To School Transport,TRANSPORT,Revenue
Walsall Council,http://opendatacommunities.org/id/metropolitan-district-council/walsall,WC118-166,31/07/2020,CHILDRENS,ACE CARS & MINIBUSES LTD,20/07/2020,"1,782.00",52000-Hire of Vehicle with Driver,Home To School Transport,TRANSPORT,Revenue
Walsall Council,http://opendatacommunities.org/id/metropolitan-district-council/walsall,WC118-167,31/07/2020,CHILDRENS,ACE CARS & MINIBUSES LTD,20/07/2020,"1,748.00",52000-Hire of Vehicle with Driver,Home To School Transport,TRANSPORT,Revenue
Walsall Council,http://opendatacommunities.org/id/metropolitan-district-council/walsall,WC118-168,31/07/2020,CHILDRENS,ACE CARS & MINIBUSES LTD,20/07/2020,"2,595.60",52000-Hire of Vehicle with Driver,Home To School Transport,TRANSPORT,Revenue
Walsall Council,http://opendatacommunities.org/id/metropolitan-district-council/walsall,WC118-169,31/07/2020,CHILDRENS,ACE CARS & MINIBUSES LTD,20/07/2020,"2,661.10",52000-Hire of Vehicle with Driver,Home To School Transport,TRANSPORT,Revenue
Walsall Council,http://opendatacommunities.org/id/metropolitan-district-council/walsall,WC118-170,31/07/2020,CHILDRENS,ACE CARS & MINIBUSES LTD,20/07/2020,"1,200.00",52000-Hire of Vehicle with Driver,Home To School Transport,TRANSPORT,Revenue
Walsall Council,http://opendatacommunities.org/id/metropolitan-district-council/walsall,WC118-171,31/07/2020,CHILDRENS,ACE CARS & MINIBUSES LTD,20/07/2020,"1,718.10",52000-Hire of Vehicle with Driver,Home To School Transport,TRANSPORT,Revenue
Walsall Council,http://opendatacommunities.org/id/metropolitan-district-council/walsall,WC118-172,31/07/2020,CHILDRENS,ACE CARS & MINIBUSES LTD,20/07/2020,"2,501.28",52000-Hire of Vehicle with Driver,Home To School Transport,TRANSPORT,Revenue
Walsall Council,http://opendatacommunities.org/id/metropolitan-district-council/walsall,WC118-173,31/07/2020,CHILDRENS,ACE CARS & MINIBUSES LTD,20/07/2020,"1,040.00",52000-Hire of Vehicle with Driver,Home To School Transport,TRANSPORT,Revenue
Walsall Council,http://opendatacommunities.org/id/metropolitan-district-council/walsall,WC118-174,31/07/2020,CHILDRENS,ACE CARS & MINIBUSES LTD,20/07/2020,704,52000-Hire of Vehicle with Driver,Home To School Transport,TRANSPORT,Revenue
Walsall Council,http://opendatacommunities.org/id/metropolitan-district-council/walsall,WC118-175,31/07/2020,CHILDRENS,ACE CARS & MINIBUSES LTD,20/07/2020,640,52000-Hire of Vehicle with Driver,Home To School Transport,TRANSPORT,Revenue
Walsall Council,http://opendatacommunities.org/id/metropolitan-district-council/walsall,WC118-176,31/07/2020,CHILDRENS,ACE CARS & MINIBUSES LTD,20/07/2020,"1,248.00",52000-Hire of Vehicle with Driver,Home To School Transport,TRANSPORT,Revenue
Walsall Council,http://opendatacommunities.org/id/metropolitan-district-council/walsall,WC118-177,31/07/2020,CHILDRENS,ACE CARS & MINIBUSES LTD,20/07/2020,672,52000-Hire of Vehicle with Driver,Home To School Transport,TRANSPORT,Revenue
Walsall Council,http://opendatacommunities.org/id/metropolitan-district-council/walsall,WC118-178,31/07/2020,CHILDRENS,ACE CARS & MINIBUSES LTD,20/07/2020,720,52000-Hire of Vehicle with Driver,Home To School Transport,TRANSPORT,Revenue
Walsall Council,http://opendatacommunities.org/id/metropolitan-district-council/walsall,WC118-179,31/07/2020,CHILDRENS,ACE CARS & MINIBUSES LTD,20/07/2020,"2,208.00",52000-Hire of Vehicle with Driver,Home To School Transport,TRANSPORT,Revenue
Walsall Council,http://opendatacommunities.org/id/metropolitan-district-council/walsall,WC118-180,31/07/2020,CHILDRENS,ACE CARS & MINIBUSES LTD,20/07/2020,"1,738.80",52000-Hire of Vehicle with Driver,Home To School Transport,TRANSPORT,Revenue
Walsall Council,http://opendatacommunities.org/id/metropolitan-district-council/walsall,WC118-181,31/07/2020,CHILDRENS,ACE CARS & MINIBUSES LTD,20/07/2020,"2,049.30",52000-Hire of Vehicle with Driver,Home To School Transport,TRANSPORT,Revenue
Walsall Council,http://opendatacommunities.org/id/metropolitan-district-council/walsall,WC118-182,31/07/2020,CHILDRENS,ACE CARS & MINIBUSES LTD,20/07/2020,"2,282.50",52000-Hire of Vehicle with Driver,Home To School Transport,TRANSPORT,Revenue
Walsall Council,http://opendatacommunities.org/id/metropolitan-district-council/walsall,WC118-183,31/07/2020,CHILDRENS,ACE CARS & MINIBUSES LTD,20/07/2020,952,52000-Hire of Vehicle with Driver,Home To School Transport,TRANSPORT,Revenue
Walsall Council,http://opendatacommunities.org/id/metropolitan-district-council/walsall,WC118-184,31/07/2020,CHILDRENS,ACE CARS & MINIBUSES LTD,20/07/2020,"1,120.00",52000-Hire of Vehicle with Driver,Home To School Transport,TRANSPORT,Revenue
Walsall Council,http://opendatacommunities.org/id/metropolitan-district-council/walsall,WC118-185,31/07/2020,CHILDRENS,ACE CARS & MINIBUSES LTD,20/07/2020,"3,228.70",52000-Hire of Vehicle with Driver,Home To School Transport,TRANSPORT,Revenue
Walsall Council,http://opendatacommunities.org/id/metropolitan-district-council/walsall,WC118-186,31/07/2020,CHILDRENS,ACE CARS & MINIBUSES LTD,20/07/2020,"1,192.80",52000-Hire of Vehicle with Driver,Home To School Transport,TRANSPORT,Revenue
Walsall Council,http://opendatacommunities.org/id/metropolitan-district-council/walsall,WC118-187,31/07/2020,CHILDRENS,ACE CARS & MINIBUSES LTD,20/07/2020,398.4,52000-Hire of Vehicle with Driver,Home To School Transport,TRANSPORT,Revenue
Walsall Council,http://opendatacommunities.org/id/metropolitan-district-council/walsall,WC118-188,31/07/2020,CHILDRENS,ACE CARS & MINIBUSES LTD,20/07/2020,830,52000-Hire of Vehicle with Driver,Home To School Transport,TRANSPORT,Revenue
Walsall Council,http://opendatacommunities.org/id/metropolitan-district-council/walsall,WC118-189,31/07/2020,ADULT SOCIAL CARE,ACEPAY LTD (COTTAGE NUR HOME),22/07/2020,"1,350.94",63000-Professional Fees & Services,"Strategy, Commissioning & Delivery Support",SUPPLIES & SERVICES,Revenue
Walsall Council,http://opendatacommunities.org/id/metropolitan-district-council/walsall,WC118-190,31/07/2020,ADULT SOCIAL CARE,ACEPAY LTD (COTTAGE NUR HOME),31/07/2020,"2,396.00",73502-Nursing,Physical Support,THIRD PARTY PAYMENTS,Revenue
Walsall Council,http://opendatacommunities.org/id/metropolitan-district-council/walsall,WC118-191,31/07/2020,ADULT SOCIAL CARE,ACEPAY LTD (COTTAGE NUR HOME),31/07/2020,"2,396.00",73502-Nursing,Support with Memory & Cognition,THIRD PARTY PAYMENTS,Revenue
Walsall Council,http://opendatacommunities.org/id/metropolitan-district-council/walsall,WC118-192,31/07/2020,ADULT SOCIAL CARE,ACEPAY LTD (COTTAGE NUR HOME),31/07/2020,"2,396.00",73502-Nursing,Physical Support,THIRD PARTY PAYMENTS,Revenue
Walsall Council,http://opendatacommunities.org/id/metropolitan-district-council/walsall,WC118-193,31/07/2020,ADULT SOCIAL CARE,ACEPAY LTD (COTTAGE NUR HOME),31/07/2020,"2,396.00",73502-Nursing,Physical Support,THIRD PARTY PAYMENTS,Revenue
Walsall Council,http://opendatacommunities.org/id/metropolitan-district-council/walsall,WC118-194,31/07/2020,ADULT SOCIAL CARE,ACEPAY LTD (COTTAGE NUR HOME),31/07/2020,"2,044.00",73500-Residential,Physical Support,THIRD PARTY PAYMENTS,Revenue
Walsall Council,http://opendatacommunities.org/id/metropolitan-district-council/walsall,WC118-195,31/07/2020,ADULT SOCIAL CARE,ACEPAY LTD (COTTAGE NUR HOME),31/07/2020,"2,396.00",73502-Nursing,Physical Support,THIRD PARTY PAYMENTS,Revenue
Walsall Council,http://opendatacommunities.org/id/metropolitan-district-council/walsall,WC118-196,31/07/2020,ADULT SOCIAL CARE,ACEPAY LTD (COTTAGE NUR HOME),31/07/2020,"2,396.00",73502-Nursing,Physical Support,THIRD PARTY PAYMENTS,Revenue
Walsall Council,http://opendatacommunities.org/id/metropolitan-district-council/walsall,WC118-197,31/07/2020,ADULT SOCIAL CARE,ACEPAY LTD (COTTAGE NUR HOME),31/07/2020,"2,396.00",73502-Nursing,Physical Support,THIRD PARTY PAYMENTS,Revenue
Walsall Council,http://opendatacommunities.org/id/metropolitan-district-council/walsall,WC118-198,31/07/2020,ADULT SOCIAL CARE,ACEPAY LTD (COTTAGE NUR HOME),31/07/2020,949,73504-Short Stay Residential,Physical Support,THIRD PARTY PAYMENTS,Revenue
Walsall Council,http://opendatacommunities.org/id/metropolitan-district-council/walsall,WC118-199,31/07/2020,ADULT SOCIAL CARE,ACEPAY LTD (COTTAGE NUR HOME),31/07/2020,"2,396.00",73502-Nursing,Support with Memory & Cognition,THIRD PARTY PAYMENTS,Revenue
Walsall Council,http://opendatacommunities.org/id/metropolitan-district-council/walsall,WC118-200,31/07/2020,ADULT SOCIAL CARE,ACEPAY LTD (COTTAGE NUR HOME),31/07/2020,"2,396.00",73502-Nursing,Physical Support,THIRD PARTY PAYMENTS,Revenue
Walsall Council,http://opendatacommunities.org/id/metropolitan-district-council/walsall,WC118-201,31/07/2020,ADULT SOCIAL CARE,ACEPAY LTD (COTTAGE NUR HOME),31/07/2020,"2,396.00",73502-Nursing,Physical Support,THIRD PARTY PAYMENTS,Revenue
Walsall Council,http://opendatacommunities.org/id/metropolitan-district-council/walsall,WC118-202,31/07/2020,ADULT SOCIAL CARE,ACEPAY LTD (COTTAGE NUR HOME),31/07/2020,"2,396.00",73502-Nursing,Social Support,THIRD PARTY PAYMENTS,Revenue
Walsall Council,http://opendatacommunities.org/id/metropolitan-district-council/walsall,WC118-203,31/07/2020,ADULT SOCIAL CARE,ACEPAY LTD (COTTAGE NUR HOME),31/07/2020,"2,396.00",73502-Nursing,Physical Support,THIRD PARTY PAYMENTS,Revenue
Walsall Council,http://opendatacommunities.org/id/metropolitan-district-council/walsall,WC118-204,31/07/2020,ADULT SOCIAL CARE,ACEPAY LTD (COTTAGE NUR HOME),31/07/2020,"2,396.00",73502-Nursing,Support with Memory & Cognition,THIRD PARTY PAYMENTS,Revenue
Walsall Council,http://opendatacommunities.org/id/metropolitan-district-council/walsall,WC118-205,31/07/2020,ADULT SOCIAL CARE,ACEPAY LTD (COTTAGE NUR HOME),31/07/2020,"2,596.00",73502-Nursing,Physical Support,THIRD PARTY PAYMENTS,Revenue
Walsall Council,http://opendatacommunities.org/id/metropolitan-district-council/walsall,WC118-206,31/07/2020,ADULT SOCIAL CARE,ACEPAY LTD (COTTAGE NUR HOME),31/07/2020,"2,396.00",73502-Nursing,Physical Support,THIRD PARTY PAYMENTS,Revenue
Walsall Council,http://opendatacommunities.org/id/metropolitan-district-council/walsall,WC118-207,30/06/2020,CHILDRENS,ACORN FOSTERING SERVICES LTD,10/07/2020,"3,380.00",74037,External Foster Care Provision,THIRD PARTY PAYMENTS,Independent Foster Care-Oth Agency Provision
Walsall Council,http://opendatacommunities.org/id/metropolitan-district-council/walsall,WC118-208,31/07/2020,CHILDRENS,ACORNS CHILDRENS HOSPICE TRUST,29/07/2020,"3,150.00",73500-Residential,Directly Commissioned Nursing Services,THIRD PARTY PAYMENTS,Revenue
Walsall Council,http://opendatacommunities.org/id/metropolitan-district-council/walsall,WC118-209,31/07/2020,ADULT SOCIAL CARE,ACTION ON HEARING LOSS,15/07/2020,"36,000.00",73500-Residential,Learning Disability Support,THIRD PARTY PAYMENTS,Revenue
Walsall Council,http://opendatacommunities.org/id/metropolitan-district-council/walsall,WC118-210,31/07/2020,ADULT SOCIAL CARE,ACTION ON HEARING LOSS,31/07/2020,"9,400.00",73500-Residential,Mental Health Support,THIRD PARTY PAYMENTS,Revenue
Walsall Council,http://opendatacommunities.org/id/metropolitan-district-council/walsall,WC118-211,31/07/2020,ADULT SOCIAL CARE,ACTION ON HEARING LOSS,31/07/2020,"4,800.00",73500-Residential,Learning Disability Support,THIRD PARTY PAYMENTS,Revenue
Walsall Council,http://opendatacommunities.org/id/metropolitan-district-council/walsall,WC118-212,30/06/2020,CHILDRENS,ACTIVE CARE SOLUTIONS LTD,10/07/2020,"2,532.30",74037,External Foster Care Provision,THIRD PARTY PAYMENTS,Independent Foster Care-Oth Agency Provision
Walsall Council,http://opendatacommunities.org/id/metropolitan-district-council/walsall,WC118-213,30/06/2020,CHILDRENS,ACTIVE CARE SOLUTIONS LTD,10/07/2020,"3,156.77",74037,External Foster Care Provision,THIRD PARTY PAYMENTS,Independent Foster Care-Oth Agency Provision
Walsall Council,http://opendatacommunities.org/id/metropolitan-district-council/walsall,WC118-214,31/07/2020,ADULT SOCIAL CARE,ADVANCE HEALTH CARE (UK) LTD,15/07/2020,416.34,73507-Domiciliary Care,Physical Support,THIRD PARTY PAYMENTS,Revenue
Walsall Council,http://opendatacommunities.org/id/metropolitan-district-council/walsall,WC118-215,31/07/2020,ADULT SOCIAL CARE,ADVANCE HEALTH CARE (UK) LTD,15/07/2020,"1,017.72",73507-Domiciliary Care,Learning Disability Support,THIRD PARTY PAYMENTS,Revenue
Walsall Council,http://opendatacommunities.org/id/metropolitan-district-council/walsall,WC118-216,31/07/2020,ADULT SOCIAL CARE,ADVANCE HEALTH CARE (UK) LTD,16/07/2020,485.73,73025-Professional Services-Priv Contractor & Other Agencies,Intermediate Care Service,THIRD PARTY PAYMENTS,Revenue
Walsall Council,http://opendatacommunities.org/id/metropolitan-district-council/walsall,WC118-217,31/07/2020,ADULT SOCIAL CARE,ADVANCE HEALTH CARE (UK) LTD,16/07/2020,485.73,73025-Professional Services-Priv Contractor & Other Agencies,Intermediate Care Service,THIRD PARTY PAYMENTS,Revenue
Walsall Council,http://opendatacommunities.org/id/metropolitan-district-council/walsall,WC118-218,31/07/2020,ADULT SOCIAL CARE,ADVANCE HEALTH CARE (UK) LTD,16/07/2020,277.56,73025-Professional Services-Priv Contractor & Other Agencies,Intermediate Care Service,THIRD PARTY PAYMENTS,Revenue
Walsall Council,http://opendatacommunities.org/id/metropolitan-district-council/walsall,WC118-219,31/07/2020,ADULT SOCIAL CARE,ADVANCE HEALTH CARE (UK) LTD,16/07/2020,501.15,73025-Professional Services-Priv Contractor & Other Agencies,Intermediate Care Service,THIRD PARTY PAYMENTS,Revenue
Walsall Council,http://opendatacommunities.org/id/metropolitan-district-council/walsall,WC118-220,31/07/2020,ADULT SOCIAL CARE,ADVANCE HEALTH CARE (UK) LTD,17/07/2020,485.73,73507-Domiciliary Care,Physical Support,THIRD PARTY PAYMENTS,Revenue
Walsall Council,http://opendatacommunities.org/id/metropolitan-district-council/walsall,WC118-221,31/07/2020,ADULT SOCIAL CARE,ADVANCE HEALTH CARE (UK) LTD,17/07/2020,447.18,73507-Domiciliary Care,Physical Support,THIRD PARTY PAYMENTS,Revenue
Walsall Council,http://opendatacommunities.org/id/metropolitan-district-council/walsall,WC118-222,31/07/2020,ADULT SOCIAL CARE,ADVANCE HEALTH CARE (UK) LTD,17/07/2020,629.72,73507-Domiciliary Care,Physical Support,THIRD PARTY PAYMENTS,Revenue
Walsall Council,http://opendatacommunities.org/id/metropolitan-district-council/walsall,WC118-223,31/07/2020,ADULT SOCIAL CARE,ADVANCE HEALTH CARE (UK) LTD,17/07/2020,501.15,73507-Domiciliary Care,Physical Support,THIRD PARTY PAYMENTS,Revenue
Walsall Council,http://opendatacommunities.org/id/metropolitan-district-council/walsall,WC118-224,31/07/2020,ADULT SOCIAL CARE,ADVANCE HEALTH CARE (UK) LTD,17/07/2020,485.73,73507-Domiciliary Care,Physical Support,THIRD PARTY PAYMENTS,Revenue
Walsall Council,http://opendatacommunities.org/id/metropolitan-district-council/walsall,WC118-225,31/07/2020,ADULT SOCIAL CARE,ADVANCE HEALTH CARE (UK) LTD,17/07/2020,824.97,73507-Domiciliary Care,Physical Support,THIRD PARTY PAYMENTS,Revenue
Walsall Council,http://opendatacommunities.org/id/metropolitan-district-council/walsall,WC118-226,31/07/2020,ADULT SOCIAL CARE,ADVANCE HEALTH CARE (UK) LTD,17/07/2020,485.73,73507-Domiciliary Care,Social Support,THIRD PARTY PAYMENTS,Revenue
Walsall Council,http://opendatacommunities.org/id/metropolitan-district-council/walsall,WC118-227,31/07/2020,ADULT SOCIAL CARE,ADVANCE HEALTH CARE (UK) LTD,17/07/2020,359.8,73507-Domiciliary Care,Physical Support,THIRD PARTY PAYMENTS,Revenue
Walsall Council,http://opendatacommunities.org/id/metropolitan-district-council/walsall,WC118-228,31/07/2020,ADULT SOCIAL CARE,ADVANCE HEALTH CARE (UK) LTD,17/07/2020,277.56,73507-Domiciliary Care,Physical Support,THIRD PARTY PAYMENTS,Revenue
Walsall Council,http://opendatacommunities.org/id/metropolitan-district-council/walsall,WC118-229,31/07/2020,ADULT SOCIAL CARE,ADVANCE HEALTH CARE (UK) LTD,17/07/2020,593.67,73507-Domiciliary Care,Physical Support,THIRD PARTY PAYMENTS,Revenue
Walsall Council,http://opendatacommunities.org/id/metropolitan-district-council/walsall,WC118-230,31/07/2020,ADULT SOCIAL CARE,ADVANCE HEALTH CARE (UK) LTD,17/07/2020,701.61,73507-Domiciliary Care,Physical Support,THIRD PARTY PAYMENTS,Revenue
Walsall Council,http://opendatacommunities.org/id/metropolitan-district-council/walsall,WC118-231,31/07/2020,ADULT SOCIAL CARE,ADVANCE HEALTH CARE (UK) LTD,17/07/2020,431.76,73507-Domiciliary Care,Physical Support,THIRD PARTY PAYMENTS,Revenue
Walsall Council,http://opendatacommunities.org/id/metropolitan-district-council/walsall,WC118-232,31/07/2020,ADULT SOCIAL CARE,ADVANCE HEALTH CARE (UK) LTD,17/07/2020,539.7,73507-Domiciliary Care,Physical Support,THIRD PARTY PAYMENTS,Revenue
Walsall Council,http://opendatacommunities.org/id/metropolitan-district-council/walsall,WC118-233,31/07/2020,ADULT SOCIAL CARE,ADVANCE HEALTH CARE (UK) LTD,17/07/2020,404.81,73507-Domiciliary Care,Physical Support,THIRD PARTY PAYMENTS,Revenue
Walsall Council,http://opendatacommunities.org/id/metropolitan-district-council/walsall,WC118-234,31/07/2020,ADULT SOCIAL CARE,ADVANCE HEALTH CARE (UK) LTD,17/07/2020,485.73,73507-Domiciliary Care,Physical Support,THIRD PARTY PAYMENTS,Revenue
Walsall Council,http://opendatacommunities.org/id/metropolitan-district-council/walsall,WC118-235,31/07/2020,ADULT SOCIAL CARE,ADVANCE HEALTH CARE (UK) LTD,17/07/2020,431.76,73507-Domiciliary Care,Physical Support,THIRD PARTY PAYMENTS,Revenue
Walsall Council,http://opendatacommunities.org/id/metropolitan-district-council/walsall,WC118-236,31/07/2020,ADULT SOCIAL CARE,ADVANCE HEALTH CARE (UK) LTD,17/07/2020,485.73,73507-Domiciliary Care,Physical Support,THIRD PARTY PAYMENTS,Revenue
Walsall Council,http://opendatacommunities.org/id/metropolitan-district-council/walsall,WC118-237,31/07/2020,ADULT SOCIAL CARE,ADVANCE HEALTH CARE (UK) LTD,17/07/2020,295.55,73507-Domiciliary Care,Physical Support,THIRD PARTY PAYMENTS,Revenue
Walsall Council,http://opendatacommunities.org/id/metropolitan-district-council/walsall,WC118-238,31/07/2020,ADULT SOCIAL CARE,ADVANCE HEALTH CARE (UK) LTD,17/07/2020,431.76,73507-Domiciliary Care,Physical Support,THIRD PARTY PAYMENTS,Revenue
Walsall Council,http://opendatacommunities.org/id/metropolitan-district-council/walsall,WC118-239,31/07/2020,ADULT SOCIAL CARE,ADVANCE HEALTH CARE (UK) LTD,17/07/2020,485.73,73507-Domiciliary Care,Physical Support,THIRD PARTY PAYMENTS,Revenue
Walsall Council,http://opendatacommunities.org/id/metropolitan-district-council/walsall,WC118-240,31/07/2020,ADULT SOCIAL CARE,ADVANCE HEALTH CARE (UK) LTD,17/07/2020,485.73,73507-Domiciliary Care,Physical Support,THIRD PARTY PAYMENTS,Revenue
Walsall Council,http://opendatacommunities.org/id/metropolitan-district-council/walsall,WC118-241,31/07/2020,ADULT SOCIAL CARE,ADVANCE HEALTH CARE (UK) LTD,17/07/2020,"-1,171.92",73507-Domiciliary Care,Physical Support,THIRD PARTY PAYMENTS,Revenue
Walsall Council,http://opendatacommunities.org/id/metropolitan-district-council/walsall,WC118-242,31/07/2020,ADULT SOCIAL CARE,ADVANCE HEALTH CARE (UK) LTD,17/07/2020,"3,538.89",73507-Domiciliary Care,Physical Support,THIRD PARTY PAYMENTS,Revenue
Walsall Council,http://opendatacommunities.org/id/metropolitan-district-council/walsall,WC118-243,31/07/2020,ADULT SOCIAL CARE,ADVANCE HEALTH CARE (UK) LTD,17/07/2020,-624.51,73507-Domiciliary Care,Physical Support,THIRD PARTY PAYMENTS,Revenue
Walsall Council,http://opendatacommunities.org/id/metropolitan-district-council/walsall,WC118-244,31/07/2020,ADULT SOCIAL CARE,ADVANCE HEALTH CARE (UK) LTD,17/07/2020,616.8,73507-Domiciliary Care,Physical Support,THIRD PARTY PAYMENTS,Revenue
Walsall Council,http://opendatacommunities.org/id/metropolitan-district-council/walsall,WC118-245,31/07/2020,ADULT SOCIAL CARE,ADVANCE HEALTH CARE (UK) LTD,17/07/2020,277.56,73507-Domiciliary Care,Physical Support,THIRD PARTY PAYMENTS,Revenue
Walsall Council,http://opendatacommunities.org/id/metropolitan-district-council/walsall,WC118-246,31/07/2020,ADULT SOCIAL CARE,ADVANCE HEALTH CARE (UK) LTD,17/07/2020,262.14,73507-Domiciliary Care,Physical Support,THIRD PARTY PAYMENTS,Revenue
Walsall Council,http://opendatacommunities.org/id/metropolitan-district-council/walsall,WC118-247,31/07/2020,ADULT SOCIAL CARE,ADVANCE HEALTH CARE (UK) LTD,17/07/2020,"1,912.08",73507-Domiciliary Care,Physical Support,THIRD PARTY PAYMENTS,Revenue
Walsall Council,http://opendatacommunities.org/id/metropolitan-district-council/walsall,WC118-248,31/07/2020,ADULT SOCIAL CARE,ADVANCE HEALTH CARE (UK) LTD,17/07/2020,431.76,73507-Domiciliary Care,Social Support,THIRD PARTY PAYMENTS,Revenue
Walsall Council,http://opendatacommunities.org/id/metropolitan-district-council/walsall,WC118-249,31/07/2020,ADULT SOCIAL CARE,ADVANCE HEALTH CARE (UK) LTD,17/07/2020,462.6,73507-Domiciliary Care,Physical Support,THIRD PARTY PAYMENTS,Revenue
Walsall Council,http://opendatacommunities.org/id/metropolitan-district-council/walsall,WC118-250,31/07/2020,ADULT SOCIAL CARE,ADVANCE HEALTH CARE (UK) LTD,17/07/2020,524.28,73507-Domiciliary Care,Physical Support,THIRD PARTY PAYMENTS,Revenue
Walsall Council,http://opendatacommunities.org/id/metropolitan-district-council/walsall,WC118-251,31/07/2020,ADULT SOCIAL CARE,ADVANCE HEALTH CARE (UK) LTD,17/07/2020,431.76,73507-Domiciliary Care,Physical Support,THIRD PARTY PAYMENTS,Revenue
Walsall Council,http://opendatacommunities.org/id/metropolitan-district-council/walsall,WC118-252,31/07/2020,ADULT SOCIAL CARE,ADVANCE HEALTH CARE (UK) LTD,17/07/2020,485.73,73507-Domiciliary Care,Physical Support,THIRD PARTY PAYMENTS,Revenue
Walsall Council,http://opendatacommunities.org/id/metropolitan-district-council/walsall,WC118-253,31/07/2020,ADULT SOCIAL CARE,ADVANCE HEALTH CARE (UK) LTD,17/07/2020,-555.12,73507-Domiciliary Care,Physical Support,THIRD PARTY PAYMENTS,Revenue
Walsall Council,http://opendatacommunities.org/id/metropolitan-district-council/walsall,WC118-254,31/07/2020,ADULT SOCIAL CARE,ADVANCE HEALTH CARE (UK) LTD,17/07/2020,485.8,73507-Domiciliary Care,Physical Support,THIRD PARTY PAYMENTS,Revenue
Walsall Council,http://opendatacommunities.org/id/metropolitan-district-council/walsall,WC118-255,31/07/2020,ADULT SOCIAL CARE,ADVANCE HEALTH CARE (UK) LTD,17/07/2020,501.15,73507-Domiciliary Care,Physical Support,THIRD PARTY PAYMENTS,Revenue
Walsall Council,http://opendatacommunities.org/id/metropolitan-district-council/walsall,WC118-256,31/07/2020,ADULT SOCIAL CARE,ADVANCE HEALTH CARE (UK) LTD,17/07/2020,431.76,73507-Domiciliary Care,Physical Support,THIRD PARTY PAYMENTS,Revenue
Walsall Council,http://opendatacommunities.org/id/metropolitan-district-council/walsall,WC118-257,31/07/2020,ADULT SOCIAL CARE,ADVANCE HEALTH CARE (UK) LTD,17/07/2020,593.88,73507-Domiciliary Care,Physical Support,THIRD PARTY PAYMENTS,Revenue
Walsall Council,http://opendatacommunities.org/id/metropolitan-district-council/walsall,WC118-258,31/07/2020,ADULT SOCIAL CARE,ADVANCE HEALTH CARE (UK) LTD,17/07/2020,485.73,73507-Domiciliary Care,Physical Support,THIRD PARTY PAYMENTS,Revenue
Walsall Council,http://opendatacommunities.org/id/metropolitan-district-council/walsall,WC118-259,31/07/2020,ADULT SOCIAL CARE,ADVANCE HEALTH CARE (UK) LTD,17/07/2020,863.52,73507-Domiciliary Care,Social Support,THIRD PARTY PAYMENTS,Revenue
Walsall Council,http://opendatacommunities.org/id/metropolitan-district-council/walsall,WC118-260,31/07/2020,ADULT SOCIAL CARE,ADVANCE HEALTH CARE (UK) LTD,17/07/2020,"1,195.05",73507-Domiciliary Care,Physical Support,THIRD PARTY PAYMENTS,Revenue
Walsall Council,http://opendatacommunities.org/id/metropolitan-district-council/walsall,WC118-261,31/07/2020,ADULT SOCIAL CARE,ADVANCE HEALTH CARE (UK) LTD,17/07/2020,"-1,110.24",73507-Domiciliary Care,Social Support,THIRD PARTY PAYMENTS,Revenue
Walsall Council,http://opendatacommunities.org/id/metropolitan-district-council/walsall,WC118-262,31/07/2020,ADULT SOCIAL CARE,ADVANCE HEALTH CARE (UK) LTD,17/07/2020,323.82,73507-Domiciliary Care,Social Support,THIRD PARTY PAYMENTS,Revenue
Walsall Council,http://opendatacommunities.org/id/metropolitan-district-council/walsall,WC118-263,31/07/2020,ADULT SOCIAL CARE,ADVANCE HEALTH CARE (UK) LTD,17/07/2020,377.79,73507-Domiciliary Care,Physical Support,THIRD PARTY PAYMENTS,Revenue
Walsall Council,http://opendatacommunities.org/id/metropolitan-district-council/walsall,WC118-264,31/07/2020,ADULT SOCIAL CARE,ADVANCE HEALTH CARE (UK) LTD,17/07/2020,339.24,73507-Domiciliary Care,Physical Support,THIRD PARTY PAYMENTS,Revenue
Walsall Council,http://opendatacommunities.org/id/metropolitan-district-council/walsall,WC118-265,31/07/2020,ADULT SOCIAL CARE,ADVANCE HEALTH CARE (UK) LTD,17/07/2020,431.76,73507-Domiciliary Care,Physical Support,THIRD PARTY PAYMENTS,Revenue
Walsall Council,http://opendatacommunities.org/id/metropolitan-district-council/walsall,WC118-266,31/07/2020,ADULT SOCIAL CARE,ADVANCE HEALTH CARE (UK) LTD,17/07/2020,377.79,73507-Domiciliary Care,Physical Support,THIRD PARTY PAYMENTS,Revenue
Walsall Council,http://opendatacommunities.org/id/metropolitan-district-council/walsall,WC118-267,31/07/2020,ADULT SOCIAL CARE,ADVANCE HEALTH CARE (UK) LTD,17/07/2020,377.79,73507-Domiciliary Care,Physical Support,THIRD PARTY PAYMENTS,Revenue
Walsall Council,http://opendatacommunities.org/id/metropolitan-district-council/walsall,WC118-268,31/07/2020,ADULT SOCIAL CARE,ADVANCE HEALTH CARE (UK) LTD,17/07/2020,485.73,73507-Domiciliary Care,Physical Support,THIRD PARTY PAYMENTS,Revenue
Walsall Council,http://opendatacommunities.org/id/metropolitan-district-council/walsall,WC118-269,31/07/2020,ADULT SOCIAL CARE,ADVANCE HEALTH CARE (UK) LTD,17/07/2020,824.97,73507-Domiciliary Care,Physical Support,THIRD PARTY PAYMENTS,Revenue
Walsall Council,http://opendatacommunities.org/id/metropolitan-district-council/walsall,WC118-270,31/07/2020,ADULT SOCIAL CARE,ADVANCE HEALTH CARE (UK) LTD,17/07/2020,485.73,73507-Domiciliary Care,Social Support,THIRD PARTY PAYMENTS,Revenue
Walsall Council,http://opendatacommunities.org/id/metropolitan-district-council/walsall,WC118-271,31/07/2020,ADULT SOCIAL CARE,ADVANCE HEALTH CARE (UK) LTD,17/07/2020,359.8,73507-Domiciliary Care,Physical Support,THIRD PARTY PAYMENTS,Revenue
Walsall Council,http://opendatacommunities.org/id/metropolitan-district-council/walsall,WC118-272,31/07/2020,ADULT SOCIAL CARE,ADVANCE HEALTH CARE (UK) LTD,17/07/2020,593.88,73507-Domiciliary Care,Physical Support,THIRD PARTY PAYMENTS,Revenue
Walsall Council,http://opendatacommunities.org/id/metropolitan-district-council/walsall,WC118-273,31/07/2020,ADULT SOCIAL CARE,ADVANCE HEALTH CARE (UK) LTD,17/07/2020,478.02,73507-Domiciliary Care,Physical Support,THIRD PARTY PAYMENTS,Revenue
Walsall Council,http://opendatacommunities.org/id/metropolitan-district-council/walsall,WC118-274,31/07/2020,ADULT SOCIAL CARE,ADVANCE HEALTH CARE (UK) LTD,17/07/2020,485.73,73507-Domiciliary Care,Physical Support,THIRD PARTY PAYMENTS,Revenue
Walsall Council,http://opendatacommunities.org/id/metropolitan-district-council/walsall,WC118-275,31/07/2020,ADULT SOCIAL CARE,ADVANCE HEALTH CARE (UK) LTD,17/07/2020,863.52,73507-Domiciliary Care,Social Support,THIRD PARTY PAYMENTS,Revenue
Walsall Council,http://opendatacommunities.org/id/metropolitan-district-council/walsall,WC118-276,31/07/2020,ADULT SOCIAL CARE,ADVANCE HEALTH CARE (UK) LTD,17/07/2020,323.82,73507-Domiciliary Care,Social Support,THIRD PARTY PAYMENTS,Revenue
Walsall Council,http://opendatacommunities.org/id/metropolitan-district-council/walsall,WC118-277,31/07/2020,ADULT SOCIAL CARE,ADVANCE HEALTH CARE (UK) LTD,17/07/2020,539.7,73507-Domiciliary Care,Physical Support,THIRD PARTY PAYMENTS,Revenue
Walsall Council,http://opendatacommunities.org/id/metropolitan-district-council/walsall,WC118-278,31/07/2020,ADULT SOCIAL CARE,ADVANCE HEALTH CARE (UK) LTD,17/07/2020,404.81,73507-Domiciliary Care,Physical Support,THIRD PARTY PAYMENTS,Revenue
Walsall Council,http://opendatacommunities.org/id/metropolitan-district-council/walsall,WC118-279,31/07/2020,ADULT SOCIAL CARE,ADVANCE HEALTH CARE (UK) LTD,17/07/2020,431.76,73507-Domiciliary Care,Physical Support,THIRD PARTY PAYMENTS,Revenue
Walsall Council,http://opendatacommunities.org/id/metropolitan-district-council/walsall,WC118-280,31/07/2020,ADULT SOCIAL CARE,ADVANCE HEALTH CARE (UK) LTD,17/07/2020,485.73,73507-Domiciliary Care,Physical Support,THIRD PARTY PAYMENTS,Revenue
Walsall Council,http://opendatacommunities.org/id/metropolitan-district-council/walsall,WC118-281,31/07/2020,ADULT SOCIAL CARE,ADVANCE HEALTH CARE (UK) LTD,17/07/2020,485.73,73507-Domiciliary Care,Physical Support,THIRD PARTY PAYMENTS,Revenue
Walsall Council,http://opendatacommunities.org/id/metropolitan-district-council/walsall,WC118-282,31/07/2020,ADULT SOCIAL CARE,ADVANCE HEALTH CARE (UK) LTD,17/07/2020,431.76,73507-Domiciliary Care,Physical Support,THIRD PARTY PAYMENTS,Revenue
Walsall Council,http://opendatacommunities.org/id/metropolitan-district-council/walsall,WC118-283,31/07/2020,ADULT SOCIAL CARE,ADVANCE HEALTH CARE (UK) LTD,17/07/2020,485.73,73507-Domiciliary Care,Physical Support,THIRD PARTY PAYMENTS,Revenue
Walsall Council,http://opendatacommunities.org/id/metropolitan-district-council/walsall,WC118-284,31/07/2020,ADULT SOCIAL CARE,ADVANCE HEALTH CARE (UK) LTD,17/07/2020,431.76,73507-Domiciliary Care,Physical Support,THIRD PARTY PAYMENTS,Revenue
Walsall Council,http://opendatacommunities.org/id/metropolitan-district-council/walsall,WC118-285,31/07/2020,ADULT SOCIAL CARE,ADVANCE HEALTH CARE (UK) LTD,17/07/2020,377.79,73507-Domiciliary Care,Physical Support,THIRD PARTY PAYMENTS,Revenue
Walsall Council,http://opendatacommunities.org/id/metropolitan-district-council/walsall,WC118-286,31/07/2020,ADULT SOCIAL CARE,ADVANCE HEALTH CARE (UK) LTD,17/07/2020,462.6,73507-Domiciliary Care,Physical Support,THIRD PARTY PAYMENTS,Revenue
Walsall Council,http://opendatacommunities.org/id/metropolitan-district-council/walsall,WC118-287,31/07/2020,ADULT SOCIAL CARE,ADVANCE HEALTH CARE (UK) LTD,17/07/2020,539.7,73507-Domiciliary Care,Physical Support,THIRD PARTY PAYMENTS,Revenue
Walsall Council,http://opendatacommunities.org/id/metropolitan-district-council/walsall,WC118-288,31/07/2020,ADULT SOCIAL CARE,ADVANCE HEALTH CARE (UK) LTD,17/07/2020,524.28,73507-Domiciliary Care,Physical Support,THIRD PARTY PAYMENTS,Revenue
Walsall Council,http://opendatacommunities.org/id/metropolitan-district-council/walsall,WC118-289,31/07/2020,ADULT SOCIAL CARE,ADVANCE HEALTH CARE (UK) LTD,17/07/2020,431.76,73507-Domiciliary Care,Physical Support,THIRD PARTY PAYMENTS,Revenue
Walsall Council,http://opendatacommunities.org/id/metropolitan-district-council/walsall,WC118-290,31/07/2020,ADULT SOCIAL CARE,ADVANCE HEALTH CARE (UK) LTD,17/07/2020,485.73,73507-Domiciliary Care,Physical Support,THIRD PARTY PAYMENTS,Revenue
Walsall Council,http://opendatacommunities.org/id/metropolitan-district-council/walsall,WC118-291,31/07/2020,ADULT SOCIAL CARE,ADVANCE HEALTH CARE (UK) LTD,17/07/2020,269.85,73507-Domiciliary Care,Physical Support,THIRD PARTY PAYMENTS,Revenue
Walsall Council,http://opendatacommunities.org/id/metropolitan-district-council/walsall,WC118-292,31/07/2020,ADULT SOCIAL CARE,ADVANCE HEALTH CARE (UK) LTD,17/07/2020,485.8,73507-Domiciliary Care,Physical Support,THIRD PARTY PAYMENTS,Revenue
Walsall Council,http://opendatacommunities.org/id/metropolitan-district-council/walsall,WC118-293,31/07/2020,ADULT SOCIAL CARE,ADVANCE HEALTH CARE (UK) LTD,17/07/2020,501.15,73507-Domiciliary Care,Physical Support,THIRD PARTY PAYMENTS,Revenue
Walsall Council,http://opendatacommunities.org/id/metropolitan-district-council/walsall,WC118-294,31/07/2020,ADULT SOCIAL CARE,ADVANCE HEALTH CARE (UK) LTD,17/07/2020,431.76,73507-Domiciliary Care,Physical Support,THIRD PARTY PAYMENTS,Revenue
Walsall Council,http://opendatacommunities.org/id/metropolitan-district-council/walsall,WC118-295,31/07/2020,ADULT SOCIAL CARE,ADVANCE HEALTH CARE (UK) LTD,17/07/2020,431.76,73507-Domiciliary Care,Physical Support,THIRD PARTY PAYMENTS,Revenue
Walsall Council,http://opendatacommunities.org/id/metropolitan-district-council/walsall,WC118-296,31/07/2020,ADULT SOCIAL CARE,ADVANCE HEALTH CARE (UK) LTD,17/07/2020,431.76,73507-Domiciliary Care,Physical Support,THIRD PARTY PAYMENTS,Revenue
Walsall Council,http://opendatacommunities.org/id/metropolitan-district-council/walsall,WC118-297,31/07/2020,ADULT SOCIAL CARE,ADVANCE HEALTH CARE (UK) LTD,17/07/2020,485.73,73507-Domiciliary Care,Physical Support,THIRD PARTY PAYMENTS,Revenue
Walsall Council,http://opendatacommunities.org/id/metropolitan-district-council/walsall,WC118-298,31/07/2020,ADULT SOCIAL CARE,ADVANCE HEALTH CARE (UK) LTD,17/07/2020,277.56,73507-Domiciliary Care,Physical Support,THIRD PARTY PAYMENTS,Revenue
Walsall Council,http://opendatacommunities.org/id/metropolitan-district-council/walsall,WC118-299,31/07/2020,ADULT SOCIAL CARE,ADVANCE HEALTH CARE (UK) LTD,17/07/2020,485.73,73507-Domiciliary Care,Physical Support,THIRD PARTY PAYMENTS,Revenue
Walsall Council,http://opendatacommunities.org/id/metropolitan-district-council/walsall,WC118-300,31/07/2020,ADULT SOCIAL CARE,ADVANCE HEALTH CARE (UK) LTD,17/07/2020,485.73,73507-Domiciliary Care,Physical Support,THIRD PARTY PAYMENTS,Revenue
Walsall Council,http://opendatacommunities.org/id/metropolitan-district-council/walsall,WC118-301,31/07/2020,ADULT SOCIAL CARE,ADVANCE HEALTH CARE (UK) LTD,17/07/2020,431.76,73507-Domiciliary Care,Physical Support,THIRD PARTY PAYMENTS,Revenue
Walsall Council,http://opendatacommunities.org/id/metropolitan-district-council/walsall,WC118-302,31/07/2020,ADULT SOCIAL CARE,ADVANCE HEALTH CARE (UK) LTD,17/07/2020,377.79,73507-Domiciliary Care,Physical Support,THIRD PARTY PAYMENTS,Revenue
Walsall Council,http://opendatacommunities.org/id/metropolitan-district-council/walsall,WC118-303,31/07/2020,ADULT SOCIAL CARE,ADVANCE HEALTH CARE (UK) LTD,17/07/2020,377.79,73507-Domiciliary Care,Physical Support,THIRD PARTY PAYMENTS,Revenue
Walsall Council,http://opendatacommunities.org/id/metropolitan-district-council/walsall,WC118-304,31/07/2020,ADULT SOCIAL CARE,ADVANCE HEALTH CARE (UK) LTD,17/07/2020,485.73,73507-Domiciliary Care,Physical Support,THIRD PARTY PAYMENTS,Revenue
Walsall Council,http://opendatacommunities.org/id/metropolitan-district-council/walsall,WC118-305,31/07/2020,ADULT SOCIAL CARE,ADVANCE HEALTH CARE (UK) LTD,17/07/2020,447.18,73507-Domiciliary Care,Physical Support,THIRD PARTY PAYMENTS,Revenue
Walsall Council,http://opendatacommunities.org/id/metropolitan-district-council/walsall,WC118-306,31/07/2020,ADULT SOCIAL CARE,ADVANCE HEALTH CARE (UK) LTD,17/07/2020,629.72,73507-Domiciliary Care,Physical Support,THIRD PARTY PAYMENTS,Revenue
Walsall Council,http://opendatacommunities.org/id/metropolitan-district-council/walsall,WC118-307,31/07/2020,ADULT SOCIAL CARE,ADVANCE HEALTH CARE (UK) LTD,17/07/2020,501.15,73507-Domiciliary Care,Physical Support,THIRD PARTY PAYMENTS,Revenue
Walsall Council,http://opendatacommunities.org/id/metropolitan-district-council/walsall,WC118-308,31/07/2020,ADULT SOCIAL CARE,ADVANCE HEALTH CARE (UK) LTD,17/07/2020,277.56,73507-Domiciliary Care,Physical Support,THIRD PARTY PAYMENTS,Revenue
Walsall Council,http://opendatacommunities.org/id/metropolitan-district-council/walsall,WC118-309,31/07/2020,ADULT SOCIAL CARE,ADVANCE HEALTH CARE (UK) LTD,17/07/2020,593.67,73507-Domiciliary Care,Physical Support,THIRD PARTY PAYMENTS,Revenue
Walsall Council,http://opendatacommunities.org/id/metropolitan-district-council/walsall,WC118-310,31/07/2020,ADULT SOCIAL CARE,ADVANCE HEALTH CARE (UK) LTD,17/07/2020,701.61,73507-Domiciliary Care,Physical Support,THIRD PARTY PAYMENTS,Revenue
Walsall Council,http://opendatacommunities.org/id/metropolitan-district-council/walsall,WC118-311,31/07/2020,ADULT SOCIAL CARE,ADVANCE HEALTH CARE (UK) LTD,17/07/2020,431.76,73507-Domiciliary Care,Social Support,THIRD PARTY PAYMENTS,Revenue
Walsall Council,http://opendatacommunities.org/id/metropolitan-district-council/walsall,WC118-312,31/07/2020,ADULT SOCIAL CARE,ADVANCE HEALTH CARE (UK) LTD,17/07/2020,485.73,73025-Professional Services-Priv Contractor & Other Agencies,Intermediate Care Service,THIRD PARTY PAYMENTS,Revenue
Walsall Council,http://opendatacommunities.org/id/metropolitan-district-council/walsall,WC118-313,31/07/2020,ADULT SOCIAL CARE,ADVANCE HEALTH CARE (UK) LTD,20/07/2020,462.6,73025-Professional Services-Priv Contractor & Other Agencies,Intermediate Care Service,THIRD PARTY PAYMENTS,Revenue
Walsall Council,http://opendatacommunities.org/id/metropolitan-district-council/walsall,WC118-314,31/07/2020,ADULT SOCIAL CARE,ADVANCE HEALTH CARE (UK) LTD,20/07/2020,493.44,73025-Professional Services-Priv Contractor & Other Agencies,Intermediate Care Service,THIRD PARTY PAYMENTS,Revenue
Walsall Council,http://opendatacommunities.org/id/metropolitan-district-council/walsall,WC118-315,31/07/2020,ADULT SOCIAL CARE,ADVANCE HEALTH CARE (UK) LTD,20/07/2020,485.73,73025-Professional Services-Priv Contractor & Other Agencies,Intermediate Care Service,THIRD PARTY PAYMENTS,Revenue
Walsall Council,http://opendatacommunities.org/id/metropolitan-district-council/walsall,WC118-316,31/07/2020,ADULT SOCIAL CARE,ADVANCE HEALTH CARE (UK) LTD,20/07/2020,485.73,73025-Professional Services-Priv Contractor & Other Agencies,Intermediate Care Service,THIRD PARTY PAYMENTS,Revenue
Walsall Council,http://opendatacommunities.org/id/metropolitan-district-council/walsall,WC118-317,31/07/2020,ADULT SOCIAL CARE,ADVANCE HEALTH CARE (UK) LTD,20/07/2020,485.73,73025-Professional Services-Priv Contractor & Other Agencies,Intermediate Care Service,THIRD PARTY PAYMENTS,Revenue
Walsall Council,http://opendatacommunities.org/id/metropolitan-district-council/walsall,WC118-318,31/07/2020,ADULT SOCIAL CARE,ADVANCE HEALTH CARE (UK) LTD,20/07/2020,485.73,73025-Professional Services-Priv Contractor & Other Agencies,Intermediate Care Service,THIRD PARTY PAYMENTS,Revenue
Walsall Council,http://opendatacommunities.org/id/metropolitan-district-council/walsall,WC118-319,31/07/2020,ADULT SOCIAL CARE,ADVANCE HEALTH CARE (UK) LTD,20/07/2020,485.73,73025-Professional Services-Priv Contractor & Other Agencies,Intermediate Care Service,THIRD PARTY PAYMENTS,Revenue
Walsall Council,http://opendatacommunities.org/id/metropolitan-district-council/walsall,WC118-320,31/07/2020,ADULT SOCIAL CARE,ADVANCE HEALTH CARE (UK) LTD,22/07/2020,447.18,73025-Professional Services-Priv Contractor & Other Agencies,Intermediate Care Service,THIRD PARTY PAYMENTS,Revenue
Walsall Council,http://opendatacommunities.org/id/metropolitan-district-council/walsall,WC118-321,31/07/2020,ADULT SOCIAL CARE,ADVANCE HEALTH CARE (UK) LTD,22/07/2020,485.73,73025-Professional Services-Priv Contractor & Other Agencies,Intermediate Care Service,THIRD PARTY PAYMENTS,Revenue
Walsall Council,http://opendatacommunities.org/id/metropolitan-district-council/walsall,WC118-322,31/07/2020,ADULT SOCIAL CARE,ADVANCE HEALTH CARE (UK) LTD,22/07/2020,485.73,73025-Professional Services-Priv Contractor & Other Agencies,Intermediate Care Service,THIRD PARTY PAYMENTS,Revenue
Walsall Council,http://opendatacommunities.org/id/metropolitan-district-council/walsall,WC118-323,31/07/2020,ADULT SOCIAL CARE,ADVANCE HEALTH CARE (UK) LTD,22/07/2020,277.56,73025-Professional Services-Priv Contractor & Other Agencies,Intermediate Care Service,THIRD PARTY PAYMENTS,Revenue
Walsall Council,http://opendatacommunities.org/id/metropolitan-district-council/walsall,WC118-324,31/07/2020,ADULT SOCIAL CARE,ADVANCE HEALTH CARE (UK) LTD,22/07/2020,485.73,73025-Professional Services-Priv Contractor & Other Agencies,Intermediate Care Service,THIRD PARTY PAYMENTS,Revenue
Walsall Council,http://opendatacommunities.org/id/metropolitan-district-council/walsall,WC118-325,31/07/2020,ADULT SOCIAL CARE,ADVANCE HEALTH CARE (UK) LTD,22/07/2020,277.56,73025-Professional Services-Priv Contractor & Other Agencies,Intermediate Care Service,THIRD PARTY PAYMENTS,Revenue
Walsall Council,http://opendatacommunities.org/id/metropolitan-district-council/walsall,WC118-326,31/07/2020,ADULT SOCIAL CARE,ADVANCE HEALTH CARE (UK) LTD,22/07/2020,485.73,73025-Professional Services-Priv Contractor & Other Agencies,Intermediate Care Service,THIRD PARTY PAYMENTS,Revenue
Walsall Council,http://opendatacommunities.org/id/metropolitan-district-council/walsall,WC118-327,31/07/2020,ADULT SOCIAL CARE,ADVANCE HEALTH CARE (UK) LTD,29/07/2020,486.05,73025-Professional Services-Priv Contractor & Other Agencies,Intermediate Care Service,THIRD PARTY PAYMENTS,Revenue
Walsall Council,http://opendatacommunities.org/id/metropolitan-district-council/walsall,WC118-328,31/07/2020,ADULT SOCIAL CARE,ADVANCE HEALTH CARE (UK) LTD,29/07/2020,339.24,73507-Domiciliary Care,Physical Support,THIRD PARTY PAYMENTS,Revenue
Walsall Council,http://opendatacommunities.org/id/metropolitan-district-council/walsall,WC118-329,31/07/2020,ADULT SOCIAL CARE,ADVANCE HEALTH CARE (UK) LTD,29/07/2020,254.38,73507-Domiciliary Care,Physical Support,THIRD PARTY PAYMENTS,Revenue
Walsall Council,http://opendatacommunities.org/id/metropolitan-district-council/walsall,WC118-330,31/07/2020,ADULT SOCIAL CARE,ADVANCE HEALTH CARE (UK) LTD,29/07/2020,817.4,73507-Domiciliary Care,Physical Support,THIRD PARTY PAYMENTS,Revenue
Walsall Council,http://opendatacommunities.org/id/metropolitan-district-council/walsall,WC118-331,31/07/2020,ADULT SOCIAL CARE,ADVANCE HEALTH CARE (UK) LTD,29/07/2020,"2,580.28",73507-Domiciliary Care,Physical Support,THIRD PARTY PAYMENTS,Revenue
Walsall Council,http://opendatacommunities.org/id/metropolitan-district-council/walsall,WC118-332,31/07/2020,ADULT SOCIAL CARE,ADVANCE HEALTH CARE (UK) LTD,29/07/2020,760.72,73507-Domiciliary Care,Physical Support,THIRD PARTY PAYMENTS,Revenue
Walsall Council,http://opendatacommunities.org/id/metropolitan-district-council/walsall,WC118-333,31/07/2020,ADULT SOCIAL CARE,ADVANCE HEALTH CARE (UK) LTD,29/07/2020,842.96,73507-Domiciliary Care,Physical Support,THIRD PARTY PAYMENTS,Revenue
Walsall Council,http://opendatacommunities.org/id/metropolitan-district-council/walsall,WC118-334,31/07/2020,ADULT SOCIAL CARE,ADVANCE HEALTH CARE (UK) LTD,29/07/2020,740.16,73507-Domiciliary Care,Physical Support,THIRD PARTY PAYMENTS,Revenue
Walsall Council,http://opendatacommunities.org/id/metropolitan-district-council/walsall,WC118-335,31/07/2020,ADULT SOCIAL CARE,ADVANCE HEALTH CARE (UK) LTD,29/07/2020,"1,017.72",73507-Domiciliary Care,Learning Disability Support,THIRD PARTY PAYMENTS,Revenue
Walsall Council,http://opendatacommunities.org/id/metropolitan-district-council/walsall,WC118-336,31/07/2020,ADULT SOCIAL CARE,ADVANCE HEALTH CARE (UK) LTD,31/07/2020,593.88,73507-Domiciliary Care,Physical Support,THIRD PARTY PAYMENTS,Revenue
Walsall Council,http://opendatacommunities.org/id/metropolitan-district-council/walsall,WC118-337,31/07/2020,ADULT SOCIAL CARE,ADVANCE HEALTH CARE (UK) LTD,31/07/2020,485.73,73507-Domiciliary Care,Physical Support,THIRD PARTY PAYMENTS,Revenue
Walsall Council,http://opendatacommunities.org/id/metropolitan-district-council/walsall,WC118-338,31/07/2020,ADULT SOCIAL CARE,ADVANCE HEALTH CARE (UK) LTD,31/07/2020,863.52,73507-Domiciliary Care,Social Support,THIRD PARTY PAYMENTS,Revenue
Walsall Council,http://opendatacommunities.org/id/metropolitan-district-council/walsall,WC118-339,31/07/2020,ADULT SOCIAL CARE,ADVANCE HEALTH CARE (UK) LTD,31/07/2020,323.82,73507-Domiciliary Care,Social Support,THIRD PARTY PAYMENTS,Revenue
Walsall Council,http://opendatacommunities.org/id/metropolitan-district-council/walsall,WC118-340,31/07/2020,ADULT SOCIAL CARE,ADVANCE HEALTH CARE (UK) LTD,31/07/2020,377.79,73507-Domiciliary Care,Physical Support,THIRD PARTY PAYMENTS,Revenue
Walsall Council,http://opendatacommunities.org/id/metropolitan-district-council/walsall,WC118-341,31/07/2020,ADULT SOCIAL CARE,ADVANCE HEALTH CARE (UK) LTD,31/07/2020,485.73,73507-Domiciliary Care,Social Support,THIRD PARTY PAYMENTS,Revenue
Walsall Council,http://opendatacommunities.org/id/metropolitan-district-council/walsall,WC118-342,31/07/2020,ADULT SOCIAL CARE,ADVANCE HEALTH CARE (UK) LTD,31/07/2020,359.8,73507-Domiciliary Care,Physical Support,THIRD PARTY PAYMENTS,Revenue
Walsall Council,http://opendatacommunities.org/id/metropolitan-district-council/walsall,WC118-343,31/07/2020,ADULT SOCIAL CARE,ADVANCE HEALTH CARE (UK) LTD,31/07/2020,462.6,73507-Domiciliary Care,Physical Support,THIRD PARTY PAYMENTS,Revenue
Walsall Council,http://opendatacommunities.org/id/metropolitan-district-council/walsall,WC118-344,31/07/2020,ADULT SOCIAL CARE,ADVANCE HEALTH CARE (UK) LTD,31/07/2020,539.7,73507-Domiciliary Care,Physical Support,THIRD PARTY PAYMENTS,Revenue
Walsall Council,http://opendatacommunities.org/id/metropolitan-district-council/walsall,WC118-345,31/07/2020,ADULT SOCIAL CARE,ADVANCE HEALTH CARE (UK) LTD,31/07/2020,404.81,73507-Domiciliary Care,Physical Support,THIRD PARTY PAYMENTS,Revenue
Walsall Council,http://opendatacommunities.org/id/metropolitan-district-council/walsall,WC118-346,31/07/2020,ADULT SOCIAL CARE,ADVANCE HEALTH CARE (UK) LTD,31/07/2020,431.76,73507-Domiciliary Care,Physical Support,THIRD PARTY PAYMENTS,Revenue
Walsall Council,http://opendatacommunities.org/id/metropolitan-district-council/walsall,WC118-347,31/07/2020,ADULT SOCIAL CARE,ADVANCE HEALTH CARE (UK) LTD,31/07/2020,485.73,73507-Domiciliary Care,Physical Support,THIRD PARTY PAYMENTS,Revenue
Walsall Council,http://opendatacommunities.org/id/metropolitan-district-council/walsall,WC118-348,31/07/2020,ADULT SOCIAL CARE,ADVANCE HEALTH CARE (UK) LTD,31/07/2020,524.28,73507-Domiciliary Care,Physical Support,THIRD PARTY PAYMENTS,Revenue
Walsall Council,http://opendatacommunities.org/id/metropolitan-district-council/walsall,WC118-349,31/07/2020,ADULT SOCIAL CARE,ADVANCE HEALTH CARE (UK) LTD,31/07/2020,431.76,73507-Domiciliary Care,Physical Support,THIRD PARTY PAYMENTS,Revenue
Walsall Council,http://opendatacommunities.org/id/metropolitan-district-council/walsall,WC118-350,31/07/2020,ADULT SOCIAL CARE,ADVANCE HEALTH CARE (UK) LTD,31/07/2020,485.73,73507-Domiciliary Care,Physical Support,THIRD PARTY PAYMENTS,Revenue
Walsall Council,http://opendatacommunities.org/id/metropolitan-district-council/walsall,WC118-351,31/07/2020,ADULT SOCIAL CARE,ADVANCE HEALTH CARE (UK) LTD,31/07/2020,269.85,73507-Domiciliary Care,Physical Support,THIRD PARTY PAYMENTS,Revenue
Walsall Council,http://opendatacommunities.org/id/metropolitan-district-council/walsall,WC118-352,31/07/2020,ADULT SOCIAL CARE,ADVANCE HEALTH CARE (UK) LTD,31/07/2020,485.8,73507-Domiciliary Care,Physical Support,THIRD PARTY PAYMENTS,Revenue
Walsall Council,http://opendatacommunities.org/id/metropolitan-district-council/walsall,WC118-353,31/07/2020,ADULT SOCIAL CARE,ADVANCE HEALTH CARE (UK) LTD,31/07/2020,501.15,73507-Domiciliary Care,Physical Support,THIRD PARTY PAYMENTS,Revenue
Walsall Council,http://opendatacommunities.org/id/metropolitan-district-council/walsall,WC118-354,31/07/2020,ADULT SOCIAL CARE,ADVANCE HEALTH CARE (UK) LTD,31/07/2020,431.76,73507-Domiciliary Care,Physical Support,THIRD PARTY PAYMENTS,Revenue
Walsall Council,http://opendatacommunities.org/id/metropolitan-district-council/walsall,WC118-355,31/07/2020,ADULT SOCIAL CARE,ADVANCE HEALTH CARE (UK) LTD,31/07/2020,485.73,73507-Domiciliary Care,Physical Support,THIRD PARTY PAYMENTS,Revenue
Walsall Council,http://opendatacommunities.org/id/metropolitan-district-council/walsall,WC118-356,31/07/2020,ADULT SOCIAL CARE,ADVANCE HEALTH CARE (UK) LTD,31/07/2020,824.97,73507-Domiciliary Care,Physical Support,THIRD PARTY PAYMENTS,Revenue
Walsall Council,http://opendatacommunities.org/id/metropolitan-district-council/walsall,WC118-357,31/07/2020,ADULT SOCIAL CARE,ADVANCE HEALTH CARE (UK) LTD,31/07/2020,485.73,73507-Domiciliary Care,Physical Support,THIRD PARTY PAYMENTS,Revenue
Walsall Council,http://opendatacommunities.org/id/metropolitan-district-council/walsall,WC118-358,31/07/2020,ADULT SOCIAL CARE,ADVANCE HEALTH CARE (UK) LTD,31/07/2020,447.18,73507-Domiciliary Care,Physical Support,THIRD PARTY PAYMENTS,Revenue
Walsall Council,http://opendatacommunities.org/id/metropolitan-district-council/walsall,WC118-359,31/07/2020,ADULT SOCIAL CARE,ADVANCE HEALTH CARE (UK) LTD,31/07/2020,629.72,73507-Domiciliary Care,Physical Support,THIRD PARTY PAYMENTS,Revenue
Walsall Council,http://opendatacommunities.org/id/metropolitan-district-council/walsall,WC118-360,31/07/2020,ADULT SOCIAL CARE,ADVANCE HEALTH CARE (UK) LTD,31/07/2020,501.15,73507-Domiciliary Care,Physical Support,THIRD PARTY PAYMENTS,Revenue
Walsall Council,http://opendatacommunities.org/id/metropolitan-district-council/walsall,WC118-361,31/07/2020,ADULT SOCIAL CARE,ADVANCE HEALTH CARE (UK) LTD,31/07/2020,593.67,73507-Domiciliary Care,Physical Support,THIRD PARTY PAYMENTS,Revenue
Walsall Council,http://opendatacommunities.org/id/metropolitan-district-council/walsall,WC118-362,31/07/2020,ADULT SOCIAL CARE,ADVANCE HEALTH CARE (UK) LTD,31/07/2020,485.73,73507-Domiciliary Care,Physical Support,THIRD PARTY PAYMENTS,Revenue
Walsall Council,http://opendatacommunities.org/id/metropolitan-district-council/walsall,WC118-363,31/07/2020,ADULT SOCIAL CARE,ADVANCE HEALTH CARE (UK) LTD,31/07/2020,431.76,73507-Domiciliary Care,Physical Support,THIRD PARTY PAYMENTS,Revenue
Walsall Council,http://opendatacommunities.org/id/metropolitan-district-council/walsall,WC118-364,31/07/2020,ADULT SOCIAL CARE,ADVANCE HEALTH CARE (UK) LTD,31/07/2020,485.73,73507-Domiciliary Care,Physical Support,THIRD PARTY PAYMENTS,Revenue
Walsall Council,http://opendatacommunities.org/id/metropolitan-district-council/walsall,WC118-365,31/07/2020,ADULT SOCIAL CARE,ADVANCE HEALTH CARE (UK) LTD,31/07/2020,431.76,73507-Domiciliary Care,Physical Support,THIRD PARTY PAYMENTS,Revenue
Walsall Council,http://opendatacommunities.org/id/metropolitan-district-council/walsall,WC118-366,31/07/2020,ADULT SOCIAL CARE,ADVANCE HEALTH CARE (UK) LTD,31/07/2020,701.61,73507-Domiciliary Care,Physical Support,THIRD PARTY PAYMENTS,Revenue
Walsall Council,http://opendatacommunities.org/id/metropolitan-district-council/walsall,WC118-367,31/07/2020,ADULT SOCIAL CARE,ADVANCE HEALTH CARE (UK) LTD,31/07/2020,431.76,73507-Domiciliary Care,Social Support,THIRD PARTY PAYMENTS,Revenue
Walsall Council,http://opendatacommunities.org/id/metropolitan-district-council/walsall,WC118-368,31/07/2020,ADULT SOCIAL CARE,ADVANCE HEALTH CARE (UK) LTD,31/07/2020,539.7,73507-Domiciliary Care,Physical Support,THIRD PARTY PAYMENTS,Revenue
Walsall Council,http://opendatacommunities.org/id/metropolitan-district-council/walsall,WC118-369,31/07/2020,ADULT SOCIAL CARE,ADVANCE HEALTH CARE (UK) LTD,31/07/2020,"2,783.31",73507-Domiciliary Care,Physical Support,THIRD PARTY PAYMENTS,Revenue
Walsall Council,http://opendatacommunities.org/id/metropolitan-district-council/walsall,WC118-370,31/07/2020,ADULT SOCIAL CARE,ADVANCE HEALTH CARE (UK) LTD,31/07/2020,431.76,73507-Domiciliary Care,Physical Support,THIRD PARTY PAYMENTS,Revenue
Walsall Council,http://opendatacommunities.org/id/metropolitan-district-council/walsall,WC118-371,31/07/2020,ADULT SOCIAL CARE,ADVANCE HEALTH CARE (UK) LTD,31/07/2020,431.76,73507-Domiciliary Care,Physical Support,THIRD PARTY PAYMENTS,Revenue
Walsall Council,http://opendatacommunities.org/id/metropolitan-district-council/walsall,WC118-372,31/07/2020,ADULT SOCIAL CARE,ADVANCE HEALTH CARE (UK) LTD,31/07/2020,485.73,73507-Domiciliary Care,Physical Support,THIRD PARTY PAYMENTS,Revenue
Walsall Council,http://opendatacommunities.org/id/metropolitan-district-council/walsall,WC118-373,31/07/2020,ADULT SOCIAL CARE,ADVANCE HEALTH CARE (UK) LTD,31/07/2020,431.76,73507-Domiciliary Care,Physical Support,THIRD PARTY PAYMENTS,Revenue
Walsall Council,http://opendatacommunities.org/id/metropolitan-district-council/walsall,WC118-374,31/07/2020,ADULT SOCIAL CARE,ADVANCE HEALTH CARE (UK) LTD,31/07/2020,485.73,73507-Domiciliary Care,Physical Support,THIRD PARTY PAYMENTS,Revenue
Walsall Council,http://opendatacommunities.org/id/metropolitan-district-council/walsall,WC118-375,31/07/2020,ADULT SOCIAL CARE,ADVANCE HEALTH CARE (UK) LTD,31/07/2020,431.76,73507-Domiciliary Care,Physical Support,THIRD PARTY PAYMENTS,Revenue
Walsall Council,http://opendatacommunities.org/id/metropolitan-district-council/walsall,WC118-376,31/07/2020,ADULT SOCIAL CARE,ADVANCE HEALTH CARE (UK) LTD,31/07/2020,485.73,73507-Domiciliary Care,Physical Support,THIRD PARTY PAYMENTS,Revenue
Walsall Council,http://opendatacommunities.org/id/metropolitan-district-council/walsall,WC118-377,31/07/2020,ADULT SOCIAL CARE,ADVANCE HEALTH CARE (UK) LTD,31/07/2020,485.73,73507-Domiciliary Care,Physical Support,THIRD PARTY PAYMENTS,Revenue
Walsall Council,http://opendatacommunities.org/id/metropolitan-district-council/walsall,WC118-378,31/07/2020,ADULT SOCIAL CARE,ADVANCE HEALTH CARE (UK) LTD,31/07/2020,377.79,73507-Domiciliary Care,Physical Support,THIRD PARTY PAYMENTS,Revenue
Walsall Council,http://opendatacommunities.org/id/metropolitan-district-council/walsall,WC118-379,31/07/2020,ADULT SOCIAL CARE,ADVANCE HEALTH CARE (UK) LTD,31/07/2020,377.79,73507-Domiciliary Care,Physical Support,THIRD PARTY PAYMENTS,Revenue
Walsall Council,http://opendatacommunities.org/id/metropolitan-district-council/walsall,WC118-380,31/07/2020,ADULT SOCIAL CARE,ADVANCE HEALTH CARE (UK) LTD,31/07/2020,485.73,73507-Domiciliary Care,Social Support,THIRD PARTY PAYMENTS,Revenue
Walsall Council,http://opendatacommunities.org/id/metropolitan-district-council/walsall,WC118-381,31/07/2020,ADULT SOCIAL CARE,ADVANCE HEALTH CARE (UK) LTD,31/07/2020,359.8,73507-Domiciliary Care,Physical Support,THIRD PARTY PAYMENTS,Revenue
Walsall Council,http://opendatacommunities.org/id/metropolitan-district-council/walsall,WC118-382,31/07/2020,ADULT SOCIAL CARE,ADVANCE HEALTH CARE (UK) LTD,31/07/2020,593.88,73507-Domiciliary Care,Physical Support,THIRD PARTY PAYMENTS,Revenue
Walsall Council,http://opendatacommunities.org/id/metropolitan-district-council/walsall,WC118-383,31/07/2020,ADULT SOCIAL CARE,ADVANCE HEALTH CARE (UK) LTD,31/07/2020,485.73,73507-Domiciliary Care,Physical Support,THIRD PARTY PAYMENTS,Revenue
Walsall Council,http://opendatacommunities.org/id/metropolitan-district-council/walsall,WC118-384,31/07/2020,ADULT SOCIAL CARE,ADVANCE HEALTH CARE (UK) LTD,31/07/2020,863.52,73507-Domiciliary Care,Social Support,THIRD PARTY PAYMENTS,Revenue
Walsall Council,http://opendatacommunities.org/id/metropolitan-district-council/walsall,WC118-385,31/07/2020,ADULT SOCIAL CARE,ADVANCE HEALTH CARE (UK) LTD,31/07/2020,323.82,73507-Domiciliary Care,Social Support,THIRD PARTY PAYMENTS,Revenue
Walsall Council,http://opendatacommunities.org/id/metropolitan-district-council/walsall,WC118-386,31/07/2020,ADULT SOCIAL CARE,ADVANCE HEALTH CARE (UK) LTD,31/07/2020,462.6,73507-Domiciliary Care,Physical Support,THIRD PARTY PAYMENTS,Revenue
Walsall Council,http://opendatacommunities.org/id/metropolitan-district-council/walsall,WC118-387,31/07/2020,ADULT SOCIAL CARE,ADVANCE HEALTH CARE (UK) LTD,31/07/2020,377.79,73507-Domiciliary Care,Physical Support,THIRD PARTY PAYMENTS,Revenue
Walsall Council,http://opendatacommunities.org/id/metropolitan-district-council/walsall,WC118-388,31/07/2020,ADULT SOCIAL CARE,ADVANCE HEALTH CARE (UK) LTD,31/07/2020,524.28,73507-Domiciliary Care,Physical Support,THIRD PARTY PAYMENTS,Revenue
Walsall Council,http://opendatacommunities.org/id/metropolitan-district-council/walsall,WC118-389,31/07/2020,ADULT SOCIAL CARE,ADVANCE HEALTH CARE (UK) LTD,31/07/2020,269.85,73507-Domiciliary Care,Physical Support,THIRD PARTY PAYMENTS,Revenue
Walsall Council,http://opendatacommunities.org/id/metropolitan-district-council/walsall,WC118-390,31/07/2020,ADULT SOCIAL CARE,ADVANCE HEALTH CARE (UK) LTD,31/07/2020,485.8,73507-Domiciliary Care,Physical Support,THIRD PARTY PAYMENTS,Revenue
Walsall Council,http://opendatacommunities.org/id/metropolitan-district-council/walsall,WC118-391,31/07/2020,ADULT SOCIAL CARE,ADVANCE HEALTH CARE (UK) LTD,31/07/2020,501.15,73507-Domiciliary Care,Physical Support,THIRD PARTY PAYMENTS,Revenue
Walsall Council,http://opendatacommunities.org/id/metropolitan-district-council/walsall,WC118-392,31/07/2020,ADULT SOCIAL CARE,ADVANCE HEALTH CARE (UK) LTD,31/07/2020,431.76,73507-Domiciliary Care,Physical Support,THIRD PARTY PAYMENTS,Revenue
Walsall Council,http://opendatacommunities.org/id/metropolitan-district-council/walsall,WC118-393,31/07/2020,ADULT SOCIAL CARE,ADVANCE HEALTH CARE (UK) LTD,31/07/2020,539.7,73507-Domiciliary Care,Physical Support,THIRD PARTY PAYMENTS,Revenue
Walsall Council,http://opendatacommunities.org/id/metropolitan-district-council/walsall,WC118-394,31/07/2020,ADULT SOCIAL CARE,ADVANCE HEALTH CARE (UK) LTD,31/07/2020,404.81,73507-Domiciliary Care,Physical Support,THIRD PARTY PAYMENTS,Revenue
Walsall Council,http://opendatacommunities.org/id/metropolitan-district-council/walsall,WC118-395,31/07/2020,ADULT SOCIAL CARE,ADVANCE HEALTH CARE (UK) LTD,31/07/2020,431.76,73507-Domiciliary Care,Physical Support,THIRD PARTY PAYMENTS,Revenue
Walsall Council,http://opendatacommunities.org/id/metropolitan-district-council/walsall,WC118-396,31/07/2020,ADULT SOCIAL CARE,ADVANCE HEALTH CARE (UK) LTD,31/07/2020,485.73,73507-Domiciliary Care,Physical Support,THIRD PARTY PAYMENTS,Revenue
Walsall Council,http://opendatacommunities.org/id/metropolitan-district-council/walsall,WC118-397,31/07/2020,ADULT SOCIAL CARE,ADVANCE HEALTH CARE (UK) LTD,31/07/2020,431.76,73507-Domiciliary Care,Physical Support,THIRD PARTY PAYMENTS,Revenue
Walsall Council,http://opendatacommunities.org/id/metropolitan-district-council/walsall,WC118-398,31/07/2020,ADULT SOCIAL CARE,ADVANCE HEALTH CARE (UK) LTD,31/07/2020,485.73,73507-Domiciliary Care,Physical Support,THIRD PARTY PAYMENTS,Revenue
Walsall Council,http://opendatacommunities.org/id/metropolitan-district-council/walsall,WC118-399,31/07/2020,ADULT SOCIAL CARE,ADVANCE HEALTH CARE (UK) LTD,31/07/2020,431.76,73507-Domiciliary Care,Physical Support,THIRD PARTY PAYMENTS,Revenue
Walsall Council,http://opendatacommunities.org/id/metropolitan-district-council/walsall,WC118-400,31/07/2020,ADULT SOCIAL CARE,ADVANCE HEALTH CARE (UK) LTD,31/07/2020,485.73,73507-Domiciliary Care,Physical Support,THIRD PARTY PAYMENTS,Revenue
Walsall Council,http://opendatacommunities.org/id/metropolitan-district-council/walsall,WC118-401,31/07/2020,ADULT SOCIAL CARE,ADVANCE HEALTH CARE (UK) LTD,31/07/2020,447.18,73507-Domiciliary Care,Physical Support,THIRD PARTY PAYMENTS,Revenue
Walsall Council,http://opendatacommunities.org/id/metropolitan-district-council/walsall,WC118-402,31/07/2020,ADULT SOCIAL CARE,ADVANCE HEALTH CARE (UK) LTD,31/07/2020,629.72,73507-Domiciliary Care,Physical Support,THIRD PARTY PAYMENTS,Revenue
Walsall Council,http://opendatacommunities.org/id/metropolitan-district-council/walsall,WC118-403,31/07/2020,ADULT SOCIAL CARE,ADVANCE HEALTH CARE (UK) LTD,31/07/2020,501.15,73507-Domiciliary Care,Physical Support,THIRD PARTY PAYMENTS,Revenue
Walsall Council,http://opendatacommunities.org/id/metropolitan-district-council/walsall,WC118-404,31/07/2020,ADULT SOCIAL CARE,ADVANCE HEALTH CARE (UK) LTD,31/07/2020,593.67,73507-Domiciliary Care,Physical Support,THIRD PARTY PAYMENTS,Revenue
Walsall Council,http://opendatacommunities.org/id/metropolitan-district-council/walsall,WC118-405,31/07/2020,ADULT SOCIAL CARE,ADVANCE HEALTH CARE (UK) LTD,31/07/2020,485.73,73507-Domiciliary Care,Physical Support,THIRD PARTY PAYMENTS,Revenue
Walsall Council,http://opendatacommunities.org/id/metropolitan-district-council/walsall,WC118-406,31/07/2020,ADULT SOCIAL CARE,ADVANCE HEALTH CARE (UK) LTD,31/07/2020,824.97,73507-Domiciliary Care,Physical Support,THIRD PARTY PAYMENTS,Revenue
Walsall Council,http://opendatacommunities.org/id/metropolitan-district-council/walsall,WC118-407,31/07/2020,ADULT SOCIAL CARE,ADVANCE HEALTH CARE (UK) LTD,31/07/2020,701.61,73507-Domiciliary Care,Physical Support,THIRD PARTY PAYMENTS,Revenue
Walsall Council,http://opendatacommunities.org/id/metropolitan-district-council/walsall,WC118-408,31/07/2020,ADULT SOCIAL CARE,ADVANCE HEALTH CARE (UK) LTD,31/07/2020,431.76,73507-Domiciliary Care,Social Support,THIRD PARTY PAYMENTS,Revenue
Walsall Council,http://opendatacommunities.org/id/metropolitan-district-council/walsall,WC118-409,31/07/2020,ADULT SOCIAL CARE,ADVANCE HEALTH CARE (UK) LTD,31/07/2020,485.73,73507-Domiciliary Care,Physical Support,THIRD PARTY PAYMENTS,Revenue
Walsall Council,http://opendatacommunities.org/id/metropolitan-district-council/walsall,WC118-410,31/07/2020,ADULT SOCIAL CARE,ADVANCE HEALTH CARE (UK) LTD,31/07/2020,431.76,73507-Domiciliary Care,Physical Support,THIRD PARTY PAYMENTS,Revenue
Walsall Council,http://opendatacommunities.org/id/metropolitan-district-council/walsall,WC118-411,31/07/2020,ADULT SOCIAL CARE,ADVANCE HEALTH CARE (UK) LTD,31/07/2020,485.73,73507-Domiciliary Care,Physical Support,THIRD PARTY PAYMENTS,Revenue
Walsall Council,http://opendatacommunities.org/id/metropolitan-district-council/walsall,WC118-412,31/07/2020,ADULT SOCIAL CARE,ADVANCE HEALTH CARE (UK) LTD,31/07/2020,431.76,73507-Domiciliary Care,Physical Support,THIRD PARTY PAYMENTS,Revenue
Walsall Council,http://opendatacommunities.org/id/metropolitan-district-council/walsall,WC118-413,31/07/2020,ADULT SOCIAL CARE,ADVANCE HEALTH CARE (UK) LTD,31/07/2020,539.7,73507-Domiciliary Care,Physical Support,THIRD PARTY PAYMENTS,Revenue
Walsall Council,http://opendatacommunities.org/id/metropolitan-district-council/walsall,WC118-414,31/07/2020,ADULT SOCIAL CARE,ADVANCE HEALTH CARE (UK) LTD,31/07/2020,478.02,73507-Domiciliary Care,Physical Support,THIRD PARTY PAYMENTS,Revenue
Walsall Council,http://opendatacommunities.org/id/metropolitan-district-council/walsall,WC118-415,31/07/2020,ADULT SOCIAL CARE,ADVANCE HEALTH CARE (UK) LTD,31/07/2020,431.76,73507-Domiciliary Care,Physical Support,THIRD PARTY PAYMENTS,Revenue
Walsall Council,http://opendatacommunities.org/id/metropolitan-district-council/walsall,WC118-416,31/07/2020,ADULT SOCIAL CARE,ADVANCE HEALTH CARE (UK) LTD,31/07/2020,485.73,73507-Domiciliary Care,Physical Support,THIRD PARTY PAYMENTS,Revenue
Walsall Council,http://opendatacommunities.org/id/metropolitan-district-council/walsall,WC118-417,31/07/2020,ADULT SOCIAL CARE,ADVANCE HEALTH CARE (UK) LTD,31/07/2020,485.73,73507-Domiciliary Care,Physical Support,THIRD PARTY PAYMENTS,Revenue
Walsall Council,http://opendatacommunities.org/id/metropolitan-district-council/walsall,WC118-418,31/07/2020,ADULT SOCIAL CARE,ADVANCE HEALTH CARE (UK) LTD,31/07/2020,485.73,73507-Domiciliary Care,Physical Support,THIRD PARTY PAYMENTS,Revenue
Walsall Council,http://opendatacommunities.org/id/metropolitan-district-council/walsall,WC118-419,31/07/2020,ADULT SOCIAL CARE,ADVANCE HEALTH CARE (UK) LTD,31/07/2020,431.76,73507-Domiciliary Care,Physical Support,THIRD PARTY PAYMENTS,Revenue
Walsall Council,http://opendatacommunities.org/id/metropolitan-district-council/walsall,WC118-420,31/07/2020,ADULT SOCIAL CARE,ADVANCE HEALTH CARE (UK) LTD,31/07/2020,377.79,73507-Domiciliary Care,Physical Support,THIRD PARTY PAYMENTS,Revenue
Walsall Council,http://opendatacommunities.org/id/metropolitan-district-council/walsall,WC118-421,31/07/2020,ADULT SOCIAL CARE,ADVANCE HEALTH CARE (UK) LTD,31/07/2020,377.79,73507-Domiciliary Care,Physical Support,THIRD PARTY PAYMENTS,Revenue
Walsall Council,http://opendatacommunities.org/id/metropolitan-district-council/walsall,WC118-422,31/07/2020,CHILDRENS CAPITAL,ADVANCED CONTRACTS (MIDLANDS) LTD,17/07/2020,"5,145.00",1006-Site Works Contractors,Oakwood School Dev Formula Capital,CAPITAL,Capital
Walsall Council,http://opendatacommunities.org/id/metropolitan-district-council/walsall,WC118-423,31/07/2020,CHILDRENS,ADVENTURELAND DAY NURSERY,29/07/2020,640,77200-Transfer Payments-Other Schoolchildren/Student Related Items,Early Years - Social Inclusion Fund - 3/4 Yr Old,TRANSFER PAYMENTS,Revenue
Walsall Council,http://opendatacommunities.org/id/metropolitan-district-council/walsall,WC118-424,31/07/2020,CHILDRENS,ADVENTURELAND DAY NURSERY,29/07/2020,640,77200-Transfer Payments-Other Schoolchildren/Student Related Items,Early Years - Social Inclusion Fund - 3/4 Yr Old,TRANSFER PAYMENTS,Revenue
Walsall Council,http://opendatacommunities.org/id/metropolitan-district-council/walsall,WC118-425,31/07/2020,ADULT SOCIAL CARE,ADVINIA CARE HOMES LTD - HAMMERWICH HALL CARE HOME,31/07/2020,"2,044.00",73500-Residential,Physical Support,THIRD PARTY PAYMENTS,Revenue
Walsall Council,http://opendatacommunities.org/id/metropolitan-district-council/walsall,WC118-426,31/07/2020,ADULT SOCIAL CARE,ADVINIA CARE HOMES LTD - HAMMERWICH HALL CARE HOME,31/07/2020,"2,308.00",73501-Residential EMI,Social Support,THIRD PARTY PAYMENTS,Revenue
Walsall Council,http://opendatacommunities.org/id/metropolitan-district-council/walsall,WC118-427,31/07/2020,ECONOMY & ENVIRONMENT,AEBI SCHMIDT UK LIMITED,17/07/2020,476.17,60500-Materials,Fleet,SUPPLIES & SERVICES,Revenue
Walsall Council,http://opendatacommunities.org/id/metropolitan-district-council/walsall,WC118-428,31/07/2020,ECONOMY & ENVIRONMENT,AEBI SCHMIDT UK LIMITED,17/07/2020,308.2,73025-Professional Services-Priv Contractor & Other Agencies,Fleet,THIRD PARTY PAYMENTS,Revenue
Walsall Council,http://opendatacommunities.org/id/metropolitan-district-council/walsall,WC118-429,31/07/2020,RESOURCES AND TRANSFORMATION,AECOM LIMITED,17/07/2020,"1,294.26",1002-Project Fees,CFR 1072 Black Country Train Stations Development Funding,CAPITAL,Capital
Walsall Council,http://opendatacommunities.org/id/metropolitan-district-council/walsall,WC118-430,31/07/2020,ECONOMY & ENVIRONMENT CAPITAL,AECOM LIMITED,17/07/2020,"1,440.28",1002-Project Fees,CFR 1399 Willenhall Rail Station Development,CAPITAL,Capital
Walsall Council,http://opendatacommunities.org/id/metropolitan-district-council/walsall,WC118-431,31/07/2020,ECONOMY & ENVIRONMENT,AFGHAN COMMUNITY & WELFARE CENTRE,29/07/2020,354.39,66500-Grants to Other Orgs,Lets Talk About it Project,SUPPLIES & SERVICES,Revenue
Walsall Council,http://opendatacommunities.org/id/metropolitan-district-council/walsall,WC118-432,31/07/2020,CHILDRENS,AHMAD & WILLIAMS SOLICITORS,23/07/2020,-443.34,73014-School Only Payments - Catering,Looked After Childrens Social Work Team,THIRD PARTY PAYMENTS,Revenue
Walsall Council,http://opendatacommunities.org/id/metropolitan-district-council/walsall,WC118-433,31/07/2020,CHILDRENS,AHMAD & WILLIAMS SOLICITORS,23/07/2020,443.34,73014-School Only Payments - Catering,Looked After Childrens Social Work Team,THIRD PARTY PAYMENTS,Revenue
Walsall Council,http://opendatacommunities.org/id/metropolitan-district-council/walsall,WC118-434,31/07/2020,CHILDRENS,AHMAD & WILLIAMS SOLICITORS,23/07/2020,416.67,73014-School Only Payments - Catering,Looked After Childrens Social Work Team,THIRD PARTY PAYMENTS,Revenue
Walsall Council,http://opendatacommunities.org/id/metropolitan-district-council/walsall,WC118-435,31/07/2020,CHILDRENS,AHMAD & WILLIAMS SOLICITORS,23/07/2020,416.67,73014-School Only Payments - Catering,Looked After Childrens Social Work Team,THIRD PARTY PAYMENTS,Revenue
Walsall Council,http://opendatacommunities.org/id/metropolitan-district-council/walsall,WC118-436,31/07/2020,CHILDRENS,AHMAD & WILLIAMS SOLICITORS,23/07/2020,416.67,73014-School Only Payments - Catering,Looked After Childrens Social Work Team,THIRD PARTY PAYMENTS,Revenue
Walsall Council,http://opendatacommunities.org/id/metropolitan-district-council/walsall,WC118-437,31/07/2020,CHILDRENS,AHMAD & WILLIAMS SOLICITORS,23/07/2020,500,73014-School Only Payments - Catering,Looked After Childrens Social Work Team,THIRD PARTY PAYMENTS,Revenue
Walsall Council,http://opendatacommunities.org/id/metropolitan-district-council/walsall,WC118-438,31/07/2020,CHILDRENS,ALASDAIR CANT & ASSOCIATES LIMITED,23/07/2020,"24,410.75",73025-Professional Services-Priv Contractor & Other Agencies,Safeguarding Families Protecting Children (SFPC),THIRD PARTY PAYMENTS,Revenue
Walsall Council,http://opendatacommunities.org/id/metropolitan-district-council/walsall,WC118-439,31/07/2020,ADULT SOCIAL CARE,ALDERGROVE MANOR LTD,31/07/2020,"2,308.00",73501-Residential EMI,Mental Health Support,THIRD PARTY PAYMENTS,Revenue
Walsall Council,http://opendatacommunities.org/id/metropolitan-district-council/walsall,WC118-440,31/07/2020,ADULT SOCIAL CARE,ALDERGROVE MANOR LTD,31/07/2020,"2,308.00",73501-Residential EMI,Physical Support,THIRD PARTY PAYMENTS,Revenue
Walsall Council,http://opendatacommunities.org/id/metropolitan-district-council/walsall,WC118-441,31/07/2020,CHILDRENS,ALDRIDGE & BARONS LIMITED,20/07/2020,"1,930.40",52000-Hire of Vehicle with Driver,Home To School Transport,TRANSPORT,Revenue
Walsall Council,http://opendatacommunities.org/id/metropolitan-district-council/walsall,WC118-442,31/07/2020,CHILDRENS,ALDRIDGE & BARONS LIMITED,20/07/2020,"1,458.00",52000-Hire of Vehicle with Driver,Home To School Transport,TRANSPORT,Revenue
Walsall Council,http://opendatacommunities.org/id/metropolitan-district-council/walsall,WC118-443,31/07/2020,CHILDRENS,ALDRIDGE & BARONS LIMITED,20/07/2020,268.8,52000-Hire of Vehicle with Driver,Home To School Transport,TRANSPORT,Revenue
Walsall Council,http://opendatacommunities.org/id/metropolitan-district-council/walsall,WC118-444,31/07/2020,CHILDRENS,ALDRIDGE & BARONS LIMITED,20/07/2020,960,52000-Hire of Vehicle with Driver,Home To School Transport,TRANSPORT,Revenue
Walsall Council,http://opendatacommunities.org/id/metropolitan-district-council/walsall,WC118-445,31/07/2020,CHILDRENS,ALDRIDGE & BARONS LIMITED,20/07/2020,"1,408.00",52000-Hire of Vehicle with Driver,Home To School Transport,TRANSPORT,Revenue
Walsall Council,http://opendatacommunities.org/id/metropolitan-district-council/walsall,WC118-446,31/07/2020,CHILDRENS,ALDRIDGE & BARONS LIMITED,20/07/2020,"1,744.60",52000-Hire of Vehicle with Driver,Home To School Transport,TRANSPORT,Revenue
Walsall Council,http://opendatacommunities.org/id/metropolitan-district-council/walsall,WC118-447,31/07/2020,CHILDRENS,ALDRIDGE & BARONS LIMITED,20/07/2020,"1,376.00",52000-Hire of Vehicle with Driver,Home To School Transport,TRANSPORT,Revenue
Walsall Council,http://opendatacommunities.org/id/metropolitan-district-council/walsall,WC118-448,31/07/2020,CHILDRENS,ALDRIDGE & BARONS LIMITED,20/07/2020,921.6,52000-Hire of Vehicle with Driver,Home To School Transport,TRANSPORT,Revenue
Walsall Council,http://opendatacommunities.org/id/metropolitan-district-council/walsall,WC118-449,31/07/2020,CHILDRENS,ALDRIDGE & BARONS LIMITED,20/07/2020,"1,488.00",52000-Hire of Vehicle with Driver,Home To School Transport,TRANSPORT,Revenue
Walsall Council,http://opendatacommunities.org/id/metropolitan-district-council/walsall,WC118-450,31/07/2020,CHILDRENS,ALDRIDGE & BARONS LIMITED,20/07/2020,"1,243.20",52000-Hire of Vehicle with Driver,Home To School Transport,TRANSPORT,Revenue
Walsall Council,http://opendatacommunities.org/id/metropolitan-district-council/walsall,WC118-451,31/07/2020,CHILDRENS,ALDRIDGE & BARONS LIMITED,20/07/2020,"1,328.06",52000-Hire of Vehicle with Driver,Home To School Transport,TRANSPORT,Revenue
Walsall Council,http://opendatacommunities.org/id/metropolitan-district-council/walsall,WC118-452,31/07/2020,CHILDRENS,ALDRIDGE & BARONS LIMITED,20/07/2020,"1,915.20",52000-Hire of Vehicle with Driver,Home To School Transport,TRANSPORT,Revenue
Walsall Council,http://opendatacommunities.org/id/metropolitan-district-council/walsall,WC118-453,31/07/2020,CHILDRENS,ALDRIDGE & BARONS LIMITED,20/07/2020,"1,424.00",52000-Hire of Vehicle with Driver,Home To School Transport,TRANSPORT,Revenue
Walsall Council,http://opendatacommunities.org/id/metropolitan-district-council/walsall,WC118-454,31/07/2020,CHILDRENS,ALDRIDGE & BARONS LIMITED,20/07/2020,"1,267.20",52000-Hire of Vehicle with Driver,Home To School Transport,TRANSPORT,Revenue
Walsall Council,http://opendatacommunities.org/id/metropolitan-district-council/walsall,WC118-455,31/07/2020,CHILDRENS,ALDRIDGE & BARONS LIMITED,20/07/2020,"1,280.00",52000-Hire of Vehicle with Driver,Home To School Transport,TRANSPORT,Revenue
Walsall Council,http://opendatacommunities.org/id/metropolitan-district-council/walsall,WC118-456,31/07/2020,CHILDRENS,ALDRIDGE & BARONS LIMITED,20/07/2020,"1,747.20",52000-Hire of Vehicle with Driver,Home To School Transport,TRANSPORT,Revenue
Walsall Council,http://opendatacommunities.org/id/metropolitan-district-council/walsall,WC118-457,31/07/2020,CHILDRENS,ALDRIDGE & BARONS LIMITED,20/07/2020,"1,598.00",52000-Hire of Vehicle with Driver,Home To School Transport,TRANSPORT,Revenue
Walsall Council,http://opendatacommunities.org/id/metropolitan-district-council/walsall,WC118-458,31/07/2020,CHILDRENS,ALDRIDGE & BARONS LIMITED,20/07/2020,"1,428.80",52000-Hire of Vehicle with Driver,Home To School Transport,TRANSPORT,Revenue
Walsall Council,http://opendatacommunities.org/id/metropolitan-district-council/walsall,WC118-459,31/07/2020,CHILDRENS,ALDRIDGE & BARONS LIMITED,20/07/2020,"2,123.52",52000-Hire of Vehicle with Driver,Home To School Transport,TRANSPORT,Revenue
Walsall Council,http://opendatacommunities.org/id/metropolitan-district-council/walsall,WC118-460,31/07/2020,CHILDRENS,ALDRIDGE & BARONS LIMITED,20/07/2020,"1,685.60",52000-Hire of Vehicle with Driver,Home To School Transport,TRANSPORT,Revenue
Walsall Council,http://opendatacommunities.org/id/metropolitan-district-council/walsall,WC118-461,31/07/2020,CHILDRENS,ALDRIDGE & BARONS LIMITED,20/07/2020,"1,425.60",52000-Hire of Vehicle with Driver,Home To School Transport,TRANSPORT,Revenue
Walsall Council,http://opendatacommunities.org/id/metropolitan-district-council/walsall,WC118-462,31/07/2020,CHILDRENS,ALDRIDGE & BARONS LIMITED,20/07/2020,"1,280.00",52000-Hire of Vehicle with Driver,Home To School Transport,TRANSPORT,Revenue
Walsall Council,http://opendatacommunities.org/id/metropolitan-district-council/walsall,WC118-463,31/07/2020,CHILDRENS,ALDRIDGE & BARONS LIMITED,20/07/2020,"2,116.00",52000-Hire of Vehicle with Driver,Home To School Transport,TRANSPORT,Revenue
Walsall Council,http://opendatacommunities.org/id/metropolitan-district-council/walsall,WC118-464,31/07/2020,CHILDRENS,ALDRIDGE & BARONS LIMITED,20/07/2020,480.36,52000-Hire of Vehicle with Driver,Home To School Transport,TRANSPORT,Revenue
Walsall Council,http://opendatacommunities.org/id/metropolitan-district-council/walsall,WC118-465,31/07/2020,CHILDRENS,ALDRIDGE & BARONS LIMITED,20/07/2020,"1,508.00",52000-Hire of Vehicle with Driver,Home To School Transport,TRANSPORT,Revenue
Walsall Council,http://opendatacommunities.org/id/metropolitan-district-council/walsall,WC118-466,31/07/2020,CHILDRENS,ALDRIDGE & BARONS LIMITED,20/07/2020,"1,630.16",52000-Hire of Vehicle with Driver,Home To School Transport,TRANSPORT,Revenue
Walsall Council,http://opendatacommunities.org/id/metropolitan-district-council/walsall,WC118-467,31/07/2020,CHILDRENS,ALDRIDGE & BARONS LIMITED,20/07/2020,"1,691.20",52000-Hire of Vehicle with Driver,Home To School Transport,TRANSPORT,Revenue
Walsall Council,http://opendatacommunities.org/id/metropolitan-district-council/walsall,WC118-468,31/07/2020,CHILDRENS,ALDRIDGE & BARONS LIMITED,20/07/2020,"1,472.00",52000-Hire of Vehicle with Driver,Home To School Transport,TRANSPORT,Revenue
Walsall Council,http://opendatacommunities.org/id/metropolitan-district-council/walsall,WC118-469,31/07/2020,CHILDRENS,ALDRIDGE & BARONS LIMITED,20/07/2020,"1,627.50",52000-Hire of Vehicle with Driver,Home To School Transport,TRANSPORT,Revenue
Walsall Council,http://opendatacommunities.org/id/metropolitan-district-council/walsall,WC118-470,31/07/2020,ADULT SOCIAL CARE,ALEXANDRA HOUSE CARE SERVICES LTD T/A STONEBRIDGE NURSING HOME,31/07/2020,"7,361.12",73500-Residential,Learning Disability Support,THIRD PARTY PAYMENTS,Revenue
Walsall Council,http://opendatacommunities.org/id/metropolitan-district-council/walsall,WC118-471,31/07/2020,ECONOMY & ENVIRONMENT,ALLIED PUBLICITY SERVICES (MANCHESTER) LIMITED T/A APS GROUP,24/07/2020,788.23,62000-External Printing Services,Blue Badges,SUPPLIES & SERVICES,Revenue
Walsall Council,http://opendatacommunities.org/id/metropolitan-district-council/walsall,WC118-472,31/07/2020,ADULT SOCIAL CARE,ALMA COURT,16/07/2020,"26,206.86",73025-Professional Services-Priv Contractor & Other Agencies,Transitional Care Support Team,THIRD PARTY PAYMENTS,Revenue
Walsall Council,http://opendatacommunities.org/id/metropolitan-district-council/walsall,WC118-473,31/07/2020,ADULT SOCIAL CARE,ALMA COURT,16/07/2020,"25,637.14",73025-Professional Services-Priv Contractor & Other Agencies,Transitional Care Support Team,THIRD PARTY PAYMENTS,Revenue
Walsall Council,http://opendatacommunities.org/id/metropolitan-district-council/walsall,WC118-474,31/07/2020,ADULT SOCIAL CARE,ALMA COURT,17/07/2020,"-18,926.29",73025-Professional Services-Priv Contractor & Other Agencies,Transitional Care Support Team,THIRD PARTY PAYMENTS,Revenue
Walsall Council,http://opendatacommunities.org/id/metropolitan-district-council/walsall,WC118-475,31/07/2020,ADULT SOCIAL CARE,ALMA COURT,17/07/2020,"6,685.71",73025-Professional Services-Priv Contractor & Other Agencies,Transitional Care Support Team,THIRD PARTY PAYMENTS,Revenue
Walsall Council,http://opendatacommunities.org/id/metropolitan-district-council/walsall,WC118-476,31/07/2020,ADULT SOCIAL CARE,ALMA COURT,22/07/2020,"4,800.00",73025-Professional Services-Priv Contractor & Other Agencies,Transitional Care Support Team,THIRD PARTY PAYMENTS,Revenue
Walsall Council,http://opendatacommunities.org/id/metropolitan-district-council/walsall,WC118-477,31/07/2020,ADULT SOCIAL CARE,ALMA COURT,22/07/2020,"-2,228.57",73025-Professional Services-Priv Contractor & Other Agencies,Transitional Care Support Team,THIRD PARTY PAYMENTS,Revenue
Walsall Council,http://opendatacommunities.org/id/metropolitan-district-council/walsall,WC118-478,31/07/2020,ADULT SOCIAL CARE,ALMA COURT,31/07/2020,"6,553.60",73500-Residential,Mental Health Support,THIRD PARTY PAYMENTS,Revenue
Walsall Council,http://opendatacommunities.org/id/metropolitan-district-council/walsall,WC118-479,31/07/2020,ADULT SOCIAL CARE,ALMA COURT,31/07/2020,"6,277.12",73503-Nursing EMI,Physical Support,THIRD PARTY PAYMENTS,Revenue
Walsall Council,http://opendatacommunities.org/id/metropolitan-district-council/walsall,WC118-480,31/07/2020,ADULT SOCIAL CARE,ALPHA HEALTH CARE LTD,21/07/2020,428.57,73025-Professional Services-Priv Contractor & Other Agencies,Transitional Care Support Team,THIRD PARTY PAYMENTS,Revenue
Walsall Council,http://opendatacommunities.org/id/metropolitan-district-council/walsall,WC118-481,31/07/2020,ADULT SOCIAL CARE,ALPHA HEALTH CARE LTD,21/07/2020,"3,255.00",73025-Professional Services-Priv Contractor & Other Agencies,Transitional Care Support Team,THIRD PARTY PAYMENTS,Revenue
Walsall Council,http://opendatacommunities.org/id/metropolitan-district-council/walsall,WC118-482,31/07/2020,ADULT SOCIAL CARE,ALPHA HEALTH CARE LTD,21/07/2020,"2,131.12",73025-Professional Services-Priv Contractor & Other Agencies,Transitional Care Support Team,THIRD PARTY PAYMENTS,Revenue
Walsall Council,http://opendatacommunities.org/id/metropolitan-district-council/walsall,WC118-483,31/07/2020,ADULT SOCIAL CARE,ALPHA HEALTH CARE LTD,21/07/2020,"1,628.57",73025-Professional Services-Priv Contractor & Other Agencies,Transitional Care Support Team,THIRD PARTY PAYMENTS,Revenue
Walsall Council,http://opendatacommunities.org/id/metropolitan-district-council/walsall,WC118-484,31/07/2020,ADULT SOCIAL CARE,ALPHA HEALTH CARE LTD,31/07/2020,"2,396.00",73502-Nursing,Physical Support,THIRD PARTY PAYMENTS,Revenue
Walsall Council,http://opendatacommunities.org/id/metropolitan-district-council/walsall,WC118-485,31/07/2020,ADULT SOCIAL CARE,ALPHA HEALTH CARE LTD,31/07/2020,"2,696.00",73503-Nursing EMI,Physical Support,THIRD PARTY PAYMENTS,Revenue
Walsall Council,http://opendatacommunities.org/id/metropolitan-district-council/walsall,WC118-486,31/07/2020,ADULT SOCIAL CARE,ALPHA HEALTH CARE LTD,31/07/2020,"3,219.72",73503-Nursing EMI,Mental Health Support,THIRD PARTY PAYMENTS,Revenue
Walsall Council,http://opendatacommunities.org/id/metropolitan-district-council/walsall,WC118-487,31/07/2020,ADULT SOCIAL CARE,ALPHA HEALTH CARE LTD,31/07/2020,"3,219.72",73503-Nursing EMI,Physical Support,THIRD PARTY PAYMENTS,Revenue
Walsall Council,http://opendatacommunities.org/id/metropolitan-district-council/walsall,WC118-488,31/07/2020,ADULT SOCIAL CARE,ALPHA HEALTH CARE LTD,31/07/2020,"3,628.28",73503-Nursing EMI,Physical Support,THIRD PARTY PAYMENTS,Revenue
Walsall Council,http://opendatacommunities.org/id/metropolitan-district-council/walsall,WC118-489,31/07/2020,ADULT SOCIAL CARE,ALPHA HEALTH CARE LTD,31/07/2020,"3,175.68",73503-Nursing EMI,Support with Memory & Cognition,THIRD PARTY PAYMENTS,Revenue
Walsall Council,http://opendatacommunities.org/id/metropolitan-district-council/walsall,WC118-490,31/07/2020,ADULT SOCIAL CARE,ALPHA HEALTH CARE LTD,31/07/2020,"2,937.76",73502-Nursing,Physical Support,THIRD PARTY PAYMENTS,Revenue
Walsall Council,http://opendatacommunities.org/id/metropolitan-district-council/walsall,WC118-491,31/07/2020,ADULT SOCIAL CARE,ALPHA HEALTH CARE LTD,31/07/2020,"4,315.71",73500-Residential,Physical Support,THIRD PARTY PAYMENTS,Revenue
Walsall Council,http://opendatacommunities.org/id/metropolitan-district-council/walsall,WC118-492,31/07/2020,ADULT SOCIAL CARE,ALPHA HEALTH CARE LTD,31/07/2020,795,73501-Residential EMI,Physical Support,THIRD PARTY PAYMENTS,Revenue
Walsall Council,http://opendatacommunities.org/id/metropolitan-district-council/walsall,WC118-493,31/07/2020,ADULT SOCIAL CARE,ALPHA HEALTH CARE LTD,31/07/2020,"9,225.41",73501-Residential EMI,Mental Health Support,THIRD PARTY PAYMENTS,Revenue
Walsall Council,http://opendatacommunities.org/id/metropolitan-district-council/walsall,WC118-494,31/07/2020,ADULT SOCIAL CARE,ALPHA HEALTH CARE LTD,31/07/2020,"3,219.72",73503-Nursing EMI,Mental Health Support,THIRD PARTY PAYMENTS,Revenue
Walsall Council,http://opendatacommunities.org/id/metropolitan-district-council/walsall,WC118-495,31/07/2020,ADULT SOCIAL CARE,ALPHA HEALTH CARE LTD,31/07/2020,"3,219.76",73503-Nursing EMI,Physical Support,THIRD PARTY PAYMENTS,Revenue
Walsall Council,http://opendatacommunities.org/id/metropolitan-district-council/walsall,WC118-496,31/07/2020,ADULT SOCIAL CARE,ALPHA HEALTH CARE LTD,31/07/2020,"2,896.00",73503-Nursing EMI,Physical Support,THIRD PARTY PAYMENTS,Revenue
Walsall Council,http://opendatacommunities.org/id/metropolitan-district-council/walsall,WC118-497,31/07/2020,ADULT SOCIAL CARE,ALPHA HEALTH CARE LTD,31/07/2020,"2,591.48",73501-Residential EMI,Support with Memory & Cognition,THIRD PARTY PAYMENTS,Revenue
Walsall Council,http://opendatacommunities.org/id/metropolitan-district-council/walsall,WC118-498,31/07/2020,ADULT SOCIAL CARE,ALPHA HEALTH CARE LTD,31/07/2020,"2,308.00",73501-Residential EMI,Physical Support,THIRD PARTY PAYMENTS,Revenue
Walsall Council,http://opendatacommunities.org/id/metropolitan-district-council/walsall,WC118-499,31/07/2020,ADULT SOCIAL CARE,ALPHA HEALTH CARE LTD,31/07/2020,"2,696.00",73503-Nursing EMI,Mental Health Support,THIRD PARTY PAYMENTS,Revenue
Walsall Council,http://opendatacommunities.org/id/metropolitan-district-council/walsall,WC118-500,31/07/2020,ADULT SOCIAL CARE,ALPHA HEALTH CARE LTD,31/07/2020,"3,275.80",73503-Nursing EMI,Physical Support,THIRD PARTY PAYMENTS,Revenue
Walsall Council,http://opendatacommunities.org/id/metropolitan-district-council/walsall,WC118-501,31/07/2020,ADULT SOCIAL CARE,ALPHA HEALTH CARE LTD,31/07/2020,"7,337.92",73503-Nursing EMI,Physical Support,THIRD PARTY PAYMENTS,Revenue
Walsall Council,http://opendatacommunities.org/id/metropolitan-district-council/walsall,WC118-502,31/07/2020,ADULT SOCIAL CARE,ALPHA HEALTH CARE LTD,31/07/2020,"2,044.00",73500-Residential,Mental Health Support,THIRD PARTY PAYMENTS,Revenue
Walsall Council,http://opendatacommunities.org/id/metropolitan-district-council/walsall,WC118-503,31/07/2020,ADULT SOCIAL CARE,ALPHA HEALTH CARE LTD,31/07/2020,"3,371.48",73501-Residential EMI,Physical Support,THIRD PARTY PAYMENTS,Revenue
Walsall Council,http://opendatacommunities.org/id/metropolitan-district-council/walsall,WC118-504,31/07/2020,CHILDRENS,ALPHA TRAINING ACADEMY UK LTD,14/07/2020,750,60500-Materials,Pupil Referral Unit Exclusions,SUPPLIES & SERVICES,Revenue
Walsall Council,http://opendatacommunities.org/id/metropolitan-district-council/walsall,WC118-505,31/07/2020,CHILDRENS,ALPHABIOLABS,15/07/2020,404,63000-Professional Fees & Services,Looked After Childrens Social Work Team,SUPPLIES & SERVICES,Revenue
Walsall Council,http://opendatacommunities.org/id/metropolitan-district-council/walsall,WC118-506,31/07/2020,ECONOMY & ENVIRONMENT,AMEY LG LIMITED,16/07/2020,"1,306.37",60008-Repair & Maintenance of Furniture & Equipment,CCTV,SUPPLIES & SERVICES,Revenue
Walsall Council,http://opendatacommunities.org/id/metropolitan-district-council/walsall,WC118-507,31/07/2020,ECONOMY & ENVIRONMENT,AMEY LG LIMITED,22/07/2020,"2,064.16",60008-Repair & Maintenance of Furniture & Equipment,CCTV,SUPPLIES & SERVICES,Revenue
Walsall Council,http://opendatacommunities.org/id/metropolitan-district-council/walsall,WC118-508,31/07/2020,ECONOMY & ENVIRONMENT,AMEY LG LIMITED,22/07/2020,432.57,60008-Repair & Maintenance of Furniture & Equipment,Bus Lane Enforcement,SUPPLIES & SERVICES,Revenue
Walsall Council,http://opendatacommunities.org/id/metropolitan-district-council/walsall,WC118-509,31/07/2020,ADULT SOCIAL CARE,ANCHOR CAREHOMES LTD - HARDEN HALL,23/07/2020,"4,233.64",73025-Professional Services-Priv Contractor & Other Agencies,Transitional Care Support Team,THIRD PARTY PAYMENTS,Revenue
Walsall Council,http://opendatacommunities.org/id/metropolitan-district-council/walsall,WC118-510,31/07/2020,ADULT SOCIAL CARE,ANCHOR CAREHOMES LTD - HARDEN HALL,31/07/2020,"2,308.00",73501-Residential EMI,Mental Health Support,THIRD PARTY PAYMENTS,Revenue
Walsall Council,http://opendatacommunities.org/id/metropolitan-district-council/walsall,WC118-511,31/07/2020,ADULT SOCIAL CARE,ANCHOR CAREHOMES LTD - HARDEN HALL,31/07/2020,"2,324.00",73500-Residential,Sensory Support,THIRD PARTY PAYMENTS,Revenue
Walsall Council,http://opendatacommunities.org/id/metropolitan-district-council/walsall,WC118-512,31/07/2020,ADULT SOCIAL CARE,ANCHOR CAREHOMES LTD - HARDEN HALL,31/07/2020,"2,628.00",73501-Residential EMI,Support with Memory & Cognition,THIRD PARTY PAYMENTS,Revenue
Walsall Council,http://opendatacommunities.org/id/metropolitan-district-council/walsall,WC118-513,31/07/2020,ADULT SOCIAL CARE,ANCHOR CAREHOMES LTD - HARDEN HALL,31/07/2020,"2,308.00",73501-Residential EMI,Mental Health Support,THIRD PARTY PAYMENTS,Revenue
Walsall Council,http://opendatacommunities.org/id/metropolitan-district-council/walsall,WC118-514,31/07/2020,ADULT SOCIAL CARE,ANCHOR CAREHOMES LTD - HARDEN HALL,31/07/2020,"2,044.00",73500-Residential,Support with Memory & Cognition,THIRD PARTY PAYMENTS,Revenue
Walsall Council,http://opendatacommunities.org/id/metropolitan-district-council/walsall,WC118-515,31/07/2020,ADULT SOCIAL CARE,ANCHOR CAREHOMES LTD - HARDEN HALL,31/07/2020,"1,600.00",73500-Residential,Support with Memory & Cognition,THIRD PARTY PAYMENTS,Revenue
Walsall Council,http://opendatacommunities.org/id/metropolitan-district-council/walsall,WC118-516,31/07/2020,ADULT SOCIAL CARE,ANCHOR CAREHOMES LTD - HARDEN HALL,31/07/2020,"2,535.16",73500-Residential,Physical Support,THIRD PARTY PAYMENTS,Revenue
Walsall Council,http://opendatacommunities.org/id/metropolitan-district-council/walsall,WC118-517,31/07/2020,ADULT SOCIAL CARE,ANCHOR CAREHOMES LTD - HARDEN HALL,31/07/2020,"2,668.00",73501-Residential EMI,Physical Support,THIRD PARTY PAYMENTS,Revenue
Walsall Council,http://opendatacommunities.org/id/metropolitan-district-council/walsall,WC118-518,31/07/2020,ADULT SOCIAL CARE,ANCHOR CAREHOMES LTD - HARDEN HALL,31/07/2020,"2,364.00",73500-Residential,Physical Support,THIRD PARTY PAYMENTS,Revenue
Walsall Council,http://opendatacommunities.org/id/metropolitan-district-council/walsall,WC118-519,31/07/2020,ADULT SOCIAL CARE,ANCHOR CAREHOMES LTD - HARDEN HALL,31/07/2020,"2,648.00",73501-Residential EMI,Physical Support,THIRD PARTY PAYMENTS,Revenue
Walsall Council,http://opendatacommunities.org/id/metropolitan-district-council/walsall,WC118-520,31/07/2020,ADULT SOCIAL CARE,ANCHOR CAREHOMES LTD - HARDEN HALL,31/07/2020,"2,480.32",73501-Residential EMI,Sensory Support,THIRD PARTY PAYMENTS,Revenue
Walsall Council,http://opendatacommunities.org/id/metropolitan-district-council/walsall,WC118-521,31/07/2020,ADULT SOCIAL CARE,ANCHOR CAREHOMES LTD - HARDEN HALL,31/07/2020,"2,308.00",73501-Residential EMI,Mental Health Support,THIRD PARTY PAYMENTS,Revenue
Walsall Council,http://opendatacommunities.org/id/metropolitan-district-council/walsall,WC118-522,31/07/2020,ADULT SOCIAL CARE,ANCHOR CAREHOMES LTD - HARDEN HALL,31/07/2020,"2,308.00",73501-Residential EMI,Physical Support,THIRD PARTY PAYMENTS,Revenue
Walsall Council,http://opendatacommunities.org/id/metropolitan-district-council/walsall,WC118-523,31/07/2020,ADULT SOCIAL CARE,ANCHOR CAREHOMES LTD - HARDEN HALL,31/07/2020,"2,648.00",73501-Residential EMI,Physical Support,THIRD PARTY PAYMENTS,Revenue
Walsall Council,http://opendatacommunities.org/id/metropolitan-district-council/walsall,WC118-524,31/07/2020,ADULT SOCIAL CARE,ANCHOR CAREHOMES LTD - HARDEN HALL,31/07/2020,"2,308.00",73501-Residential EMI,Physical Support,THIRD PARTY PAYMENTS,Revenue
Walsall Council,http://opendatacommunities.org/id/metropolitan-district-council/walsall,WC118-525,31/07/2020,ADULT SOCIAL CARE,ANCHOR CAREHOMES LTD - HARDEN HALL,31/07/2020,"2,668.00",73501-Residential EMI,Social Support,THIRD PARTY PAYMENTS,Revenue
Walsall Council,http://opendatacommunities.org/id/metropolitan-district-council/walsall,WC118-526,31/07/2020,ADULT SOCIAL CARE,ANCHOR CAREHOMES LTD - HARDEN HALL,31/07/2020,"2,044.00",73500-Residential,Support with Memory & Cognition,THIRD PARTY PAYMENTS,Revenue
Walsall Council,http://opendatacommunities.org/id/metropolitan-district-council/walsall,WC118-527,31/07/2020,ADULT SOCIAL CARE,ANCHOR CAREHOMES LTD - HARDEN HALL,31/07/2020,"2,364.00",73500-Residential,Social Support,THIRD PARTY PAYMENTS,Revenue
Walsall Council,http://opendatacommunities.org/id/metropolitan-district-council/walsall,WC118-528,31/07/2020,ADULT SOCIAL CARE,ANCHOR CAREHOMES LTD - HARDEN HALL,31/07/2020,"2,668.00",73501-Residential EMI,Physical Support,THIRD PARTY PAYMENTS,Revenue
Walsall Council,http://opendatacommunities.org/id/metropolitan-district-council/walsall,WC118-529,31/07/2020,ADULT SOCIAL CARE,ANCHOR CAREHOMES LTD - HARDEN HALL,31/07/2020,"2,308.00",73501-Residential EMI,Physical Support,THIRD PARTY PAYMENTS,Revenue
Walsall Council,http://opendatacommunities.org/id/metropolitan-district-council/walsall,WC118-530,31/07/2020,ADULT SOCIAL CARE,ANCHOR CAREHOMES LTD - HARDEN HALL,31/07/2020,"2,308.00",73501-Residential EMI,Physical Support,THIRD PARTY PAYMENTS,Revenue
Walsall Council,http://opendatacommunities.org/id/metropolitan-district-council/walsall,WC118-531,31/07/2020,ADULT SOCIAL CARE,ANCHOR CAREHOMES LTD - HARDEN HALL,31/07/2020,"2,271.48",73501-Residential EMI,Physical Support,THIRD PARTY PAYMENTS,Revenue
Walsall Council,http://opendatacommunities.org/id/metropolitan-district-council/walsall,WC118-532,31/07/2020,ADULT SOCIAL CARE,ANCHOR CAREHOMES LTD - HARDEN HALL,31/07/2020,"2,044.00",73500-Residential,Physical Support,THIRD PARTY PAYMENTS,Revenue
Walsall Council,http://opendatacommunities.org/id/metropolitan-district-council/walsall,WC118-533,31/07/2020,ADULT SOCIAL CARE,ANCHOR CAREHOMES LTD - HARDEN HALL,31/07/2020,"2,648.00",73501-Residential EMI,Physical Support,THIRD PARTY PAYMENTS,Revenue
Walsall Council,http://opendatacommunities.org/id/metropolitan-district-council/walsall,WC118-534,31/07/2020,ADULT SOCIAL CARE,ANCHOR CAREHOMES LTD - HARDEN HALL,31/07/2020,"2,335.76",73501-Residential EMI,Physical Support,THIRD PARTY PAYMENTS,Revenue
Walsall Council,http://opendatacommunities.org/id/metropolitan-district-council/walsall,WC118-535,31/07/2020,ADULT SOCIAL CARE,ANCHOR CAREHOMES LTD - HARDEN HALL,31/07/2020,"2,668.00",73501-Residential EMI,Physical Support,THIRD PARTY PAYMENTS,Revenue
Walsall Council,http://opendatacommunities.org/id/metropolitan-district-council/walsall,WC118-536,31/07/2020,ADULT SOCIAL CARE,ANCHOR CAREHOMES LTD - HARDEN HALL,31/07/2020,"2,195.16",73500-Residential,Physical Support,THIRD PARTY PAYMENTS,Revenue
Walsall Council,http://opendatacommunities.org/id/metropolitan-district-council/walsall,WC118-537,31/07/2020,ADULT SOCIAL CARE,ANCHOR CAREHOMES LTD - HARDEN HALL,31/07/2020,"2,308.00",73501-Residential EMI,Physical Support,THIRD PARTY PAYMENTS,Revenue
Walsall Council,http://opendatacommunities.org/id/metropolitan-district-council/walsall,WC118-538,31/07/2020,ADULT SOCIAL CARE,ANCHOR CAREHOMES LTD - HARDEN HALL,31/07/2020,"2,308.00",73501-Residential EMI,Mental Health Support,THIRD PARTY PAYMENTS,Revenue
Walsall Council,http://opendatacommunities.org/id/metropolitan-district-council/walsall,WC118-539,31/07/2020,ADULT SOCIAL CARE,ANCHOR CAREHOMES LTD - HARDEN HALL,31/07/2020,"2,308.00",73501-Residential EMI,Physical Support,THIRD PARTY PAYMENTS,Revenue
Walsall Council,http://opendatacommunities.org/id/metropolitan-district-council/walsall,WC118-540,31/07/2020,ADULT SOCIAL CARE,ANCHOR CAREHOMES LTD - HARDEN HALL,31/07/2020,"2,204.00",73500-Residential,Physical Support,THIRD PARTY PAYMENTS,Revenue
Walsall Council,http://opendatacommunities.org/id/metropolitan-district-council/walsall,WC118-541,31/07/2020,ADULT SOCIAL CARE,ANCHOR CAREHOMES LTD - HARDEN HALL,31/07/2020,"2,308.00",73501-Residential EMI,Support with Memory & Cognition,THIRD PARTY PAYMENTS,Revenue
Walsall Council,http://opendatacommunities.org/id/metropolitan-district-council/walsall,WC118-542,31/07/2020,ADULT SOCIAL CARE,ANCHOR CAREHOMES LTD - HARDEN HALL,31/07/2020,"2,308.00",73501-Residential EMI,Mental Health Support,THIRD PARTY PAYMENTS,Revenue
Walsall Council,http://opendatacommunities.org/id/metropolitan-district-council/walsall,WC118-543,31/07/2020,ADULT SOCIAL CARE,ANCHOR CAREHOMES LTD - HARDEN HALL,31/07/2020,"2,044.00",73500-Residential,Physical Support,THIRD PARTY PAYMENTS,Revenue
Walsall Council,http://opendatacommunities.org/id/metropolitan-district-council/walsall,WC118-544,31/07/2020,ECONOMY & ENVIRONMENT,ANDREW PAGE 1917 LTD,15/07/2020,426.9,60514-Materials to Stores,Fleet Parts Stock Account,SUPPLIES & SERVICES,Revenue
Walsall Council,http://opendatacommunities.org/id/metropolitan-district-council/walsall,WC118-545,31/07/2020,CHILDRENS,ANGELS WITHOUT WINGS,16/07/2020,"4,948.75",63000-Professional Fees & Services,Adoption Team,SUPPLIES & SERVICES,Revenue
Walsall Council,http://opendatacommunities.org/id/metropolitan-district-council/walsall,WC118-546,31/07/2020,ADULT SOCIAL CARE,ANSON COURT RESIDENTIAL HOME,31/07/2020,"2,308.00",73501-Residential EMI,Social Support,THIRD PARTY PAYMENTS,Revenue
Walsall Council,http://opendatacommunities.org/id/metropolitan-district-council/walsall,WC118-547,31/07/2020,ADULT SOCIAL CARE,ANSON COURT RESIDENTIAL HOME,31/07/2020,"2,308.00",73501-Residential EMI,Physical Support,THIRD PARTY PAYMENTS,Revenue
Walsall Council,http://opendatacommunities.org/id/metropolitan-district-council/walsall,WC118-548,31/07/2020,ADULT SOCIAL CARE,ANSON COURT RESIDENTIAL HOME,31/07/2020,"2,508.00",73501-Residential EMI,Social Support,THIRD PARTY PAYMENTS,Revenue
Walsall Council,http://opendatacommunities.org/id/metropolitan-district-council/walsall,WC118-549,31/07/2020,ADULT SOCIAL CARE,ANSON COURT RESIDENTIAL HOME,31/07/2020,"2,441.28",73500-Residential,Support with Memory & Cognition,THIRD PARTY PAYMENTS,Revenue
Walsall Council,http://opendatacommunities.org/id/metropolitan-district-council/walsall,WC118-550,31/07/2020,ADULT SOCIAL CARE,ANSON COURT RESIDENTIAL HOME,31/07/2020,"2,044.00",73500-Residential,Physical Support,THIRD PARTY PAYMENTS,Revenue
Walsall Council,http://opendatacommunities.org/id/metropolitan-district-council/walsall,WC118-551,31/07/2020,ADULT SOCIAL CARE,ANSON COURT RESIDENTIAL HOME,31/07/2020,"18,280.90",73501-Residential EMI,Physical Support,THIRD PARTY PAYMENTS,Revenue
Walsall Council,http://opendatacommunities.org/id/metropolitan-district-council/walsall,WC118-552,31/07/2020,ADULT SOCIAL CARE,ANSON COURT RESIDENTIAL HOME,31/07/2020,"2,308.00",73501-Residential EMI,Social Support,THIRD PARTY PAYMENTS,Revenue
Walsall Council,http://opendatacommunities.org/id/metropolitan-district-council/walsall,WC118-553,31/07/2020,ADULT SOCIAL CARE,ANSON COURT RESIDENTIAL HOME,31/07/2020,"7,491.47",73501-Residential EMI,Physical Support,THIRD PARTY PAYMENTS,Revenue
Walsall Council,http://opendatacommunities.org/id/metropolitan-district-council/walsall,WC118-554,31/07/2020,ADULT SOCIAL CARE,ANSON COURT RESIDENTIAL HOME,31/07/2020,"2,508.00",73501-Residential EMI,Social Support,THIRD PARTY PAYMENTS,Revenue
Walsall Council,http://opendatacommunities.org/id/metropolitan-district-council/walsall,WC118-555,31/07/2020,ADULT SOCIAL CARE,ANSON COURT RESIDENTIAL HOME,31/07/2020,"2,428.00",73501-Residential EMI,Mental Health Support,THIRD PARTY PAYMENTS,Revenue
Walsall Council,http://opendatacommunities.org/id/metropolitan-district-council/walsall,WC118-556,31/07/2020,ADULT SOCIAL CARE,ANSON COURT RESIDENTIAL HOME,31/07/2020,"2,508.00",73501-Residential EMI,Physical Support,THIRD PARTY PAYMENTS,Revenue
Walsall Council,http://opendatacommunities.org/id/metropolitan-district-council/walsall,WC118-557,31/07/2020,ADULT SOCIAL CARE,ANSON COURT RESIDENTIAL HOME,31/07/2020,"2,520.00",73500-Residential,Physical Support,THIRD PARTY PAYMENTS,Revenue
Walsall Council,http://opendatacommunities.org/id/metropolitan-district-council/walsall,WC118-558,31/07/2020,ADULT SOCIAL CARE,ANSON COURT RESIDENTIAL HOME,31/07/2020,"2,428.00",73501-Residential EMI,Physical Support,THIRD PARTY PAYMENTS,Revenue
Walsall Council,http://opendatacommunities.org/id/metropolitan-district-council/walsall,WC118-559,31/07/2020,CHILDRENS,APP CARZ,20/07/2020,"-2,360.00",52000-Hire of Vehicle with Driver,Home To School Transport,TRANSPORT,Revenue
Walsall Council,http://opendatacommunities.org/id/metropolitan-district-council/walsall,WC118-560,31/07/2020,CHILDRENS,APP CARZ,20/07/2020,588,52000-Hire of Vehicle with Driver,Home To School Transport,TRANSPORT,Revenue
Walsall Council,http://opendatacommunities.org/id/metropolitan-district-council/walsall,WC118-561,31/07/2020,CHILDRENS,APP CARZ,20/07/2020,-980,52000-Hire of Vehicle with Driver,Home To School Transport,TRANSPORT,Revenue
Walsall Council,http://opendatacommunities.org/id/metropolitan-district-council/walsall,WC118-562,31/07/2020,CHILDRENS,APP CARZ,20/07/2020,960,52000-Hire of Vehicle with Driver,Home To School Transport,TRANSPORT,Revenue
Walsall Council,http://opendatacommunities.org/id/metropolitan-district-council/walsall,WC118-563,31/07/2020,CHILDRENS,APP CARZ,20/07/2020,595.23,52000-Hire of Vehicle with Driver,Home To School Transport,TRANSPORT,Revenue
Walsall Council,http://opendatacommunities.org/id/metropolitan-district-council/walsall,WC118-564,31/07/2020,CHILDRENS,APP CARZ,20/07/2020,840,52000-Hire of Vehicle with Driver,Home To School Transport,TRANSPORT,Revenue
Walsall Council,http://opendatacommunities.org/id/metropolitan-district-council/walsall,WC118-565,31/07/2020,CHILDRENS,APP CARZ,20/07/2020,330,52000-Hire of Vehicle with Driver,Home To School Transport,TRANSPORT,Revenue
Walsall Council,http://opendatacommunities.org/id/metropolitan-district-council/walsall,WC118-566,31/07/2020,CHILDRENS,APP CARZ,20/07/2020,880,52000-Hire of Vehicle with Driver,Home To School Transport,TRANSPORT,Revenue
Walsall Council,http://opendatacommunities.org/id/metropolitan-district-council/walsall,WC118-567,31/07/2020,CHILDRENS,APP CARZ,20/07/2020,352,52000-Hire of Vehicle with Driver,Home To School Transport,TRANSPORT,Revenue
Walsall Council,http://opendatacommunities.org/id/metropolitan-district-council/walsall,WC118-568,31/07/2020,CHILDRENS,APP CARZ,20/07/2020,896,52000-Hire of Vehicle with Driver,Home To School Transport,TRANSPORT,Revenue
Walsall Council,http://opendatacommunities.org/id/metropolitan-district-council/walsall,WC118-569,31/07/2020,CHILDRENS,APP CARZ,20/07/2020,598.4,52000-Hire of Vehicle with Driver,Home To School Transport,TRANSPORT,Revenue
Walsall Council,http://opendatacommunities.org/id/metropolitan-district-council/walsall,WC118-570,31/07/2020,CHILDRENS,APP CARZ,20/07/2020,857.6,52000-Hire of Vehicle with Driver,Home To School Transport,TRANSPORT,Revenue
Walsall Council,http://opendatacommunities.org/id/metropolitan-district-council/walsall,WC118-571,31/07/2020,CHILDRENS,APP CARZ,20/07/2020,480,52000-Hire of Vehicle with Driver,Home To School Transport,TRANSPORT,Revenue
Walsall Council,http://opendatacommunities.org/id/metropolitan-district-council/walsall,WC118-572,31/07/2020,ECONOMY & ENVIRONMENT,AQUILA TRUCK CENTRES LTD,15/07/2020,398.61,60500-Materials,Fleet,SUPPLIES & SERVICES,Revenue
Walsall Council,http://opendatacommunities.org/id/metropolitan-district-council/walsall,WC118-573,31/07/2020,ADULT SOCIAL CARE,ARBORETUM NURSING HOME.,16/07/2020,687.09,73025-Professional Services-Priv Contractor & Other Agencies,Transitional Care Support Team,THIRD PARTY PAYMENTS,Revenue
Walsall Council,http://opendatacommunities.org/id/metropolitan-district-council/walsall,WC118-574,31/07/2020,ADULT SOCIAL CARE,ARBORETUM NURSING HOME.,21/07/2020,"1,603.20",73025-Professional Services-Priv Contractor & Other Agencies,Transitional Care Support Team,THIRD PARTY PAYMENTS,Revenue
Walsall Council,http://opendatacommunities.org/id/metropolitan-district-council/walsall,WC118-575,31/07/2020,ADULT SOCIAL CARE,ARBORETUM NURSING HOME.,30/07/2020,"1,372.46",73025-Professional Services-Priv Contractor & Other Agencies,Transitional Care Support Team,THIRD PARTY PAYMENTS,Revenue
Walsall Council,http://opendatacommunities.org/id/metropolitan-district-council/walsall,WC118-576,31/07/2020,ADULT SOCIAL CARE,ARBORETUM NURSING HOME.,30/07/2020,"3,202.40",73025-Professional Services-Priv Contractor & Other Agencies,Transitional Care Support Team,THIRD PARTY PAYMENTS,Revenue
Walsall Council,http://opendatacommunities.org/id/metropolitan-district-council/walsall,WC118-577,31/07/2020,ADULT SOCIAL CARE,ARBORETUM NURSING HOME.,31/07/2020,"2,496.00",73502-Nursing,Physical Support,THIRD PARTY PAYMENTS,Revenue
Walsall Council,http://opendatacommunities.org/id/metropolitan-district-council/walsall,WC118-578,31/07/2020,ADULT SOCIAL CARE,ARBORETUM NURSING HOME.,31/07/2020,"2,476.00",73502-Nursing,Physical Support,THIRD PARTY PAYMENTS,Revenue
Walsall Council,http://opendatacommunities.org/id/metropolitan-district-council/walsall,WC118-579,31/07/2020,ADULT SOCIAL CARE,ARBORETUM NURSING HOME.,31/07/2020,"2,396.00",73502-Nursing,Physical Support,THIRD PARTY PAYMENTS,Revenue
Walsall Council,http://opendatacommunities.org/id/metropolitan-district-council/walsall,WC118-580,31/07/2020,ADULT SOCIAL CARE,ARBORETUM NURSING HOME.,31/07/2020,"2,516.00",73502-Nursing,Physical Support,THIRD PARTY PAYMENTS,Revenue
Walsall Council,http://opendatacommunities.org/id/metropolitan-district-council/walsall,WC118-581,31/07/2020,ADULT SOCIAL CARE,ARBORETUM NURSING HOME.,31/07/2020,"2,556.00",73502-Nursing,Social Support,THIRD PARTY PAYMENTS,Revenue
Walsall Council,http://opendatacommunities.org/id/metropolitan-district-council/walsall,WC118-582,31/07/2020,ADULT SOCIAL CARE,ARBORETUM NURSING HOME.,31/07/2020,"2,556.00",73502-Nursing,Physical Support,THIRD PARTY PAYMENTS,Revenue
Walsall Council,http://opendatacommunities.org/id/metropolitan-district-council/walsall,WC118-583,31/07/2020,ADULT SOCIAL CARE,ARBORETUM NURSING HOME.,31/07/2020,"2,576.00",73502-Nursing,Physical Support,THIRD PARTY PAYMENTS,Revenue
Walsall Council,http://opendatacommunities.org/id/metropolitan-district-council/walsall,WC118-584,31/07/2020,ADULT SOCIAL CARE,ARBORETUM NURSING HOME.,31/07/2020,"2,556.00",73502-Nursing,Physical Support,THIRD PARTY PAYMENTS,Revenue
Walsall Council,http://opendatacommunities.org/id/metropolitan-district-council/walsall,WC118-585,31/07/2020,ADULT SOCIAL CARE,ARBORETUM NURSING HOME.,31/07/2020,"2,804.28",73502-Nursing,Social Support,THIRD PARTY PAYMENTS,Revenue
Walsall Council,http://opendatacommunities.org/id/metropolitan-district-council/walsall,WC118-586,31/07/2020,ADULT SOCIAL CARE,ARBORETUM NURSING HOME.,31/07/2020,"2,396.00",73502-Nursing,Physical Support,THIRD PARTY PAYMENTS,Revenue
Walsall Council,http://opendatacommunities.org/id/metropolitan-district-council/walsall,WC118-587,31/07/2020,ADULT SOCIAL CARE,ARBORETUM NURSING HOME.,31/07/2020,"2,556.00",73502-Nursing,Social Support,THIRD PARTY PAYMENTS,Revenue
Walsall Council,http://opendatacommunities.org/id/metropolitan-district-council/walsall,WC118-588,31/07/2020,ADULT SOCIAL CARE,ARBORETUM NURSING HOME.,31/07/2020,368,73502-Nursing,Physical Support,THIRD PARTY PAYMENTS,Revenue
Walsall Council,http://opendatacommunities.org/id/metropolitan-district-council/walsall,WC118-589,31/07/2020,ADULT SOCIAL CARE,ARBORETUM NURSING HOME.,31/07/2020,644,73502-Nursing,Physical Support,THIRD PARTY PAYMENTS,Revenue
Walsall Council,http://opendatacommunities.org/id/metropolitan-district-council/walsall,WC118-590,31/07/2020,ADULT SOCIAL CARE,ARBORETUM NURSING HOME.,31/07/2020,"2,396.00",73502-Nursing,Physical Support,THIRD PARTY PAYMENTS,Revenue
Walsall Council,http://opendatacommunities.org/id/metropolitan-district-council/walsall,WC118-591,31/07/2020,ADULT SOCIAL CARE,ARBORETUM NURSING HOME.,31/07/2020,"2,556.00",73502-Nursing,Physical Support,THIRD PARTY PAYMENTS,Revenue
Walsall Council,http://opendatacommunities.org/id/metropolitan-district-council/walsall,WC118-592,31/07/2020,ADULT SOCIAL CARE,ARBORETUM NURSING HOME.,31/07/2020,"1,840.00",73502-Nursing,Physical Support,THIRD PARTY PAYMENTS,Revenue
Walsall Council,http://opendatacommunities.org/id/metropolitan-district-council/walsall,WC118-593,31/07/2020,ECONOMY & ENVIRONMENT,ARBURY WALSALL,29/07/2020,369.32,60500-Materials,Fleet,SUPPLIES & SERVICES,Revenue
Walsall Council,http://opendatacommunities.org/id/metropolitan-district-council/walsall,WC118-594,31/07/2020,CHILDRENS CAPITAL,ASBESTOS ABATEMENT SERVICES,13/07/2020,"2,366.00",1006-Site Works Contractors,CFR 1348 Asbestos Removal - Various Schools,CAPITAL,Capital
Walsall Council,http://opendatacommunities.org/id/metropolitan-district-council/walsall,WC118-595,31/07/2020,CHILDRENS,ASCENDANT SOLUTIONS LTD,22/07/2020,"6,000.00",63800-Computer Equipment,Contact Centre,SUPPLIES & SERVICES,Revenue
Walsall Council,http://opendatacommunities.org/id/metropolitan-district-council/walsall,WC118-596,31/07/2020,ADULT SOCIAL CARE,ASH GRANGE CARE HOME,20/07/2020,"1,088.16",73500-Residential,Social Support,THIRD PARTY PAYMENTS,Revenue
Walsall Council,http://opendatacommunities.org/id/metropolitan-district-council/walsall,WC118-597,31/07/2020,ADULT SOCIAL CARE,ASH GRANGE CARE HOME,22/07/2020,"21,225.97",63000-Professional Fees & Services,"Strategy, Commissioning & Delivery Support",SUPPLIES & SERVICES,Revenue
Walsall Council,http://opendatacommunities.org/id/metropolitan-district-council/walsall,WC118-598,31/07/2020,ADULT SOCIAL CARE,ASH GRANGE CARE HOME,22/07/2020,"14,060.17",63000-Professional Fees & Services,"Strategy, Commissioning & Delivery Support",SUPPLIES & SERVICES,Revenue
Walsall Council,http://opendatacommunities.org/id/metropolitan-district-council/walsall,WC118-599,31/07/2020,ADULT SOCIAL CARE,ASH GRANGE CARE HOME,31/07/2020,"2,396.00",73502-Nursing,Support with Memory & Cognition,THIRD PARTY PAYMENTS,Revenue
Walsall Council,http://opendatacommunities.org/id/metropolitan-district-council/walsall,WC118-600,31/07/2020,ADULT SOCIAL CARE,ASH GRANGE CARE HOME,31/07/2020,"2,396.00",73502-Nursing,Physical Support,THIRD PARTY PAYMENTS,Revenue
Walsall Council,http://opendatacommunities.org/id/metropolitan-district-council/walsall,WC118-601,31/07/2020,ADULT SOCIAL CARE,ASH GRANGE CARE HOME,31/07/2020,"2,396.00",73502-Nursing,Physical Support,THIRD PARTY PAYMENTS,Revenue
Walsall Council,http://opendatacommunities.org/id/metropolitan-district-council/walsall,WC118-602,31/07/2020,ADULT SOCIAL CARE,ASH GRANGE CARE HOME,31/07/2020,"2,696.00",73503-Nursing EMI,Physical Support,THIRD PARTY PAYMENTS,Revenue
Walsall Council,http://opendatacommunities.org/id/metropolitan-district-council/walsall,WC118-603,31/07/2020,ADULT SOCIAL CARE,ASH GRANGE CARE HOME,31/07/2020,"2,516.00",73502-Nursing,Physical Support,THIRD PARTY PAYMENTS,Revenue
Walsall Council,http://opendatacommunities.org/id/metropolitan-district-council/walsall,WC118-604,31/07/2020,ADULT SOCIAL CARE,ASH GRANGE CARE HOME,31/07/2020,"3,027.24",73502-Nursing,Physical Support,THIRD PARTY PAYMENTS,Revenue
Walsall Council,http://opendatacommunities.org/id/metropolitan-district-council/walsall,WC118-605,31/07/2020,ADULT SOCIAL CARE,ASH GRANGE CARE HOME,31/07/2020,"2,396.00",73502-Nursing,Mental Health Support,THIRD PARTY PAYMENTS,Revenue
Walsall Council,http://opendatacommunities.org/id/metropolitan-district-council/walsall,WC118-606,31/07/2020,ADULT SOCIAL CARE,ASH GRANGE CARE HOME,31/07/2020,"2,044.00",73500-Residential,Mental Health Support,THIRD PARTY PAYMENTS,Revenue
Walsall Council,http://opendatacommunities.org/id/metropolitan-district-council/walsall,WC118-607,31/07/2020,ADULT SOCIAL CARE,ASH GRANGE CARE HOME,31/07/2020,"2,396.00",73502-Nursing,Mental Health Support,THIRD PARTY PAYMENTS,Revenue
Walsall Council,http://opendatacommunities.org/id/metropolitan-district-council/walsall,WC118-608,31/07/2020,ADULT SOCIAL CARE,ASH GRANGE CARE HOME,31/07/2020,"2,396.00",73502-Nursing,Physical Support,THIRD PARTY PAYMENTS,Revenue
Walsall Council,http://opendatacommunities.org/id/metropolitan-district-council/walsall,WC118-609,31/07/2020,ADULT SOCIAL CARE,ASH GRANGE CARE HOME,31/07/2020,"2,396.00",73502-Nursing,Physical Support,THIRD PARTY PAYMENTS,Revenue
Walsall Council,http://opendatacommunities.org/id/metropolitan-district-council/walsall,WC118-610,31/07/2020,ADULT SOCIAL CARE,ASH GRANGE CARE HOME,31/07/2020,"3,669.04",73500-Residential,Physical Support,THIRD PARTY PAYMENTS,Revenue
Walsall Council,http://opendatacommunities.org/id/metropolitan-district-council/walsall,WC118-611,31/07/2020,ADULT SOCIAL CARE,ASH GRANGE CARE HOME,31/07/2020,"2,696.00",73503-Nursing EMI,Physical Support,THIRD PARTY PAYMENTS,Revenue
Walsall Council,http://opendatacommunities.org/id/metropolitan-district-council/walsall,WC118-612,31/07/2020,ADULT SOCIAL CARE,ASH GRANGE CARE HOME,31/07/2020,"2,581.16",73500-Residential,Learning Disability Support,THIRD PARTY PAYMENTS,Revenue
Walsall Council,http://opendatacommunities.org/id/metropolitan-district-council/walsall,WC118-613,31/07/2020,ADULT SOCIAL CARE,ASH GRANGE CARE HOME,31/07/2020,"2,396.00",73502-Nursing,Physical Support,THIRD PARTY PAYMENTS,Revenue
Walsall Council,http://opendatacommunities.org/id/metropolitan-district-council/walsall,WC118-614,31/07/2020,ADULT SOCIAL CARE,ASH GRANGE CARE HOME,31/07/2020,"2,676.00",73502-Nursing,Social Support,THIRD PARTY PAYMENTS,Revenue
Walsall Council,http://opendatacommunities.org/id/metropolitan-district-council/walsall,WC118-615,31/07/2020,ADULT SOCIAL CARE,ASH GRANGE CARE HOME,31/07/2020,"2,696.00",73503-Nursing EMI,Physical Support,THIRD PARTY PAYMENTS,Revenue
Walsall Council,http://opendatacommunities.org/id/metropolitan-district-council/walsall,WC118-616,31/07/2020,ADULT SOCIAL CARE,ASH GRANGE CARE HOME,31/07/2020,"2,044.00",73500-Residential,Support with Memory & Cognition,THIRD PARTY PAYMENTS,Revenue
Walsall Council,http://opendatacommunities.org/id/metropolitan-district-council/walsall,WC118-617,31/07/2020,ADULT SOCIAL CARE,ASH GRANGE CARE HOME,31/07/2020,"2,396.00",73502-Nursing,Physical Support,THIRD PARTY PAYMENTS,Revenue
Walsall Council,http://opendatacommunities.org/id/metropolitan-district-council/walsall,WC118-618,31/07/2020,ADULT SOCIAL CARE,ASH GRANGE CARE HOME,31/07/2020,"2,716.00",73502-Nursing,Physical Support,THIRD PARTY PAYMENTS,Revenue
Walsall Council,http://opendatacommunities.org/id/metropolitan-district-council/walsall,WC118-619,31/07/2020,ADULT SOCIAL CARE,ASH GRANGE CARE HOME,31/07/2020,"2,556.00",73502-Nursing,Physical Support,THIRD PARTY PAYMENTS,Revenue
Walsall Council,http://opendatacommunities.org/id/metropolitan-district-council/walsall,WC118-620,31/07/2020,ADULT SOCIAL CARE,ASH GRANGE CARE HOME,31/07/2020,"2,396.00",73502-Nursing,Mental Health Support,THIRD PARTY PAYMENTS,Revenue
Walsall Council,http://opendatacommunities.org/id/metropolitan-district-council/walsall,WC118-621,31/07/2020,ADULT SOCIAL CARE,ASH GRANGE CARE HOME,31/07/2020,"2,596.00",73502-Nursing,Social Support,THIRD PARTY PAYMENTS,Revenue
Walsall Council,http://opendatacommunities.org/id/metropolitan-district-council/walsall,WC118-622,31/07/2020,ADULT SOCIAL CARE,ASH GRANGE CARE HOME,31/07/2020,"2,396.00",73502-Nursing,Physical Support,THIRD PARTY PAYMENTS,Revenue
Walsall Council,http://opendatacommunities.org/id/metropolitan-district-council/walsall,WC118-623,31/07/2020,ADULT SOCIAL CARE,ASH GRANGE CARE HOME,31/07/2020,"2,596.00",73502-Nursing,Physical Support,THIRD PARTY PAYMENTS,Revenue
Walsall Council,http://opendatacommunities.org/id/metropolitan-district-council/walsall,WC118-624,31/07/2020,ADULT SOCIAL CARE,ASPECTS CARE LTD,29/07/2020,345.12,73508-Community Supported Living/Supported Accommodation,Mental Health Support,THIRD PARTY PAYMENTS,Revenue
Walsall Council,http://opendatacommunities.org/id/metropolitan-district-council/walsall,WC118-625,31/07/2020,ADULT SOCIAL CARE,ASPECTS CARE LTD,29/07/2020,417.04,73508-Community Supported Living/Supported Accommodation,Mental Health Support,THIRD PARTY PAYMENTS,Revenue
Walsall Council,http://opendatacommunities.org/id/metropolitan-district-council/walsall,WC118-626,31/07/2020,ADULT SOCIAL CARE,ASPECTS CARE LTD,29/07/2020,740.59,73508-Community Supported Living/Supported Accommodation,Mental Health Support,THIRD PARTY PAYMENTS,Revenue
Walsall Council,http://opendatacommunities.org/id/metropolitan-district-council/walsall,WC118-627,31/07/2020,ADULT SOCIAL CARE,ASPECTS CARE LTD,29/07/2020,503.32,73508-Community Supported Living/Supported Accommodation,Mental Health Support,THIRD PARTY PAYMENTS,Revenue
Walsall Council,http://opendatacommunities.org/id/metropolitan-district-council/walsall,WC118-628,31/07/2020,ADULT SOCIAL CARE,ASPECTS CARE LTD,29/07/2020,790.92,73508-Community Supported Living/Supported Accommodation,Mental Health Support,THIRD PARTY PAYMENTS,Revenue
Walsall Council,http://opendatacommunities.org/id/metropolitan-district-council/walsall,WC118-629,31/07/2020,ADULT SOCIAL CARE,ASPECTS CARE LTD,29/07/2020,546.44,73508-Community Supported Living/Supported Accommodation,Mental Health Support,THIRD PARTY PAYMENTS,Revenue
Walsall Council,http://opendatacommunities.org/id/metropolitan-district-council/walsall,WC118-630,31/07/2020,ADULT SOCIAL CARE,ASPECTS CARE LTD,29/07/2020,517.68,73508-Community Supported Living/Supported Accommodation,Mental Health Support,THIRD PARTY PAYMENTS,Revenue
Walsall Council,http://opendatacommunities.org/id/metropolitan-district-council/walsall,WC118-631,31/07/2020,ADULT SOCIAL CARE,ASPECTS CARE LTD,29/07/2020,"1,193.56",73508-Community Supported Living/Supported Accommodation,Mental Health Support,THIRD PARTY PAYMENTS,Revenue
Walsall Council,http://opendatacommunities.org/id/metropolitan-district-council/walsall,WC118-632,31/07/2020,ADULT SOCIAL CARE,ASPECTS CARE LTD,29/07/2020,517.68,73508-Community Supported Living/Supported Accommodation,Mental Health Support,THIRD PARTY PAYMENTS,Revenue
Walsall Council,http://opendatacommunities.org/id/metropolitan-district-council/walsall,WC118-633,31/07/2020,ADULT SOCIAL CARE,ASPECTS CARE LTD,29/07/2020,460.16,73508-Community Supported Living/Supported Accommodation,Mental Health Support,THIRD PARTY PAYMENTS,Revenue
Walsall Council,http://opendatacommunities.org/id/metropolitan-district-council/walsall,WC118-634,31/07/2020,ADULT SOCIAL CARE,ASPECTS CARE LTD,29/07/2020,445.8,73508-Community Supported Living/Supported Accommodation,Mental Health Support,THIRD PARTY PAYMENTS,Revenue
Walsall Council,http://opendatacommunities.org/id/metropolitan-district-council/walsall,WC118-635,31/07/2020,ADULT SOCIAL CARE,ASPECTS CARE LTD,29/07/2020,488.92,73508-Community Supported Living/Supported Accommodation,Mental Health Support,THIRD PARTY PAYMENTS,Revenue
Walsall Council,http://opendatacommunities.org/id/metropolitan-district-council/walsall,WC118-636,31/07/2020,ADULT SOCIAL CARE,ASPECTS CARE LTD,29/07/2020,560.84,73508-Community Supported Living/Supported Accommodation,Mental Health Support,THIRD PARTY PAYMENTS,Revenue
Walsall Council,http://opendatacommunities.org/id/metropolitan-district-council/walsall,WC118-637,31/07/2020,ADULT SOCIAL CARE,ASPECTS CARE LTD,29/07/2020,575.2,73508-Community Supported Living/Supported Accommodation,Mental Health Support,THIRD PARTY PAYMENTS,Revenue
Walsall Council,http://opendatacommunities.org/id/metropolitan-district-council/walsall,WC118-638,31/07/2020,ADULT SOCIAL CARE,ASPECTS CARE LTD,29/07/2020,575.2,73508-Community Supported Living/Supported Accommodation,Mental Health Support,THIRD PARTY PAYMENTS,Revenue
Walsall Council,http://opendatacommunities.org/id/metropolitan-district-council/walsall,WC118-639,31/07/2020,ADULT SOCIAL CARE,ASPECTS CARE LTD,29/07/2020,790.92,73508-Community Supported Living/Supported Accommodation,Mental Health Support,THIRD PARTY PAYMENTS,Revenue
Walsall Council,http://opendatacommunities.org/id/metropolitan-district-council/walsall,WC118-640,31/07/2020,ECONOMY & ENVIRONMENT,ATHWAL NEWS LTD,23/07/2020,344.22,60501-Library Books,Library Management,SUPPLIES & SERVICES,Revenue
Walsall Council,http://opendatacommunities.org/id/metropolitan-district-council/walsall,WC118-641,31/07/2020,RESOURCES AND TRANSFORMATION,AURORA GRAPHICS & DISPLAYS LTD,23/07/2020,283.5,62008-Outwork Print & Design,Printing Services,SUPPLIES & SERVICES,Revenue
Walsall Council,http://opendatacommunities.org/id/metropolitan-district-council/walsall,WC118-642,31/07/2020,ADULT SOCIAL CARE,AUTISM WEST MIDLANDS,31/07/2020,"7,344.60",73500-Residential,Learning Disability Support,THIRD PARTY PAYMENTS,Revenue
Walsall Council,http://opendatacommunities.org/id/metropolitan-district-council/walsall,WC118-643,31/07/2020,ADULT SOCIAL CARE,AUTISM WEST MIDLANDS 001,31/07/2020,"5,675.88",73500-Residential,Learning Disability Support,THIRD PARTY PAYMENTS,Revenue
Walsall Council,http://opendatacommunities.org/id/metropolitan-district-council/walsall,WC118-644,31/07/2020,ADULT SOCIAL CARE,AVERY HOMES NELSON LIMITED,31/07/2020,829.08,73500-Residential,Support with Memory & Cognition,THIRD PARTY PAYMENTS,Revenue
Walsall Council,http://opendatacommunities.org/id/metropolitan-district-council/walsall,WC118-645,31/07/2020,ADULT SOCIAL CARE,AVERY HOMES NELSON LIMITED,31/07/2020,"2,044.00",73500-Residential,Physical Support,THIRD PARTY PAYMENTS,Revenue
Walsall Council,http://opendatacommunities.org/id/metropolitan-district-council/walsall,WC118-646,30/06/2020,RESOURCES AND TRANSFORMATION,BACK CARE SOLUTIONS LTD,09/07/2020,703.00,60000,Schools HR Transactional Team,SUPPLIES & SERVICES,Purchase of Furniture & Equipment
Walsall Council,http://opendatacommunities.org/id/metropolitan-district-council/walsall,WC118-647,31/07/2020,CHILDRENS,BALTIMORE CONSULTING LTD,13/07/2020,"1,550.00",63000-Professional Fees & Services,SEN Assessment,SUPPLIES & SERVICES,Revenue
Walsall Council,http://opendatacommunities.org/id/metropolitan-district-council/walsall,WC118-648,31/07/2020,ECONOMY & ENVIRONMENT,BARBOUR LOGIC LIMITED,24/07/2020,"7,156.00",63000-Professional Fees & Services,Bus Lane Enforcement,SUPPLIES & SERVICES,Revenue
Walsall Council,http://opendatacommunities.org/id/metropolitan-district-council/walsall,WC118-649,31/07/2020,ECONOMY & ENVIRONMENT,BARCLAY & MATHIESON LTD #1,20/07/2020,250,60500-Materials,Fleet,SUPPLIES & SERVICES,Revenue
Walsall Council,http://opendatacommunities.org/id/metropolitan-district-council/walsall,WC118-650,31/07/2020,CAPITAL FINANCING,BARCLAYS,14/07/2020,"88,506.85",86007-CLF-Interest,Borrowing costs,FINANCING ETC,Revenue
Walsall Council,http://opendatacommunities.org/id/metropolitan-district-council/walsall,WC118-651,31/07/2020,ADULT SOCIAL CARE,BEECHWOODCOURT LTD  T/A BEECHWOOD COLLEGE,29/07/2020,"29,560.27",73500-Residential,Learning Disability Support,THIRD PARTY PAYMENTS,Revenue
Walsall Council,http://opendatacommunities.org/id/metropolitan-district-council/walsall,WC118-652,31/07/2020,ADULT SOCIAL CARE,BEECHWOODCOURT LTD  T/A BEECHWOOD COLLEGE,29/07/2020,"29,560.27",73500-Residential,Learning Disability Support,THIRD PARTY PAYMENTS,Revenue
Walsall Council,http://opendatacommunities.org/id/metropolitan-district-council/walsall,WC118-653,31/07/2020,ADULT SOCIAL CARE,BELVIDERE COURT,31/07/2020,"2,396.00",73502-Nursing,Mental Health Support,THIRD PARTY PAYMENTS,Revenue
Walsall Council,http://opendatacommunities.org/id/metropolitan-district-council/walsall,WC118-654,31/07/2020,ADULT SOCIAL CARE,BELVIDERE COURT,31/07/2020,"2,867.20",73500-Residential,Mental Health Support,THIRD PARTY PAYMENTS,Revenue
Walsall Council,http://opendatacommunities.org/id/metropolitan-district-council/walsall,WC118-655,31/07/2020,CHILDRENS,BENTLEY CHILD CARE,28/07/2020,792,63000-Professional Fees & Services,Safeguarding & Family Support,SUPPLIES & SERVICES,Revenue
Walsall Council,http://opendatacommunities.org/id/metropolitan-district-council/walsall,WC118-656,31/07/2020,ADULT SOCIAL CARE,BENTLEY COURT PRIORY,31/07/2020,"2,696.00",73503-Nursing EMI,Physical Support,THIRD PARTY PAYMENTS,Revenue
Walsall Council,http://opendatacommunities.org/id/metropolitan-district-council/walsall,WC118-657,31/07/2020,ADULT SOCIAL CARE,BENTLEY COURT PRIORY,31/07/2020,"2,696.00",73503-Nursing EMI,Social Support,THIRD PARTY PAYMENTS,Revenue
Walsall Council,http://opendatacommunities.org/id/metropolitan-district-council/walsall,WC118-658,31/07/2020,ADULT SOCIAL CARE,BENTLEY COURT PRIORY,31/07/2020,"2,396.00",73502-Nursing,Social Support,THIRD PARTY PAYMENTS,Revenue
Walsall Council,http://opendatacommunities.org/id/metropolitan-district-council/walsall,WC118-659,31/07/2020,ADULT SOCIAL CARE,BENTLEY COURT PRIORY,31/07/2020,"2,696.00",73503-Nursing EMI,Mental Health Support,THIRD PARTY PAYMENTS,Revenue
Walsall Council,http://opendatacommunities.org/id/metropolitan-district-council/walsall,WC118-660,31/07/2020,ADULT SOCIAL CARE,BENTLEY COURT PRIORY,31/07/2020,"2,976.00",73503-Nursing EMI,Physical Support,THIRD PARTY PAYMENTS,Revenue
Walsall Council,http://opendatacommunities.org/id/metropolitan-district-council/walsall,WC118-661,31/07/2020,ADULT SOCIAL CARE,BENTLEY COURT PRIORY,31/07/2020,"2,396.00",73502-Nursing,Physical Support,THIRD PARTY PAYMENTS,Revenue
Walsall Council,http://opendatacommunities.org/id/metropolitan-district-council/walsall,WC118-662,31/07/2020,ADULT SOCIAL CARE,BESS CARE LIMITED,15/07/2020,269.89,73507-Domiciliary Care,Physical Support,THIRD PARTY PAYMENTS,Revenue
Walsall Council,http://opendatacommunities.org/id/metropolitan-district-council/walsall,WC118-663,31/07/2020,ADULT SOCIAL CARE,BESS CARE LIMITED,15/07/2020,667.1,73507-Domiciliary Care,Physical Support,THIRD PARTY PAYMENTS,Revenue
Walsall Council,http://opendatacommunities.org/id/metropolitan-district-council/walsall,WC118-664,31/07/2020,ADULT SOCIAL CARE,BESS CARE LIMITED,20/07/2020,454.96,73025-Professional Services-Priv Contractor & Other Agencies,Intermediate Care Service,THIRD PARTY PAYMENTS,Revenue
Walsall Council,http://opendatacommunities.org/id/metropolitan-district-council/walsall,WC118-665,31/07/2020,ADULT SOCIAL CARE,BESS CARE LIMITED,20/07/2020,385.56,73025-Professional Services-Priv Contractor & Other Agencies,Intermediate Care Service,THIRD PARTY PAYMENTS,Revenue
Walsall Council,http://opendatacommunities.org/id/metropolitan-district-council/walsall,WC118-666,31/07/2020,ADULT SOCIAL CARE,BESS CARE LIMITED,29/07/2020,269.89,73507-Domiciliary Care,Physical Support,THIRD PARTY PAYMENTS,Revenue
Walsall Council,http://opendatacommunities.org/id/metropolitan-district-council/walsall,WC118-667,31/07/2020,ADULT SOCIAL CARE,BESS CARE LIMITED,29/07/2020,643.96,73507-Domiciliary Care,Physical Support,THIRD PARTY PAYMENTS,Revenue
Walsall Council,http://opendatacommunities.org/id/metropolitan-district-council/walsall,WC118-668,31/07/2020,ADULT SOCIAL CARE,BESS CARE LIMITED,29/07/2020,269.89,73507-Domiciliary Care,Physical Support,THIRD PARTY PAYMENTS,Revenue
Walsall Council,http://opendatacommunities.org/id/metropolitan-district-council/walsall,WC118-669,31/07/2020,ADULT SOCIAL CARE,BESS CARE LIMITED,29/07/2020,655.53,73507-Domiciliary Care,Physical Support,THIRD PARTY PAYMENTS,Revenue
Walsall Council,http://opendatacommunities.org/id/metropolitan-district-council/walsall,WC118-670,31/07/2020,ADULT SOCIAL CARE,BESS CARE LIMITED,29/07/2020,674.8,73507-Domiciliary Care,Physical Support,THIRD PARTY PAYMENTS,Revenue
Walsall Council,http://opendatacommunities.org/id/metropolitan-district-council/walsall,WC118-671,31/07/2020,ADULT SOCIAL CARE,BESS CARE LIMITED,29/07/2020,350.88,73507-Domiciliary Care,Physical Support,THIRD PARTY PAYMENTS,Revenue
Walsall Council,http://opendatacommunities.org/id/metropolitan-district-council/walsall,WC118-672,31/07/2020,ADULT SOCIAL CARE,BESS CARE LIMITED,29/07/2020,674.8,73507-Domiciliary Care,Physical Support,THIRD PARTY PAYMENTS,Revenue
Walsall Council,http://opendatacommunities.org/id/metropolitan-district-council/walsall,WC118-673,31/07/2020,ADULT SOCIAL CARE,BETHPHAGE.,15/07/2020,"1,656.42",73508-Community Supported Living/Supported Accommodation,Learning Disability Support,THIRD PARTY PAYMENTS,Revenue
Walsall Council,http://opendatacommunities.org/id/metropolitan-district-council/walsall,WC118-674,31/07/2020,ADULT SOCIAL CARE,BETHPHAGE.,15/07/2020,"2,441.04",73508-Community Supported Living/Supported Accommodation,Learning Disability Support,THIRD PARTY PAYMENTS,Revenue
Walsall Council,http://opendatacommunities.org/id/metropolitan-district-council/walsall,WC118-675,31/07/2020,ADULT SOCIAL CARE,BETHPHAGE.,15/07/2020,"2,441.04",73508-Community Supported Living/Supported Accommodation,Learning Disability Support,THIRD PARTY PAYMENTS,Revenue
Walsall Council,http://opendatacommunities.org/id/metropolitan-district-council/walsall,WC118-676,31/07/2020,ADULT SOCIAL CARE,BETHPHAGE.,17/07/2020,848.1,73507-Domiciliary Care,Learning Disability Support,THIRD PARTY PAYMENTS,Revenue
Walsall Council,http://opendatacommunities.org/id/metropolitan-district-council/walsall,WC118-677,31/07/2020,ADULT SOCIAL CARE,BETHPHAGE.,17/07/2020,560.26,73507-Domiciliary Care,Learning Disability Support,THIRD PARTY PAYMENTS,Revenue
Walsall Council,http://opendatacommunities.org/id/metropolitan-district-council/walsall,WC118-678,31/07/2020,ADULT SOCIAL CARE,BETHPHAGE.,17/07/2020,647.68,73507-Domiciliary Care,Learning Disability Support,THIRD PARTY PAYMENTS,Revenue
Walsall Council,http://opendatacommunities.org/id/metropolitan-district-council/walsall,WC118-679,31/07/2020,ADULT SOCIAL CARE,BETHPHAGE.,17/07/2020,647.66,73507-Domiciliary Care,Learning Disability Support,THIRD PARTY PAYMENTS,Revenue
Walsall Council,http://opendatacommunities.org/id/metropolitan-district-council/walsall,WC118-680,31/07/2020,ADULT SOCIAL CARE,BETHPHAGE.,17/07/2020,848.1,73507-Domiciliary Care,Learning Disability Support,THIRD PARTY PAYMENTS,Revenue
Walsall Council,http://opendatacommunities.org/id/metropolitan-district-council/walsall,WC118-681,31/07/2020,ADULT SOCIAL CARE,BETHPHAGE.,17/07/2020,560.26,73507-Domiciliary Care,Learning Disability Support,THIRD PARTY PAYMENTS,Revenue
Walsall Council,http://opendatacommunities.org/id/metropolitan-district-council/walsall,WC118-682,31/07/2020,ADULT SOCIAL CARE,BETHPHAGE.,17/07/2020,647.68,73507-Domiciliary Care,Learning Disability Support,THIRD PARTY PAYMENTS,Revenue
Walsall Council,http://opendatacommunities.org/id/metropolitan-district-council/walsall,WC118-683,31/07/2020,ADULT SOCIAL CARE,BETHPHAGE.,17/07/2020,647.66,73507-Domiciliary Care,Learning Disability Support,THIRD PARTY PAYMENTS,Revenue
Walsall Council,http://opendatacommunities.org/id/metropolitan-district-council/walsall,WC118-684,31/07/2020,ADULT SOCIAL CARE,BETHPHAGE.,31/07/2020,308.4,73507-Domiciliary Care,Learning Disability Support,THIRD PARTY PAYMENTS,Revenue
Walsall Council,http://opendatacommunities.org/id/metropolitan-district-council/walsall,WC118-685,31/07/2020,ADULT SOCIAL CARE,BETHPHAGE.,31/07/2020,848.1,73507-Domiciliary Care,Learning Disability Support,THIRD PARTY PAYMENTS,Revenue
Walsall Council,http://opendatacommunities.org/id/metropolitan-district-council/walsall,WC118-686,31/07/2020,ADULT SOCIAL CARE,BETHPHAGE.,31/07/2020,560.26,73507-Domiciliary Care,Learning Disability Support,THIRD PARTY PAYMENTS,Revenue
Walsall Council,http://opendatacommunities.org/id/metropolitan-district-council/walsall,WC118-687,31/07/2020,ADULT SOCIAL CARE,BETHPHAGE.,31/07/2020,647.68,73507-Domiciliary Care,Learning Disability Support,THIRD PARTY PAYMENTS,Revenue
Walsall Council,http://opendatacommunities.org/id/metropolitan-district-council/walsall,WC118-688,31/07/2020,ADULT SOCIAL CARE,BETHPHAGE.,31/07/2020,647.66,73507-Domiciliary Care,Learning Disability Support,THIRD PARTY PAYMENTS,Revenue
Walsall Council,http://opendatacommunities.org/id/metropolitan-district-council/walsall,WC118-689,31/07/2020,ADULT SOCIAL CARE,BETHPHAGE.,31/07/2020,848.1,73507-Domiciliary Care,Learning Disability Support,THIRD PARTY PAYMENTS,Revenue
Walsall Council,http://opendatacommunities.org/id/metropolitan-district-council/walsall,WC118-690,31/07/2020,ADULT SOCIAL CARE,BETHPHAGE.,31/07/2020,560.26,73507-Domiciliary Care,Learning Disability Support,THIRD PARTY PAYMENTS,Revenue
Walsall Council,http://opendatacommunities.org/id/metropolitan-district-council/walsall,WC118-691,31/07/2020,ADULT SOCIAL CARE,BETHPHAGE.,31/07/2020,647.68,73507-Domiciliary Care,Learning Disability Support,THIRD PARTY PAYMENTS,Revenue
Walsall Council,http://opendatacommunities.org/id/metropolitan-district-council/walsall,WC118-692,31/07/2020,ADULT SOCIAL CARE,BETHPHAGE.,31/07/2020,647.66,73507-Domiciliary Care,Learning Disability Support,THIRD PARTY PAYMENTS,Revenue
Walsall Council,http://opendatacommunities.org/id/metropolitan-district-council/walsall,WC118-693,31/07/2020,CHILDRENS,BIRCHILLS C OF E COMMUNITY ACADEMY,17/07/2020,"40,000.00",66502-Top Up Funding -Grants to Schools,Academies,SUPPLIES & SERVICES,Revenue
Walsall Council,http://opendatacommunities.org/id/metropolitan-district-council/walsall,WC118-694,31/07/2020,CHILDRENS,BIRMINGHAM CHILDRENS TRUST #,13/07/2020,"3,143.00",63000-Professional Fees & Services,Placements & Resources Team,SUPPLIES & SERVICES,Revenue
Walsall Council,http://opendatacommunities.org/id/metropolitan-district-council/walsall,WC118-695,31/07/2020,CHILDRENS,BIRMINGHAM CITY COUNCIL,13/07/2020,"2,649.18",66502-Top Up Funding -Grants to Schools,Maintained Providers,SUPPLIES & SERVICES,Revenue
Walsall Council,http://opendatacommunities.org/id/metropolitan-district-council/walsall,WC118-696,31/07/2020,CHILDRENS,BIRMINGHAM CITY COUNCIL,14/07/2020,"1,619.37",52000-Hire of Vehicle with Driver,Home To School Transport,TRANSPORT,Revenue
Walsall Council,http://opendatacommunities.org/id/metropolitan-district-council/walsall,WC118-697,31/07/2020,CHILDRENS,BLAKENALL HEATH JMI SCHOOL,17/07/2020,"2,307.70",66502-Top Up Funding -Grants to Schools,Blakenall Heath Junior School,SUPPLIES & SERVICES,Revenue
Walsall Council,http://opendatacommunities.org/id/metropolitan-district-council/walsall,WC118-698,31/07/2020,CHILDRENS,BLOSSOMS ON THE COMMON DAY NURSERY LTD,13/07/2020,"1,122.91",63000-Professional Fees & Services,Safeguarding & Family Support,SUPPLIES & SERVICES,Revenue
Walsall Council,http://opendatacommunities.org/id/metropolitan-district-council/walsall,WC118-699,31/07/2020,CHILDRENS,BLOSSOMS ON THE COMMON DAY NURSERY LTD,29/07/2020,640,77200-Transfer Payments-Other Schoolchildren/Student Related Items,Early Years - Social Inclusion Fund - 2 Yr Olds,TRANSFER PAYMENTS,Revenue
Walsall Council,http://opendatacommunities.org/id/metropolitan-district-council/walsall,WC118-700,31/07/2020,ECONOMY & ENVIRONMENT,BLOXWICH COMMUNITY PARTNERSHIP.,21/07/2020,"15,872.00",66500-Grants to Other Orgs,Community Development Additional Payments,SUPPLIES & SERVICES,Revenue
Walsall Council,http://opendatacommunities.org/id/metropolitan-district-council/walsall,WC118-701,31/07/2020,ECONOMY & ENVIRONMENT,BOC LTD,29/07/2020,264.1,60514-Materials to Stores,Fleet Parts Stock Account,SUPPLIES & SERVICES,Revenue
Walsall Council,http://opendatacommunities.org/id/metropolitan-district-council/walsall,WC118-702,31/07/2020,CHILDRENS,BOLDMERE INFANT AND NURSERY SCHOOL,13/07/2020,"4,797.76",66502-Top Up Funding -Grants to Schools,Academies,SUPPLIES & SERVICES,Revenue
Walsall Council,http://opendatacommunities.org/id/metropolitan-district-council/walsall,WC118-703,31/07/2020,CHILDRENS,BORSHCH LTD,29/07/2020,408.33,60008-Repair & Maintenance of Furniture & Equipment,Walsall Crisis Support Scheme,SUPPLIES & SERVICES,Revenue
Walsall Council,http://opendatacommunities.org/id/metropolitan-district-council/walsall,WC118-704,31/07/2020,CHILDRENS,BORSHCH LTD,29/07/2020,433.33,60008-Repair & Maintenance of Furniture & Equipment,Walsall Crisis Support Scheme,SUPPLIES & SERVICES,Revenue
Walsall Council,http://opendatacommunities.org/id/metropolitan-district-council/walsall,WC118-705,31/07/2020,CHILDRENS,BORSHCH LTD,29/07/2020,291.66,60008-Repair & Maintenance of Furniture & Equipment,Walsall Crisis Support Scheme,SUPPLIES & SERVICES,Revenue
Walsall Council,http://opendatacommunities.org/id/metropolitan-district-council/walsall,WC118-706,31/07/2020,CHILDRENS,BORSHCH LTD,30/07/2020,416.67,60008-Repair & Maintenance of Furniture & Equipment,Walsall Crisis Support Scheme,SUPPLIES & SERVICES,Revenue
Walsall Council,http://opendatacommunities.org/id/metropolitan-district-council/walsall,WC118-707,31/07/2020,CHILDRENS,BORSHCH LTD,30/07/2020,433.33,60008-Repair & Maintenance of Furniture & Equipment,Walsall Crisis Support Scheme,SUPPLIES & SERVICES,Revenue
Walsall Council,http://opendatacommunities.org/id/metropolitan-district-council/walsall,WC118-708,31/07/2020,CHILDRENS,BORSHCH LTD,30/07/2020,433.33,60008-Repair & Maintenance of Furniture & Equipment,Walsall Crisis Support Scheme,SUPPLIES & SERVICES,Revenue
Walsall Council,http://opendatacommunities.org/id/metropolitan-district-council/walsall,WC118-709,31/07/2020,ADULT SOCIAL CARE,BOWDEN DERRA PARK,31/07/2020,"11,419.16",73500-Residential,Learning Disability Support,THIRD PARTY PAYMENTS,Revenue
Walsall Council,http://opendatacommunities.org/id/metropolitan-district-council/walsall,WC118-710,31/07/2020,ECONOMY & ENVIRONMENT,BRENNTAG UK LIMITED,14/07/2020,710.56,50301-Fuel for Vehicles,Fuel Stock Account,TRANSPORT,Revenue
Walsall Council,http://opendatacommunities.org/id/metropolitan-district-council/walsall,WC118-711,31/07/2020,ADULT SOCIAL CARE,BRIDGEWOOD HEALTH CARE LTD,31/07/2020,"5,994.80",73500-Residential,Sensory Support,THIRD PARTY PAYMENTS,Revenue
Walsall Council,http://opendatacommunities.org/id/metropolitan-district-council/walsall,WC118-712,31/07/2020,ECONOMY & ENVIRONMENT,BRITISH MUSLIM YOUTH GROUP YOUTH WORK CIC,21/07/2020,"1,500.00",66500-Grants to Other Orgs,Community Development Additional Payments,SUPPLIES & SERVICES,Revenue
Walsall Council,http://opendatacommunities.org/id/metropolitan-district-council/walsall,WC118-713,31/07/2020,HOLDING ACCOUNTS,BROWNE JACOBSON SOLICITORS,14/07/2020,"3,875.00",67001-Insurance Payment Claims,Public Liability,SUPPLIES & SERVICES,Revenue
Walsall Council,http://opendatacommunities.org/id/metropolitan-district-council/walsall,WC118-714,31/07/2020,RESOURCES AND TRANSFORMATION,BT PLC#1,13/07/2020,"1,036.14",63601-Landline Phones,Central Communications Recharges,SUPPLIES & SERVICES,Revenue
Walsall Council,http://opendatacommunities.org/id/metropolitan-district-council/walsall,WC118-715,31/07/2020,ADULT SOCIAL CARE,BUNZIL HEALTHCARE T/A CARESHOP,16/07/2020,453.24,60539-Cleaning Materials,Goscote,SUPPLIES & SERVICES,Revenue
Walsall Council,http://opendatacommunities.org/id/metropolitan-district-council/walsall,WC118-716,31/07/2020,ADULT SOCIAL CARE,BUNZIL HEALTHCARE T/A CARESHOP,30/07/2020,627,60539-Cleaning Materials,Goscote,SUPPLIES & SERVICES,Revenue
Walsall Council,http://opendatacommunities.org/id/metropolitan-district-council/walsall,WC118-717,31/07/2020,ADULT SOCIAL CARE,BUPA NURSING HOMES ASTON COURT,31/07/2020,"2,044.00",73500-Residential,Physical Support,THIRD PARTY PAYMENTS,Revenue
Walsall Council,http://opendatacommunities.org/id/metropolitan-district-council/walsall,WC118-718,31/07/2020,ADULT SOCIAL CARE,BUSH HOME LTD,22/07/2020,"2,555.28",73025-Professional Services-Priv Contractor & Other Agencies,Transitional Care Support Team,THIRD PARTY PAYMENTS,Revenue
Walsall Council,http://opendatacommunities.org/id/metropolitan-district-council/walsall,WC118-719,31/07/2020,ADULT SOCIAL CARE,BUSH HOME LTD,31/07/2020,"2,308.00",73501-Residential EMI,Physical Support,THIRD PARTY PAYMENTS,Revenue
Walsall Council,http://opendatacommunities.org/id/metropolitan-district-council/walsall,WC118-720,31/07/2020,ADULT SOCIAL CARE,BUSH HOME LTD,31/07/2020,"2,308.00",73501-Residential EMI,Support with Memory & Cognition,THIRD PARTY PAYMENTS,Revenue
Walsall Council,http://opendatacommunities.org/id/metropolitan-district-council/walsall,WC118-721,31/07/2020,ADULT SOCIAL CARE,BUSH HOME LTD,31/07/2020,"1,022.00",73504-Short Stay Residential,Physical Support,THIRD PARTY PAYMENTS,Revenue
Walsall Council,http://opendatacommunities.org/id/metropolitan-district-council/walsall,WC118-722,31/07/2020,ADULT SOCIAL CARE,BUSH HOME LTD,31/07/2020,"1,483.71",73501-Residential EMI,Physical Support,THIRD PARTY PAYMENTS,Revenue
Walsall Council,http://opendatacommunities.org/id/metropolitan-district-council/walsall,WC118-723,31/07/2020,ADULT SOCIAL CARE,BUSH HOME LTD,31/07/2020,"2,044.00",73500-Residential,Mental Health Support,THIRD PARTY PAYMENTS,Revenue
Walsall Council,http://opendatacommunities.org/id/metropolitan-district-council/walsall,WC118-724,31/07/2020,ADULT SOCIAL CARE,BUSH HOME LTD,31/07/2020,"2,044.00",73500-Residential,Mental Health Support,THIRD PARTY PAYMENTS,Revenue
Walsall Council,http://opendatacommunities.org/id/metropolitan-district-council/walsall,WC118-725,31/07/2020,ADULT SOCIAL CARE,BUSH HOME LTD,31/07/2020,"2,044.00",73500-Residential,Physical Support,THIRD PARTY PAYMENTS,Revenue
Walsall Council,http://opendatacommunities.org/id/metropolitan-district-council/walsall,WC118-726,31/07/2020,ADULT SOCIAL CARE,BUSH HOME LTD,31/07/2020,"2,044.00",73500-Residential,Physical Support,THIRD PARTY PAYMENTS,Revenue
Walsall Council,http://opendatacommunities.org/id/metropolitan-district-council/walsall,WC118-727,31/07/2020,ADULT SOCIAL CARE,BUSH HOME LTD,31/07/2020,"4,039.00",73501-Residential EMI,Physical Support,THIRD PARTY PAYMENTS,Revenue
Walsall Council,http://opendatacommunities.org/id/metropolitan-district-council/walsall,WC118-728,31/07/2020,ADULT SOCIAL CARE,BUSH HOME LTD,31/07/2020,"26,853.38",73500-Residential,Social Support,THIRD PARTY PAYMENTS,Revenue
Walsall Council,http://opendatacommunities.org/id/metropolitan-district-council/walsall,WC118-729,31/07/2020,ADULT SOCIAL CARE,BUSH HOME LTD,31/07/2020,"2,143.14",73501-Residential EMI,Physical Support,THIRD PARTY PAYMENTS,Revenue
Walsall Council,http://opendatacommunities.org/id/metropolitan-district-council/walsall,WC118-730,31/07/2020,ADULT SOCIAL CARE,BUSH HOME LTD,31/07/2020,"2,308.00",73501-Residential EMI,Physical Support,THIRD PARTY PAYMENTS,Revenue
Walsall Council,http://opendatacommunities.org/id/metropolitan-district-council/walsall,WC118-731,31/07/2020,ADULT SOCIAL CARE,BUSH HOME LTD,31/07/2020,"2,308.00",73501-Residential EMI,Support with Memory & Cognition,THIRD PARTY PAYMENTS,Revenue
Walsall Council,http://opendatacommunities.org/id/metropolitan-district-council/walsall,WC118-732,31/07/2020,ADULT SOCIAL CARE,BUSH HOME LTD,31/07/2020,292,73504-Short Stay Residential,Physical Support,THIRD PARTY PAYMENTS,Revenue
Walsall Council,http://opendatacommunities.org/id/metropolitan-district-council/walsall,WC118-733,31/07/2020,ADULT SOCIAL CARE,BUSH HOME LTD,31/07/2020,"2,044.00",73500-Residential,Physical Support,THIRD PARTY PAYMENTS,Revenue
Walsall Council,http://opendatacommunities.org/id/metropolitan-district-council/walsall,WC118-734,31/07/2020,ADULT SOCIAL CARE,BUSH HOME LTD,31/07/2020,"2,308.00",73501-Residential EMI,Physical Support,THIRD PARTY PAYMENTS,Revenue
Walsall Council,http://opendatacommunities.org/id/metropolitan-district-council/walsall,WC118-735,31/07/2020,ADULT SOCIAL CARE,BUSH HOME LTD,31/07/2020,"2,308.00",73501-Residential EMI,Support with Memory & Cognition,THIRD PARTY PAYMENTS,Revenue
Walsall Council,http://opendatacommunities.org/id/metropolitan-district-council/walsall,WC118-736,31/07/2020,ADULT SOCIAL CARE,BUSH HOME LTD,31/07/2020,"3,214.71",73501-Residential EMI,Physical Support,THIRD PARTY PAYMENTS,Revenue
Walsall Council,http://opendatacommunities.org/id/metropolitan-district-council/walsall,WC118-737,31/07/2020,ADULT SOCIAL CARE,BUSH HOME LTD,31/07/2020,"2,044.00",73500-Residential,Social Support,THIRD PARTY PAYMENTS,Revenue
Walsall Council,http://opendatacommunities.org/id/metropolitan-district-council/walsall,WC118-738,31/07/2020,ADULT SOCIAL CARE,BUSH HOME LTD,31/07/2020,"2,044.00",73500-Residential,Physical Support,THIRD PARTY PAYMENTS,Revenue
Walsall Council,http://opendatacommunities.org/id/metropolitan-district-council/walsall,WC118-739,31/07/2020,ADULT SOCIAL CARE,BUSH HOME LTD,31/07/2020,"2,308.00",73501-Residential EMI,Physical Support,THIRD PARTY PAYMENTS,Revenue
Walsall Council,http://opendatacommunities.org/id/metropolitan-district-council/walsall,WC118-740,30/06/2020,CHILDRENS,BY THE BRIDGE,10/07/2020,"1,300.14",74037,External Foster Care Provision,THIRD PARTY PAYMENTS,Independent Foster Care-Oth Agency Provision
Walsall Council,http://opendatacommunities.org/id/metropolitan-district-council/walsall,WC118-741,30/06/2020,CHILDRENS,BY THE BRIDGE,10/07/2020,"1,355.79",74037,External Foster Care Provision,THIRD PARTY PAYMENTS,Independent Foster Care-Oth Agency Provision
Walsall Council,http://opendatacommunities.org/id/metropolitan-district-council/walsall,WC118-742,30/06/2020,CHILDRENS,BY THE BRIDGE,10/07/2020,"2,340.26",74037,External Foster Care Provision,THIRD PARTY PAYMENTS,Independent Foster Care-Oth Agency Provision
Walsall Council,http://opendatacommunities.org/id/metropolitan-district-council/walsall,WC118-743,30/06/2020,CHILDRENS,BY THE BRIDGE,10/07/2020,"1,300.14",74037,External Foster Care Provision,THIRD PARTY PAYMENTS,Independent Foster Care-Oth Agency Provision
Walsall Council,http://opendatacommunities.org/id/metropolitan-district-council/walsall,WC118-744,31/07/2020,ECONOMY & ENVIRONMENT,C P DAVIDSON & SONS LTD,21/07/2020,"1,156.04",73025-Professional Services-Priv Contractor & Other Agencies,Fleet,THIRD PARTY PAYMENTS,Revenue
Walsall Council,http://opendatacommunities.org/id/metropolitan-district-council/walsall,WC118-745,31/07/2020,ECONOMY & ENVIRONMENT,C P DAVIDSON & SONS LTD,22/07/2020,587.74,60500-Materials,Fleet,SUPPLIES & SERVICES,Revenue
Walsall Council,http://opendatacommunities.org/id/metropolitan-district-council/walsall,WC118-746,31/07/2020,ECONOMY & ENVIRONMENT,C P DAVIDSON & SONS LTD,27/07/2020,443.44,60514-Materials to Stores,Fleet Parts Stock Account,SUPPLIES & SERVICES,Revenue
Walsall Council,http://opendatacommunities.org/id/metropolitan-district-council/walsall,WC118-747,30/06/2020,CHILDRENS,CALCOT SERVICES FOR CHILDREN LTD,10/07/2020,"22,000.00",74036,Independent Residential Homes,THIRD PARTY PAYMENTS,External Residential Care-Oth Agency Provision
Walsall Council,http://opendatacommunities.org/id/metropolitan-district-council/walsall,WC118-748,31/07/2020,CHILDRENS,CALCOT SERVICES FOR CHILDREN LTD,16/07/2020,"-2,400.00",74036-External Residential Care-Oth Agency Provision,Independent Residential Homes,THIRD PARTY PAYMENTS,Revenue
Walsall Council,http://opendatacommunities.org/id/metropolitan-district-council/walsall,WC118-749,31/07/2020,ADULT SOCIAL CARE,CALDMORE AREA HOUSING ASS LTD,31/07/2020,"-1,573.76",73500-Residential,Mental Health Support,THIRD PARTY PAYMENTS,Revenue
Walsall Council,http://opendatacommunities.org/id/metropolitan-district-council/walsall,WC118-750,31/07/2020,ADULT SOCIAL CARE,CALDMORE AREA HOUSING ASS LTD,31/07/2020,"-3,442.60",73500-Residential,Mental Health Support,THIRD PARTY PAYMENTS,Revenue
Walsall Council,http://opendatacommunities.org/id/metropolitan-district-council/walsall,WC118-751,31/07/2020,ADULT SOCIAL CARE,CALDMORE AREA HOUSING ASS LTD,31/07/2020,"2,754.08",73500-Residential,Mental Health Support,THIRD PARTY PAYMENTS,Revenue
Walsall Council,http://opendatacommunities.org/id/metropolitan-district-council/walsall,WC118-752,31/07/2020,ADULT SOCIAL CARE,CALDMORE AREA HOUSING ASS LTD,31/07/2020,"2,754.08",73500-Residential,Mental Health Support,THIRD PARTY PAYMENTS,Revenue
Walsall Council,http://opendatacommunities.org/id/metropolitan-district-council/walsall,WC118-753,31/07/2020,ADULT SOCIAL CARE,CALDMORE AREA HOUSING ASS LTD,31/07/2020,"2,754.08",73500-Residential,Mental Health Support,THIRD PARTY PAYMENTS,Revenue
Walsall Council,http://opendatacommunities.org/id/metropolitan-district-council/walsall,WC118-754,31/07/2020,ADULT SOCIAL CARE,CALDMORE AREA HOUSING ASS LTD,31/07/2020,"51,460.67",73500-Residential,Mental Health Support,THIRD PARTY PAYMENTS,Revenue
Walsall Council,http://opendatacommunities.org/id/metropolitan-district-council/walsall,WC118-755,31/07/2020,ADULT SOCIAL CARE,CALDMORE AREA HOUSING ASS LTD,31/07/2020,"2,360.64",73500-Residential,Mental Health Support,THIRD PARTY PAYMENTS,Revenue
Walsall Council,http://opendatacommunities.org/id/metropolitan-district-council/walsall,WC118-756,31/07/2020,ADULT SOCIAL CARE,CALDMORE AREA HOUSING ASS LTD,31/07/2020,"6,151.67",73500-Residential,Mental Health Support,THIRD PARTY PAYMENTS,Revenue
Walsall Council,http://opendatacommunities.org/id/metropolitan-district-council/walsall,WC118-757,31/07/2020,ECONOMY & ENVIRONMENT,CALDMORE VILLAGE FESTIVAL GROUP,24/07/2020,700,63000-Professional Fees & Services,Integrated Communities Programme,SUPPLIES & SERVICES,Revenue
Walsall Council,http://opendatacommunities.org/id/metropolitan-district-council/walsall,WC118-758,30/06/2020,CHILDRENS,CAMBIAN CHILDCARE LIMITED,10/07/2020,"15,000.00",74036,Independent Residential Homes,THIRD PARTY PAYMENTS,External Residential Care-Oth Agency Provision
Walsall Council,http://opendatacommunities.org/id/metropolitan-district-council/walsall,WC118-759,30/06/2020,CHILDRENS,CAMBIAN CHILDCARE LIMITED,10/07/2020,"21,800.00",74036,Independent Residential Homes,THIRD PARTY PAYMENTS,External Residential Care-Oth Agency Provision
Walsall Council,http://opendatacommunities.org/id/metropolitan-district-council/walsall,WC118-760,31/07/2020,ECONOMY & ENVIRONMENT,CAMERA ONE LIMITED,21/07/2020,980,73025-Professional Services-Priv Contractor & Other Agencies,Depot,THIRD PARTY PAYMENTS,Revenue
Walsall Council,http://opendatacommunities.org/id/metropolitan-district-council/walsall,WC118-761,31/07/2020,ECONOMY & ENVIRONMENT,CAMERA ONE LIMITED,21/07/2020,250,73025-Professional Services-Priv Contractor & Other Agencies,Depot,THIRD PARTY PAYMENTS,Revenue
Walsall Council,http://opendatacommunities.org/id/metropolitan-district-council/walsall,WC118-762,31/07/2020,ECONOMY & ENVIRONMENT,CAMERA ONE LIMITED,21/07/2020,980,73025-Professional Services-Priv Contractor & Other Agencies,Depot,THIRD PARTY PAYMENTS,Revenue
Walsall Council,http://opendatacommunities.org/id/metropolitan-district-council/walsall,WC118-763,31/07/2020,ECONOMY & ENVIRONMENT,CAMERA ONE LIMITED,21/07/2020,400,73025-Professional Services-Priv Contractor & Other Agencies,Depot,THIRD PARTY PAYMENTS,Revenue
Walsall Council,http://opendatacommunities.org/id/metropolitan-district-council/walsall,WC118-764,31/07/2020,ECONOMY & ENVIRONMENT,CAMERA ONE LIMITED,21/07/2020,295,73025-Professional Services-Priv Contractor & Other Agencies,Depot,THIRD PARTY PAYMENTS,Revenue
Walsall Council,http://opendatacommunities.org/id/metropolitan-district-council/walsall,WC118-765,31/07/2020,CHILDRENS,CAMINO DEVELOPMENTS T/A VESTIGE HEALTHCARE LTD,27/07/2020,"34,909.72",74036-External Residential Care-Oth Agency Provision,Independent Residential Homes,THIRD PARTY PAYMENTS,Revenue
Walsall Council,http://opendatacommunities.org/id/metropolitan-district-council/walsall,WC118-766,31/07/2020,CHILDRENS,CAMINO DEVELOPMENTS T/A VESTIGE HEALTHCARE LTD,27/07/2020,"42,259.44",74036-External Residential Care-Oth Agency Provision,Independent Residential Homes,THIRD PARTY PAYMENTS,Revenue
Walsall Council,http://opendatacommunities.org/id/metropolitan-district-council/walsall,WC118-767,31/07/2020,CHILDRENS,CAMINO DEVELOPMENTS T/A VESTIGE HEALTHCARE LTD,27/07/2020,"7,272.86",74036-External Residential Care-Oth Agency Provision,Independent Residential Homes,THIRD PARTY PAYMENTS,Revenue
Walsall Council,http://opendatacommunities.org/id/metropolitan-district-council/walsall,WC118-768,31/07/2020,ECONOMY & ENVIRONMENT,CANAL & RIVER TRUST,27/07/2020,"1,302.75",73028-Land Registry & Land Charges-Priv Contractor Fees,Environmental Improvement Service,THIRD PARTY PAYMENTS,Revenue
Walsall Council,http://opendatacommunities.org/id/metropolitan-district-council/walsall,WC118-769,31/07/2020,RESOURCES AND TRANSFORMATION,CANTARUS LIMITED,23/07/2020,"-7,650.00",63800-Computer Equipment,Applications,SUPPLIES & SERVICES,Revenue
Walsall Council,http://opendatacommunities.org/id/metropolitan-district-council/walsall,WC118-770,31/07/2020,RESOURCES AND TRANSFORMATION,CANTARUS LIMITED,23/07/2020,"8,500.00",63800-Computer Equipment,Applications,SUPPLIES & SERVICES,Revenue
Walsall Council,http://opendatacommunities.org/id/metropolitan-district-council/walsall,WC118-771,31/07/2020,CHILDRENS,CAPITA,16/07/2020,"3,855.08",83000-Bank Charges-Internal Expenditure,Revenue Section Cashiers,SUPPORT SERVICES - INTERNAL,Revenue
Walsall Council,http://opendatacommunities.org/id/metropolitan-district-council/walsall,WC118-772,31/07/2020,RESOURCES AND TRANSFORMATION,CAPITA,16/07/2020,"3,855.09",63800-Computer Equipment,Applications,SUPPLIES & SERVICES,Revenue
Walsall Council,http://opendatacommunities.org/id/metropolitan-district-council/walsall,WC118-773,31/07/2020,CHILDRENS,CAPITA,30/07/2020,"4,916.75",83000-Bank Charges-Internal Expenditure,Tenancy Service,SUPPORT SERVICES - INTERNAL,Revenue
Walsall Council,http://opendatacommunities.org/id/metropolitan-district-council/walsall,WC118-774,31/07/2020,RESOURCES AND TRANSFORMATION,CAPITA,30/07/2020,"4,916.75",63800-Computer Equipment,Applications,SUPPLIES & SERVICES,Revenue
Walsall Council,http://opendatacommunities.org/id/metropolitan-district-council/walsall,WC118-775,30/06/2020,CHILDRENS,CAPSTONE FOSTER CARE (SOUTH EAST) LIMITED,10/07/2020,"3,003.12",74037,External Foster Care Provision,THIRD PARTY PAYMENTS,Independent Foster Care-Oth Agency Provision
Walsall Council,http://opendatacommunities.org/id/metropolitan-district-council/walsall,WC118-776,30/06/2020,CHILDRENS,CAPSTONE FOSTER CARE (SOUTH EAST) LIMITED,10/07/2020,"3,036.00",74037,External Foster Care Provision,THIRD PARTY PAYMENTS,Independent Foster Care-Oth Agency Provision
Walsall Council,http://opendatacommunities.org/id/metropolitan-district-council/walsall,WC118-777,31/07/2020,ADULT SOCIAL CARE,CARE 2 U LIMITED,14/07/2020,859.54,73025-Professional Services-Priv Contractor & Other Agencies,Intermediate Care Service,THIRD PARTY PAYMENTS,Revenue
Walsall Council,http://opendatacommunities.org/id/metropolitan-district-council/walsall,WC118-778,31/07/2020,ADULT SOCIAL CARE,CARE 2 U LIMITED,17/07/2020,-308.4,73507-Domiciliary Care,Physical Support,THIRD PARTY PAYMENTS,Revenue
Walsall Council,http://opendatacommunities.org/id/metropolitan-district-council/walsall,WC118-779,31/07/2020,ADULT SOCIAL CARE,CARE 2 U LIMITED,17/07/2020,335.42,73507-Domiciliary Care,Physical Support,THIRD PARTY PAYMENTS,Revenue
Walsall Council,http://opendatacommunities.org/id/metropolitan-district-council/walsall,WC118-780,31/07/2020,ADULT SOCIAL CARE,CARE 2 U LIMITED,17/07/2020,370.08,73507-Domiciliary Care,Learning Disability Support,THIRD PARTY PAYMENTS,Revenue
